Payment Date,Transaction Number,Net Amount,Supplier (Beneficiary) Name,Local Supplier Internal Reference,Directorate / Service Where Expenditure Incurred,Service Category Label,Service Category URI,SeRCOP Expenditure Category,SeRCOP Expenditure Code,Purpose of Spend,SeRCOP Detailed Expenditure Code,Capital/Revenue,Procurement Classification
01/12/2021,2243030,500.00,Redacted Personal Data,399669,Central Items,Planning Services,110,Capital,Capital,Capital,Capital,Revenue,NON INFLUENCIBLE.GRANTS
01/12/2021,2243031,500.00,Redacted Personal Data,399669,Central Items,Planning Services,110,Capital,Capital,Capital,Capital,Revenue,NON INFLUENCIBLE.GRANTS
01/12/2021,2243032,500.00,Redacted Personal Data,399669,Central Items,Planning Services,110,Capital,Capital,Capital,Capital,Revenue,NON INFLUENCIBLE.GRANTS
01/12/2021,2243033,500.00,Redacted Personal Data,399669,Central Items,Planning Services,110,Capital,Capital,Capital,Capital,Revenue,NON INFLUENCIBLE.GRANTS
01/12/2021,2243034,500.00,Redacted Personal Data,399669,Central Items,Planning Services,110,Capital,Capital,Capital,Capital,Revenue,NON INFLUENCIBLE.GRANTS
01/12/2021,2243035,500.00,Redacted Personal Data,399669,Central Items,Planning Services,110,Capital,Capital,Capital,Capital,Revenue,NON INFLUENCIBLE.GRANTS
01/12/2021,2243036,500.00,Redacted Personal Data,399669,Central Items,Planning Services,110,Capital,Capital,Capital,Capital,Revenue,NON INFLUENCIBLE.GRANTS
01/12/2021,2243037,500.00,Redacted Personal Data,399669,Central Items,Planning Services,110,Capital,Capital,Capital,Capital,Revenue,NON INFLUENCIBLE.GRANTS
01/12/2021,2243038,500.00,Redacted Personal Data,399669,Central Items,Planning Services,110,Capital,Capital,Capital,Capital,Revenue,NON INFLUENCIBLE.GRANTS
01/12/2021,2243039,500.00,Redacted Personal Data,399669,Central Items,Planning Services,110,Capital,Capital,Capital,Capital,Revenue,NON INFLUENCIBLE.GRANTS
01/12/2021,2243040,500.00,Redacted Personal Data,399669,Central Items,Planning Services,110,Capital,Capital,Capital,Capital,Revenue,NON INFLUENCIBLE.GRANTS
01/12/2021,2243041,500.00,Redacted Personal Data,399669,Central Items,Planning Services,110,Capital,Capital,Capital,Capital,Revenue,NON INFLUENCIBLE.GRANTS
01/12/2021,2243042,500.00,Redacted Personal Data,399669,Central Items,Planning Services,110,Capital,Capital,Capital,Capital,Revenue,NON INFLUENCIBLE.GRANTS
01/12/2021,2243043,500.00,Redacted Personal Data,399669,Central Items,Planning Services,110,Capital,Capital,Capital,Capital,Revenue,NON INFLUENCIBLE.GRANTS
01/12/2021,2243044,500.00,Redacted Personal Data,399669,Central Items,Planning Services,110,Capital,Capital,Capital,Capital,Revenue,NON INFLUENCIBLE.GRANTS
01/12/2021,2243045,500.00,Redacted Personal Data,399669,Central Items,Planning Services,110,Capital,Capital,Capital,Capital,Revenue,NON INFLUENCIBLE.GRANTS
01/12/2021,2243046,500.00,Redacted Personal Data,399669,Central Items,Planning Services,110,Capital,Capital,Capital,Capital,Revenue,NON INFLUENCIBLE.GRANTS
01/12/2021,2243047,500.00,Redacted Personal Data,399669,Central Items,Planning Services,110,Capital,Capital,Capital,Capital,Revenue,NON INFLUENCIBLE.GRANTS
01/12/2021,2243048,500.00,Redacted Personal Data,399669,Central Items,Planning Services,110,Capital,Capital,Capital,Capital,Revenue,NON INFLUENCIBLE.GRANTS
01/12/2021,2243049,500.00,Redacted Personal Data,399669,Central Items,Planning Services,110,Capital,Capital,Capital,Capital,Revenue,NON INFLUENCIBLE.GRANTS
01/12/2021,2243050,500.00,Redacted Personal Data,399669,Central Items,Planning Services,110,Capital,Capital,Capital,Capital,Revenue,NON INFLUENCIBLE.GRANTS
01/12/2021,2243057,262.00,Redacted Personal Data,402310,Capital,Children's & Education Services,103,Income,509,Customer and Client Receipts,5064,Capital,NON INFLUENCIBLE.NON INFLUENCIBLE
01/12/2021,2243058,380.25,Redacted Personal Data,402306,Housing Property and Construction,Housing Services,108,Supplies and Services,504,Communications & Computing,5028,Revenue,NON INFLUENCIBLE.INDIVIDUAL
01/12/2021,2243060,900.00,KATE PEACOCK INDEPENDENT SOCIAL WORKER,402145,"Health, Education, Care and Safeguarding",Children's & Education Services,103,Supplies and Services,504,Miscellaneous Expenses,5034,Revenue,SOCIAL CARE.ADOPTION SERVICES
01/12/2021,2243062,400.00,WALLSEND KINSHIP CARERS,402103,Commissioning & Asset Management,Adult Social Care,101,Supplies and Services,504,Grants and Subscriptions,5031,Revenue,
01/12/2021,2243064,14836.40,ARC4 LIMITED,390162,Central Items,N/A,N/A,Supplies and Services,504,Miscellaneous Expenses,5034,Revenue,CONSULTANCY.CONSULTANCY
01/12/2021,2243065,1300.00,FUN SHACK,401953,Corporate Strategy,Children's & Education Services,103,Employees,501,Indirect Employee Expenses,5002,Revenue,NON INFLUENCIBLE.INDIVIDUAL
01/12/2021,2243066,320.00,MENTAL HEALTH FIRST AID ENGLAND,401682,"Health, Education, Care and Safeguarding",Children's & Education Services,103,Supplies and Services,504,Equipment,5023,Revenue,HUMAN RESOURCES.TRAINING & CONFERENCES
01/12/2021,2243067,3190.00,GUST INDEPENDENT SCHOOL,401599,Commissioning & Asset Management,Children's & Education Services,103,Third Party Payments,505,Private Contractors,5042,Revenue,EDUCATIONAL SUPPLIES.EDUCATIONAL PLACEMENTS
01/12/2021,2243068,12000.00,LESLEY STOREY,401478,"Environment, Housing & Leisure",Housing Services,108,Supplies and Services,504,Miscellaneous Expenses,5034,Revenue,CONSULTANCY.CONSULTANCY
01/12/2021,2243069,250.00,OAKDALE CENTRE,401317,"Health, Education, Care and Safeguarding",Children's & Education Services,103,Third Party Payments,505,Private Contractors,5042,Revenue,"SOCIAL CARE.ADVICE, ADVOCACY & COUNSELLING"
01/12/2021,2243072,3660.00,CIVICA ELECTION SERVICES LIMITED,400716,Law & Governance,Central Services,102,Supplies and Services,504,"Printing, Stationery and General Office Expenses",5026,Revenue,ICT.SOFTWARE
01/12/2021,2243074,31219.57,FORDINGBRIDGE PLC,367755,Capital,Capital,Capital,Capital,Capital,Capital,Capital,Capital,REPAIRS & MAINTENANCE.REPAIRS & MAINTENANCE
01/12/2021,2243075,1750.00,ISECURE GROUP LTD,399519,Capital,Capital,Capital,Capital,Capital,Capital,Capital,Capital,REPAIRS & MAINTENANCE.REPAIRS & MAINTENANCE
01/12/2021,2243076,19664.59,GROUNDWORK SERVICES (DURHAM) LTD,399509,Capital,Capital,Capital,Capital,Capital,Capital,Capital,Capital,REPAIRS & MAINTENANCE.REPAIRS & MAINTENANCE
01/12/2021,2243077,186.00,DENHAM PROCUREMENT & SOURCING SOLUTIONS LIMITED,399460,Housing Property and Construction,Housing Services,108,Capital,Capital,Capital,Capital,Revenue,BUILDING MATERIALS.MACHINE TOOLS
01/12/2021,2243077,275.00,DENHAM PROCUREMENT & SOURCING SOLUTIONS LIMITED,399460,Housing Property and Construction,Housing Services,108,Capital,Capital,Capital,Capital,Revenue,BUILDING MATERIALS.MACHINE TOOLS
01/12/2021,2243078,5936.40,NUDGE EDUCATION LIMITED,398059,Commissioning & Asset Management,Children's & Education Services,103,Third Party Payments,505,Private Contractors,5042,Revenue,EDUCATIONAL SUPPLIES.EDUCATIONAL PLACEMENTS
01/12/2021,2243078,20731.50,NUDGE EDUCATION LIMITED,398059,Commissioning & Asset Management,Children's & Education Services,103,Third Party Payments,505,Private Contractors,5042,Revenue,EDUCATIONAL SUPPLIES.EDUCATIONAL PLACEMENTS
01/12/2021,2243080,1608.00,LOGMEIN TECHNOLOGIES UK LTD,399049,Resources,Children's & Education Services,103,Supplies and Services,504,Miscellaneous Expenses,5034,Revenue,ICT.ONLINE SERVICES
01/12/2021,2243081,410.83,ABILITY SMART LIMITED,398735,"Health, Education, Care and Safeguarding",Children's & Education Services,103,Supplies and Services,504,Miscellaneous Expenses,5034,Revenue,HUMAN RESOURCES.TRAINING & CONFERENCES
01/12/2021,2243086,900.00,BLOSSOM SOCIAL CARE TRAINING,398424,Resources,Children's & Education Services,103,Supplies and Services,504,Miscellaneous Expenses,5034,Revenue,HUMAN RESOURCES.TRAINING & CONFERENCES
01/12/2021,2243090,291.60,NISAI VIRTUAL ACADEMY,398185,Commissioning & Asset Management,Children's & Education Services,103,Third Party Payments,505,Private Contractors,5042,Revenue,EDUCATIONAL SUPPLIES.EDUCATIONAL PLACEMENTS
01/12/2021,2243091,254.00,THE SYMPHONY GROUP PLC,329263,Housing Property and Construction,Housing Services,108,Supplies and Services,504,Equipment,5023,Revenue,REPAIRS & MAINTENANCE.REPAIRS & MAINTENANCE
01/12/2021,2243091,486.65,THE SYMPHONY GROUP PLC,329263,Housing Property and Construction,Housing Services,108,Supplies and Services,504,Equipment,5023,Revenue,REPAIRS & MAINTENANCE.REPAIRS & MAINTENANCE
01/12/2021,2243091,537.22,THE SYMPHONY GROUP PLC,329263,Housing Property and Construction,Housing Services,108,Supplies and Services,504,Equipment,5023,Revenue,REPAIRS & MAINTENANCE.REPAIRS & MAINTENANCE
01/12/2021,2243091,541.03,THE SYMPHONY GROUP PLC,329263,Housing Property and Construction,Housing Services,108,Supplies and Services,504,Equipment,5023,Revenue,REPAIRS & MAINTENANCE.REPAIRS & MAINTENANCE
01/12/2021,2243091,549.75,THE SYMPHONY GROUP PLC,329263,Housing Property and Construction,Housing Services,108,Supplies and Services,504,Equipment,5023,Revenue,REPAIRS & MAINTENANCE.REPAIRS & MAINTENANCE
01/12/2021,2243091,706.72,THE SYMPHONY GROUP PLC,329263,Housing Property and Construction,Housing Services,108,Supplies and Services,504,Equipment,5023,Revenue,REPAIRS & MAINTENANCE.REPAIRS & MAINTENANCE
01/12/2021,2243091,709.11,THE SYMPHONY GROUP PLC,329263,Housing Property and Construction,Housing Services,108,Supplies and Services,504,Equipment,5023,Revenue,REPAIRS & MAINTENANCE.REPAIRS & MAINTENANCE
01/12/2021,2243091,730.50,THE SYMPHONY GROUP PLC,329263,Housing Property and Construction,Housing Services,108,Supplies and Services,504,Equipment,5023,Revenue,REPAIRS & MAINTENANCE.REPAIRS & MAINTENANCE
01/12/2021,2243091,782.00,THE SYMPHONY GROUP PLC,329263,Housing Property and Construction,Housing Services,108,Supplies and Services,504,Equipment,5023,Revenue,REPAIRS & MAINTENANCE.REPAIRS & MAINTENANCE
01/12/2021,2243091,864.00,THE SYMPHONY GROUP PLC,329263,Housing Property and Construction,Housing Services,108,Supplies and Services,504,Equipment,5023,Revenue,REPAIRS & MAINTENANCE.REPAIRS & MAINTENANCE
01/12/2021,2243094,18.12,REXEL UK LTD,347413,Housing Property and Construction,Housing Services,108,Supplies and Services,504,Equipment,5023,Revenue,STATIONERY.STATIONERY
01/12/2021,2243094,61.40,REXEL UK LTD,347413,Housing Property and Construction,Housing Services,108,Supplies and Services,504,Equipment,5023,Revenue,STATIONERY.STATIONERY
01/12/2021,2243094,118.08,REXEL UK LTD,347413,Housing Property and Construction,Housing Services,108,Supplies and Services,504,Equipment,5023,Revenue,STATIONERY.STATIONERY
01/12/2021,2243094,124.40,REXEL UK LTD,347413,Housing Property and Construction,Housing Services,108,Supplies and Services,504,Equipment,5023,Revenue,STATIONERY.STATIONERY
01/12/2021,2243094,285.00,REXEL UK LTD,347413,Housing Property and Construction,Housing Services,108,Supplies and Services,504,Equipment,5023,Revenue,STATIONERY.STATIONERY
01/12/2021,2243094,575.80,REXEL UK LTD,347413,Housing Property and Construction,Housing Services,108,Supplies and Services,504,Equipment,5023,Revenue,STATIONERY.STATIONERY
01/12/2021,2243096,-56.31,NICHOL ASSOCIATES LIMITED,369772,Central Items,Holding A/C,N/A,Supplies and Services,504,Miscellaneous Expenses,5034,Revenue,REPAIRS & MAINTENANCE.REPAIRS & MAINTENANCE
01/12/2021,2243096,-48.93,NICHOL ASSOCIATES LIMITED,369772,Central Items,Holding A/C,N/A,Supplies and Services,504,Miscellaneous Expenses,5034,Revenue,REPAIRS & MAINTENANCE.REPAIRS & MAINTENANCE
01/12/2021,2243096,-42.11,NICHOL ASSOCIATES LIMITED,369772,Central Items,Holding A/C,N/A,Supplies and Services,504,Miscellaneous Expenses,5034,Revenue,REPAIRS & MAINTENANCE.REPAIRS & MAINTENANCE
01/12/2021,2243096,-41.91,NICHOL ASSOCIATES LIMITED,369772,Central Items,Holding A/C,N/A,Supplies and Services,504,Miscellaneous Expenses,5034,Revenue,REPAIRS & MAINTENANCE.REPAIRS & MAINTENANCE
01/12/2021,2243096,42.00,NICHOL ASSOCIATES LIMITED,369772,Housing Property and Construction,Housing Services,108,Capital,Capital,Capital,Capital,Revenue,REPAIRS & MAINTENANCE.REPAIRS & MAINTENANCE
01/12/2021,2243096,42.50,NICHOL ASSOCIATES LIMITED,369772,Housing Property and Construction,Housing Services,108,Capital,Capital,Capital,Capital,Revenue,REPAIRS & MAINTENANCE.REPAIRS & MAINTENANCE
01/12/2021,2243096,255.00,NICHOL ASSOCIATES LIMITED,369772,Housing Property and Construction,Housing Services,108,Capital,Capital,Capital,Capital,Revenue,REPAIRS & MAINTENANCE.REPAIRS & MAINTENANCE
01/12/2021,2243096,255.00,NICHOL ASSOCIATES LIMITED,369772,Housing Property and Construction,Housing Services,108,Capital,Capital,Capital,Capital,Revenue,REPAIRS & MAINTENANCE.REPAIRS & MAINTENANCE
01/12/2021,2243096,255.00,NICHOL ASSOCIATES LIMITED,369772,Housing Property and Construction,Housing Services,108,Capital,Capital,Capital,Capital,Revenue,REPAIRS & MAINTENANCE.REPAIRS & MAINTENANCE
01/12/2021,2243096,297.00,NICHOL ASSOCIATES LIMITED,369772,Housing Property and Construction,Housing Services,108,Capital,Capital,Capital,Capital,Revenue,REPAIRS & MAINTENANCE.REPAIRS & MAINTENANCE
01/12/2021,2243097,37399.39,LUMSDEN & CARROLL CONSTRUCTION,205261,Capital,Capital,Capital,Capital,Capital,Capital,Capital,Capital,REPAIRS & MAINTENANCE.REPAIRS & MAINTENANCE
01/12/2021,2243098,-336.63,CROSSLING & CO LTD,003416,Housing Property and Construction,Housing Services,108,Supplies and Services,504,Equipment,5023,Revenue,REPAIRS & MAINTENANCE.REPAIRS & MAINTENANCE
01/12/2021,2243098,2.85,CROSSLING & CO LTD,003416,Housing Property and Construction,Housing Services,108,Supplies and Services,504,Equipment,5023,Revenue,REPAIRS & MAINTENANCE.REPAIRS & MAINTENANCE
01/12/2021,2243098,17.00,CROSSLING & CO LTD,003416,Housing Property and Construction,Housing Services,108,Supplies and Services,504,Equipment,5023,Revenue,REPAIRS & MAINTENANCE.REPAIRS & MAINTENANCE
01/12/2021,2243098,23.70,CROSSLING & CO LTD,003416,Housing Property and Construction,Housing Services,108,Supplies and Services,504,Equipment,5023,Revenue,REPAIRS & MAINTENANCE.REPAIRS & MAINTENANCE
01/12/2021,2243098,25.00,CROSSLING & CO LTD,003416,Housing Property and Construction,Housing Services,108,Supplies and Services,504,Equipment,5023,Revenue,REPAIRS & MAINTENANCE.REPAIRS & MAINTENANCE
01/12/2021,2243098,36.20,CROSSLING & CO LTD,003416,Housing Property and Construction,Housing Services,108,Supplies and Services,504,Equipment,5023,Revenue,REPAIRS & MAINTENANCE.REPAIRS & MAINTENANCE
01/12/2021,2243098,38.20,CROSSLING & CO LTD,003416,Housing Property and Construction,Housing Services,108,Supplies and Services,504,Equipment,5023,Revenue,REPAIRS & MAINTENANCE.REPAIRS & MAINTENANCE
01/12/2021,2243098,53.25,CROSSLING & CO LTD,003416,Housing Property and Construction,Housing Services,108,Supplies and Services,504,Equipment,5023,Revenue,REPAIRS & MAINTENANCE.REPAIRS & MAINTENANCE
01/12/2021,2243098,56.00,CROSSLING & CO LTD,003416,Housing Property and Construction,Housing Services,108,Supplies and Services,504,Equipment,5023,Revenue,REPAIRS & MAINTENANCE.REPAIRS & MAINTENANCE
01/12/2021,2243098,84.00,CROSSLING & CO LTD,003416,Housing Property and Construction,Housing Services,108,Supplies and Services,504,Equipment,5023,Revenue,REPAIRS & MAINTENANCE.REPAIRS & MAINTENANCE
01/12/2021,2243098,96.00,CROSSLING & CO LTD,003416,Housing Property and Construction,Housing Services,108,Supplies and Services,504,Equipment,5023,Revenue,REPAIRS & MAINTENANCE.REPAIRS & MAINTENANCE
01/12/2021,2243098,138.00,CROSSLING & CO LTD,003416,Housing Property and Construction,Housing Services,108,Supplies and Services,504,Equipment,5023,Revenue,REPAIRS & MAINTENANCE.REPAIRS & MAINTENANCE
01/12/2021,2243098,362.00,CROSSLING & CO LTD,003416,Housing Property and Construction,Housing Services,108,Supplies and Services,504,Equipment,5023,Revenue,REPAIRS & MAINTENANCE.REPAIRS & MAINTENANCE
01/12/2021,2243098,559.26,CROSSLING & CO LTD,003416,Housing Property and Construction,Housing Services,108,Supplies and Services,504,Equipment,5023,Revenue,REPAIRS & MAINTENANCE.REPAIRS & MAINTENANCE
01/12/2021,2243098,606.90,CROSSLING & CO LTD,003416,Housing Property and Construction,Housing Services,108,Supplies and Services,504,Equipment,5023,Revenue,REPAIRS & MAINTENANCE.REPAIRS & MAINTENANCE
01/12/2021,2243098,784.29,CROSSLING & CO LTD,003416,Housing Property and Construction,Housing Services,108,Supplies and Services,504,Equipment,5023,Revenue,REPAIRS & MAINTENANCE.REPAIRS & MAINTENANCE
01/12/2021,2243099,1450.00,OUTDOOR-AMBITION LTD,397726,"Health, Education, Care and Safeguarding",Children's & Education Services,103,Supplies and Services,504,Miscellaneous Expenses,5034,Revenue,SOCIAL CARE.PLAY & ACTIVITY SERVICES
01/12/2021,2243099,2640.00,OUTDOOR-AMBITION LTD,397726,"Health, Education, Care and Safeguarding",Children's & Education Services,103,Supplies and Services,504,Miscellaneous Expenses,5034,Revenue,SOCIAL CARE.PLAY & ACTIVITY SERVICES
01/12/2021,2243100,11.50,VERGOUK,393000,"Health, Education, Care and Safeguarding",Adult Social Care,101,Supplies and Services,504,Equipment,5023,Revenue,HEALTH & SAFETY.PRODUCTS
01/12/2021,2243100,24.06,VERGOUK,393000,"Health, Education, Care and Safeguarding",Adult Social Care,101,Supplies and Services,504,Equipment,5023,Revenue,HEALTH & SAFETY.PRODUCTS
01/12/2021,2243100,44.50,VERGOUK,393000,"Health, Education, Care and Safeguarding",Adult Social Care,101,Supplies and Services,504,Equipment,5023,Revenue,HEALTH & SAFETY.PRODUCTS
01/12/2021,2243100,444.60,VERGOUK,393000,"Health, Education, Care and Safeguarding",Adult Social Care,101,Supplies and Services,504,Equipment,5023,Revenue,HEALTH & SAFETY.PRODUCTS
01/12/2021,2243101,750.00,HOUSING SYSTEMS LTD,397282,Housing Strategy & Support,Housing Revenue Account,N/A,Supplies and Services,504,Miscellaneous Expenses,5034,Revenue,ICT.ONLINE SERVICES
01/12/2021,2243102,25598.77,PINNACLE CARES FOR YOU LIMITED,396467,"Health, Education, Care and Safeguarding",Adult Social Care,101,Third Party Payments,505,Private Contractors,5042,Revenue,SOCIAL CARE.NURSING & RESIDENTIAL CARE
01/12/2021,2243103,456.00,WARRENS GROUP,396272,Commissioning & Asset Management,Children's & Education Services,103,Supplies and Services,504,Miscellaneous Expenses,5034,Revenue,ENVIRONMENTAL SERVICES.ANIMAL SERVICES
01/12/2021,2243103,690.00,WARRENS GROUP,396272,Commissioning & Asset Management,Children's & Education Services,103,Supplies and Services,504,Miscellaneous Expenses,5034,Revenue,ENVIRONMENTAL SERVICES.ANIMAL SERVICES
01/12/2021,2243103,1476.00,WARRENS GROUP,396272,Commissioning & Asset Management,Children's & Education Services,103,Supplies and Services,504,Miscellaneous Expenses,5034,Revenue,ENVIRONMENTAL SERVICES.ANIMAL SERVICES
01/12/2021,2243104,1607.00,PAYPOINT NETWORKS LTD,389716,"Health, Education, Care and Safeguarding",Adult Social Care,101,Supplies and Services,504,Miscellaneous Expenses,5034,Revenue,FINANCIAL SERVICES.FINANCIAL SERVICES
01/12/2021,2243105,7574.86,HMS SERVICES LTD T/A HMS CARE,396052,"Health, Education, Care and Safeguarding",Adult Social Care,101,Third Party Payments,505,Private Contractors,5042,Revenue,SOCIAL CARE.CARERS & HOME HELP SERVICES
01/12/2021,2243106,5213.22,YOUNG FOUNDATIONS LTD,358691,Commissioning & Asset Management,Children's & Education Services,103,Third Party Payments,505,Private Contractors,5042,Revenue,SOCIAL CARE.CARE SERVICES
01/12/2021,2243106,5213.22,YOUNG FOUNDATIONS LTD,358691,Commissioning & Asset Management,Children's & Education Services,103,Third Party Payments,505,Private Contractors,5042,Revenue,SOCIAL CARE.CARE SERVICES
01/12/2021,2243106,5214.82,YOUNG FOUNDATIONS LTD,358691,Commissioning & Asset Management,Children's & Education Services,103,Third Party Payments,505,Private Contractors,5042,Revenue,SOCIAL CARE.CARE SERVICES
01/12/2021,2243106,5215.20,YOUNG FOUNDATIONS LTD,358691,Commissioning & Asset Management,Children's & Education Services,103,Third Party Payments,505,Private Contractors,5042,Revenue,SOCIAL CARE.CARE SERVICES
01/12/2021,2243106,7288.50,YOUNG FOUNDATIONS LTD,358691,Commissioning & Asset Management,Children's & Education Services,103,Third Party Payments,505,Private Contractors,5042,Revenue,SOCIAL CARE.CARE SERVICES
01/12/2021,2243107,263.55,NORTH TYNESIDE COUNCIL,102767,Central Items,Holding A/C,N/A,Capital,Capital,Capital,Capital,Revenue,NON INFLUENCIBLE.PUBLIC SECTOR
01/12/2021,2243107,584.58,NORTH TYNESIDE COUNCIL,102767,Central Items,Holding A/C,N/A,Capital,Capital,Capital,Capital,Revenue,NON INFLUENCIBLE.PUBLIC SECTOR
01/12/2021,2243107,1451.00,NORTH TYNESIDE COUNCIL,102767,"Health, Education, Care and Safeguarding",Adult Social Care,101,Supplies and Services,504,"Printing, Stationery and General Office Expenses",5026,Revenue,NON INFLUENCIBLE.PUBLIC SECTOR
01/12/2021,2243109,400.00,CAMPBELL�S MINI BUS HIRE,393945,"Health, Education, Care and Safeguarding",Adult Social Care,101,Third Party Payments,505,Private Contractors,5042,Revenue,PUBLIC TRANSPORT.TAXI SERVICES
01/12/2021,2243112,36384.99,HOUSING 21,305162,"Health, Education, Care and Safeguarding",Adult Social Care,101,Capital,Capital,Capital,Capital,Revenue,SOCIAL CARE.HOMECARE SERVICES
01/12/2021,2243112,51007.66,HOUSING 21,305162,"Health, Education, Care and Safeguarding",Adult Social Care,101,Capital,Capital,Capital,Capital,Revenue,SOCIAL CARE.HOMECARE SERVICES
01/12/2021,2243116,404.06,NATIONWIDE WINDSCREEN SERVICES LIMITED,390484,"Environment, Housing & Leisure",Unallocated,N/A,Transport,503,Direct Transport Costs,5016,Revenue,VEHICLE MANAGEMENT.PARTS
01/12/2021,2243117,2168.13,EVERLASTING CARE LTD,363743,"Health, Education, Care and Safeguarding",Adult Social Care,101,Third Party Payments,505,Private Contractors,5042,Revenue,SOCIAL CARE.HOMECARE SERVICES
01/12/2021,2243117,8074.63,EVERLASTING CARE LTD,363743,"Health, Education, Care and Safeguarding",Adult Social Care,101,Third Party Payments,505,Private Contractors,5042,Revenue,SOCIAL CARE.HOMECARE SERVICES
01/12/2021,2243118,1500.00,RENT A REINDEER LTD,390147,Central Items,Planning Services,110,Supplies and Services,504,Miscellaneous Expenses,5034,Revenue,ADVERTISING & MARKETING.EVENTS & PROMOTIONS
01/12/2021,2243121,276.90,Redacted Personal Data,387771,Law & Governance,Central Services,102,Third Party Payments,505,Private Contractors,5042,Revenue,NON INFLUENCIBLE.DOCTORS/MEDICAL FEES
01/12/2021,2243122,795.00,IODA LTD,375460,Resources,Central Services,102,Supplies and Services,504,Contribution to Provisions,5033,Revenue,HUMAN RESOURCES.TRAINING & CONFERENCES
01/12/2021,2243126,268.26,J T DOVE LTD,004226,"Environment, Housing & Leisure",Environmental & Regulatory Services,105,Supplies and Services,504,Equipment,5023,Revenue,BUILDING MATERIALS.GENERAL MATERIALS
01/12/2021,2243127,24.95,NHC NHS FOUNDATION TRUST,317869,Central Items,Obsolete Code Community,102,Third Party Payments,505,Private Contractors,5042,Revenue,PUBLIC HEALTH.SPECIALIST SERVICES
01/12/2021,2243127,39.18,NHC NHS FOUNDATION TRUST,317869,Central Items,Obsolete Code Community,102,Third Party Payments,505,Private Contractors,5042,Revenue,PUBLIC HEALTH.SPECIALIST SERVICES
01/12/2021,2243127,69.85,NHC NHS FOUNDATION TRUST,317869,Central Items,Obsolete Code Community,102,Third Party Payments,505,Private Contractors,5042,Revenue,PUBLIC HEALTH.SPECIALIST SERVICES
01/12/2021,2243127,79.85,NHC NHS FOUNDATION TRUST,317869,Central Items,Obsolete Code Community,102,Third Party Payments,505,Private Contractors,5042,Revenue,PUBLIC HEALTH.SPECIALIST SERVICES
01/12/2021,2243127,124.73,NHC NHS FOUNDATION TRUST,317869,Central Items,Obsolete Code Community,102,Third Party Payments,505,Private Contractors,5042,Revenue,PUBLIC HEALTH.SPECIALIST SERVICES
01/12/2021,2243127,124.73,NHC NHS FOUNDATION TRUST,317869,Central Items,Obsolete Code Community,102,Third Party Payments,505,Private Contractors,5042,Revenue,PUBLIC HEALTH.SPECIALIST SERVICES
01/12/2021,2243127,195.91,NHC NHS FOUNDATION TRUST,317869,Central Items,Obsolete Code Community,102,Third Party Payments,505,Private Contractors,5042,Revenue,PUBLIC HEALTH.SPECIALIST SERVICES
01/12/2021,2243127,195.91,NHC NHS FOUNDATION TRUST,317869,Central Items,Obsolete Code Community,102,Third Party Payments,505,Private Contractors,5042,Revenue,PUBLIC HEALTH.SPECIALIST SERVICES
01/12/2021,2243127,372.47,NHC NHS FOUNDATION TRUST,317869,Central Items,Obsolete Code Community,102,Third Party Payments,505,Private Contractors,5042,Revenue,PUBLIC HEALTH.SPECIALIST SERVICES
01/12/2021,2243127,412.09,NHC NHS FOUNDATION TRUST,317869,Central Items,Obsolete Code Community,102,Third Party Payments,505,Private Contractors,5042,Revenue,PUBLIC HEALTH.SPECIALIST SERVICES
01/12/2021,2243127,642.70,NHC NHS FOUNDATION TRUST,317869,Central Items,Obsolete Code Community,102,Third Party Payments,505,Private Contractors,5042,Revenue,PUBLIC HEALTH.SPECIALIST SERVICES
01/12/2021,2243127,663.20,NHC NHS FOUNDATION TRUST,317869,Commissioning & Asset Management,Children's & Education Services,103,Supplies and Services,504,Miscellaneous Expenses,5034,Revenue,PUBLIC HEALTH.SPECIALIST SERVICES
01/12/2021,2243127,687.65,NHC NHS FOUNDATION TRUST,317869,Central Items,Obsolete Code Community,102,Third Party Payments,505,Private Contractors,5042,Revenue,PUBLIC HEALTH.SPECIALIST SERVICES
01/12/2021,2243127,958.20,NHC NHS FOUNDATION TRUST,317869,Central Items,Obsolete Code Community,102,Third Party Payments,505,Private Contractors,5042,Revenue,PUBLIC HEALTH.SPECIALIST SERVICES
01/12/2021,2243127,958.20,NHC NHS FOUNDATION TRUST,317869,Central Items,Obsolete Code Community,102,Third Party Payments,505,Private Contractors,5042,Revenue,PUBLIC HEALTH.SPECIALIST SERVICES
01/12/2021,2243127,958.20,NHC NHS FOUNDATION TRUST,317869,Central Items,Obsolete Code Community,102,Third Party Payments,505,Private Contractors,5042,Revenue,PUBLIC HEALTH.SPECIALIST SERVICES
01/12/2021,2243127,958.20,NHC NHS FOUNDATION TRUST,317869,Central Items,Obsolete Code Community,102,Third Party Payments,505,Private Contractors,5042,Revenue,PUBLIC HEALTH.SPECIALIST SERVICES
01/12/2021,2243127,1862.38,NHC NHS FOUNDATION TRUST,317869,Central Items,Obsolete Code Community,102,Third Party Payments,505,Private Contractors,5042,Revenue,PUBLIC HEALTH.SPECIALIST SERVICES
01/12/2021,2243127,1862.38,NHC NHS FOUNDATION TRUST,317869,Central Items,Obsolete Code Community,102,Third Party Payments,505,Private Contractors,5042,Revenue,PUBLIC HEALTH.SPECIALIST SERVICES
01/12/2021,2243127,2060.44,NHC NHS FOUNDATION TRUST,317869,Central Items,Obsolete Code Community,102,Third Party Payments,505,Private Contractors,5042,Revenue,PUBLIC HEALTH.SPECIALIST SERVICES
01/12/2021,2243127,2060.44,NHC NHS FOUNDATION TRUST,317869,Central Items,Obsolete Code Community,102,Third Party Payments,505,Private Contractors,5042,Revenue,PUBLIC HEALTH.SPECIALIST SERVICES
01/12/2021,2243127,3213.50,NHC NHS FOUNDATION TRUST,317869,Central Items,Obsolete Code Community,102,Third Party Payments,505,Private Contractors,5042,Revenue,PUBLIC HEALTH.SPECIALIST SERVICES
01/12/2021,2243127,3213.50,NHC NHS FOUNDATION TRUST,317869,Central Items,Obsolete Code Community,102,Third Party Payments,505,Private Contractors,5042,Revenue,PUBLIC HEALTH.SPECIALIST SERVICES
01/12/2021,2243127,3438.25,NHC NHS FOUNDATION TRUST,317869,Central Items,Obsolete Code Community,102,Third Party Payments,505,Private Contractors,5042,Revenue,PUBLIC HEALTH.SPECIALIST SERVICES
01/12/2021,2243127,3438.25,NHC NHS FOUNDATION TRUST,317869,Central Items,Obsolete Code Community,102,Third Party Payments,505,Private Contractors,5042,Revenue,PUBLIC HEALTH.SPECIALIST SERVICES
01/12/2021,2243129,1671.24,G HARRISONS T/A GMA MOTORS,343303,"Environment, Housing & Leisure",Unallocated,N/A,Transport,503,Direct Transport Costs,5016,Revenue,VEHICLE MANAGEMENT.PARTS
01/12/2021,2243132,275.00,RIVERDALE IMPREST ACCOUNT(61096163),040219,"Health, Education, Care and Safeguarding",Children's & Education Services,103,Supplies and Services,504,Equipment,5023,Revenue,NON INFLUENCIBLE.PETTY CASH
01/12/2021,2243134,2619.39,NORTHUMBRIAN WATER LIMITED,014360,Housing Strategy & Support,Adult Social Care,101,Premises-Related Expenditure,502,Rates,5008,Revenue,WATER.WATER
01/12/2021,2243134,3972.57,NORTHUMBRIAN WATER LIMITED,014360,Housing Strategy & Support,Housing Services,108,Premises-Related Expenditure,502,Rates,5008,Revenue,WATER.WATER
01/12/2021,2243134,23489.43,NORTHUMBRIAN WATER LIMITED,014360,Housing Strategy & Support,Housing Services,108,Premises-Related Expenditure,502,Rates,5008,Revenue,WATER.WATER
01/12/2021,2243136,345.00,ALBANY OFFICE EQUIPMENT (WHOLESALE) LTD,306382,"Health, Education, Care and Safeguarding",Adult Social Care,101,Supplies and Services,504,Equipment,5023,Revenue,FURNITURE.OFFICE
01/12/2021,2243138,902.34,DVS COMPONENTS,004169,"Environment, Housing & Leisure",Unallocated,N/A,Transport,503,Direct Transport Costs,5016,Revenue,VEHICLE MANAGEMENT.PARTS
01/12/2021,2243145,834.00,RAVENSWORTH NURSERIES,353237,"Environment, Housing & Leisure",Cultural & Related Services,104,Supplies and Services,504,Equipment,5023,Revenue,HORTICULTURAL.SEEDS & PLANTS
01/12/2021,2243145,930.00,RAVENSWORTH NURSERIES,353237,"Environment, Housing & Leisure",Environmental & Regulatory Services,105,Supplies and Services,504,Equipment,5023,Revenue,HORTICULTURAL.SEEDS & PLANTS
01/12/2021,2243145,1987.20,RAVENSWORTH NURSERIES,353237,"Environment, Housing & Leisure",Cultural & Related Services,104,Supplies and Services,504,Equipment,5023,Revenue,HORTICULTURAL.SEEDS & PLANTS
01/12/2021,2243145,14418.80,RAVENSWORTH NURSERIES,353237,"Environment, Housing & Leisure",Cultural & Related Services,104,Supplies and Services,504,Equipment,5023,Revenue,HORTICULTURAL.SEEDS & PLANTS
01/12/2021,2243146,17643.50,FOSTERING NETWORK,341493,"Health, Education, Care and Safeguarding",Children's & Education Services,103,Third Party Payments,505,Private Contractors,5042,Revenue,SOCIAL CARE.FOSTER CARE
01/12/2021,2243148,1295.37,TERBERG MATEC UK LTD,326651,"Environment, Housing & Leisure",Unallocated,N/A,Transport,503,Direct Transport Costs,5016,Revenue,VEHICLE MANAGEMENT.PARTS
01/12/2021,2243149,106052.52,PERCY HEDLEY FOUNDATION,252934,Commissioning & Asset Management,Children's & Education Services,103,Third Party Payments,505,Private Contractors,5042,Revenue,SOCIAL CARE.DAY CARE
01/12/2021,2243152,212883.00,DENNIS EAGLE LTD,303955,Capital,Capital,Capital,Supplies and Services,504,Equipment,5023,Capital,VEHICLE MANAGEMENT.PARTS
01/12/2021,2243153,528.86,FIRST CLASS SUPPLY & TRAINING LTD,356089,"Health, Education, Care and Safeguarding",Children's & Education Services,103,Third Party Payments,505,Private Contractors,5042,Revenue,HUMAN RESOURCES.TEMPORARY & AGENCY STAFF
01/12/2021,2243155,12973.00,ASTOR-BANNERMAN (MEDICAL) LTD,334155,Capital,Capital,Capital,Third Party Payments,505,Private Contractors,5042,Capital,NON INFLUENCIBLE.DOCTORS/MEDICAL FEES
01/12/2021,2243156,4.20,KILLGERM CHEMICALS LTD,251235,"Environment, Housing & Leisure",Environmental & Regulatory Services,105,Supplies and Services,504,Equipment,5023,Revenue,ENVIRONMENTAL SERVICES.ANIMAL SERVICES
01/12/2021,2243156,54.00,KILLGERM CHEMICALS LTD,251235,"Environment, Housing & Leisure",Environmental & Regulatory Services,105,Supplies and Services,504,Equipment,5023,Revenue,ENVIRONMENTAL SERVICES.ANIMAL SERVICES
01/12/2021,2243156,314.00,KILLGERM CHEMICALS LTD,251235,"Environment, Housing & Leisure",Environmental & Regulatory Services,105,Supplies and Services,504,Equipment,5023,Revenue,ENVIRONMENTAL SERVICES.ANIMAL SERVICES
01/12/2021,2243156,330.40,KILLGERM CHEMICALS LTD,251235,"Environment, Housing & Leisure",Environmental & Regulatory Services,105,Supplies and Services,504,Equipment,5023,Revenue,ENVIRONMENTAL SERVICES.ANIMAL SERVICES
02/12/2021,2243203,498.78,HOUSING BENEFIT,299992,Resources,Housing Services,108,Transfer Payments,506,Housing Benefits,5048,Revenue,NON INFLUENCIBLE.NON INFLUENCIBLE
02/12/2021,2243204,307.64,HOUSING BENEFIT,299992,Resources,Housing Services,108,Transfer Payments,506,Housing Benefits,5048,Revenue,NON INFLUENCIBLE.NON INFLUENCIBLE
02/12/2021,2243208,529.90,HOUSING BENEFIT,299992,Resources,Housing Services,108,Transfer Payments,506,Housing Benefits,5048,Revenue,NON INFLUENCIBLE.NON INFLUENCIBLE
02/12/2021,2243209,355.54,HOUSING BENEFIT,299992,Resources,Housing Services,108,Transfer Payments,506,Housing Benefits,5048,Revenue,NON INFLUENCIBLE.NON INFLUENCIBLE
02/12/2021,2243211,259.06,HOUSING BENEFIT,299992,Resources,Housing Services,108,Transfer Payments,506,Housing Benefits,5048,Revenue,NON INFLUENCIBLE.NON INFLUENCIBLE
02/12/2021,2243212,285.57,HOUSING BENEFIT,299992,Resources,Housing Services,108,Transfer Payments,506,Housing Benefits,5048,Revenue,NON INFLUENCIBLE.NON INFLUENCIBLE
02/12/2021,2243213,0.70,BUNZL UK LTD T/A BUNZL CLEANING & HYGIENE SUPPLIES,027747,Commissioning & Asset Management,Unallocated,N/A,Premises-Related Expenditure,502,Cleaning and Domestic Supplies,5012,Revenue,CLEANING & JANITORIAL.CLEANING MATERIALS
02/12/2021,2243213,0.80,BUNZL UK LTD T/A BUNZL CLEANING & HYGIENE SUPPLIES,027747,Commissioning & Asset Management,Unallocated,N/A,Premises-Related Expenditure,502,Cleaning and Domestic Supplies,5012,Revenue,CLEANING & JANITORIAL.CLEANING MATERIALS
02/12/2021,2243213,2.16,BUNZL UK LTD T/A BUNZL CLEANING & HYGIENE SUPPLIES,027747,Commissioning & Asset Management,Unallocated,N/A,Premises-Related Expenditure,502,Cleaning and Domestic Supplies,5012,Revenue,CLEANING & JANITORIAL.CLEANING MATERIALS
02/12/2021,2243213,3.60,BUNZL UK LTD T/A BUNZL CLEANING & HYGIENE SUPPLIES,027747,Commissioning & Asset Management,Unallocated,N/A,Premises-Related Expenditure,502,Cleaning and Domestic Supplies,5012,Revenue,CLEANING & JANITORIAL.CLEANING MATERIALS
02/12/2021,2243213,4.26,BUNZL UK LTD T/A BUNZL CLEANING & HYGIENE SUPPLIES,027747,Commissioning & Asset Management,Unallocated,N/A,Premises-Related Expenditure,502,Cleaning and Domestic Supplies,5012,Revenue,CLEANING & JANITORIAL.CLEANING MATERIALS
02/12/2021,2243213,5.44,BUNZL UK LTD T/A BUNZL CLEANING & HYGIENE SUPPLIES,027747,Commissioning & Asset Management,Unallocated,N/A,Premises-Related Expenditure,502,Cleaning and Domestic Supplies,5012,Revenue,CLEANING & JANITORIAL.CLEANING MATERIALS
02/12/2021,2243213,5.58,BUNZL UK LTD T/A BUNZL CLEANING & HYGIENE SUPPLIES,027747,Commissioning & Asset Management,Unallocated,N/A,Premises-Related Expenditure,502,Cleaning and Domestic Supplies,5012,Revenue,CLEANING & JANITORIAL.CLEANING MATERIALS
02/12/2021,2243213,6.08,BUNZL UK LTD T/A BUNZL CLEANING & HYGIENE SUPPLIES,027747,"Environment, Housing & Leisure",Cultural & Related Services,104,Premises-Related Expenditure,502,Cleaning and Domestic Supplies,5012,Revenue,CLEANING & JANITORIAL.CLEANING MATERIALS
02/12/2021,2243213,7.56,BUNZL UK LTD T/A BUNZL CLEANING & HYGIENE SUPPLIES,027747,Commissioning & Asset Management,Unallocated,N/A,Premises-Related Expenditure,502,Cleaning and Domestic Supplies,5012,Revenue,CLEANING & JANITORIAL.CLEANING MATERIALS
02/12/2021,2243213,8.38,BUNZL UK LTD T/A BUNZL CLEANING & HYGIENE SUPPLIES,027747,"Environment, Housing & Leisure",Housing Services,108,Premises-Related Expenditure,502,Cleaning and Domestic Supplies,5012,Revenue,CLEANING & JANITORIAL.CLEANING MATERIALS
02/12/2021,2243213,9.48,BUNZL UK LTD T/A BUNZL CLEANING & HYGIENE SUPPLIES,027747,Commissioning & Asset Management,Unallocated,N/A,Premises-Related Expenditure,502,Cleaning and Domestic Supplies,5012,Revenue,CLEANING & JANITORIAL.CLEANING MATERIALS
02/12/2021,2243213,9.80,BUNZL UK LTD T/A BUNZL CLEANING & HYGIENE SUPPLIES,027747,Commissioning & Asset Management,Unallocated,N/A,Premises-Related Expenditure,502,Cleaning and Domestic Supplies,5012,Revenue,CLEANING & JANITORIAL.CLEANING MATERIALS
02/12/2021,2243213,12.09,BUNZL UK LTD T/A BUNZL CLEANING & HYGIENE SUPPLIES,027747,Commissioning & Asset Management,Unallocated,N/A,Premises-Related Expenditure,502,Cleaning and Domestic Supplies,5012,Revenue,CLEANING & JANITORIAL.CLEANING MATERIALS
02/12/2021,2243213,12.09,BUNZL UK LTD T/A BUNZL CLEANING & HYGIENE SUPPLIES,027747,Commissioning & Asset Management,Unallocated,N/A,Premises-Related Expenditure,502,Cleaning and Domestic Supplies,5012,Revenue,CLEANING & JANITORIAL.CLEANING MATERIALS
02/12/2021,2243213,12.09,BUNZL UK LTD T/A BUNZL CLEANING & HYGIENE SUPPLIES,027747,Commissioning & Asset Management,Unallocated,N/A,Premises-Related Expenditure,502,Cleaning and Domestic Supplies,5012,Revenue,CLEANING & JANITORIAL.CLEANING MATERIALS
02/12/2021,2243213,12.39,BUNZL UK LTD T/A BUNZL CLEANING & HYGIENE SUPPLIES,027747,"Environment, Housing & Leisure",Cultural & Related Services,104,Premises-Related Expenditure,502,Cleaning and Domestic Supplies,5012,Revenue,CLEANING & JANITORIAL.CLEANING MATERIALS
02/12/2021,2243213,12.80,BUNZL UK LTD T/A BUNZL CLEANING & HYGIENE SUPPLIES,027747,"Environment, Housing & Leisure",Cultural & Related Services,104,Premises-Related Expenditure,502,Cleaning and Domestic Supplies,5012,Revenue,CLEANING & JANITORIAL.CLEANING MATERIALS
02/12/2021,2243213,14.41,BUNZL UK LTD T/A BUNZL CLEANING & HYGIENE SUPPLIES,027747,Commissioning & Asset Management,Unallocated,N/A,Premises-Related Expenditure,502,Cleaning and Domestic Supplies,5012,Revenue,CLEANING & JANITORIAL.CLEANING MATERIALS
02/12/2021,2243213,20.18,BUNZL UK LTD T/A BUNZL CLEANING & HYGIENE SUPPLIES,027747,"Environment, Housing & Leisure",Cultural & Related Services,104,Premises-Related Expenditure,502,Cleaning and Domestic Supplies,5012,Revenue,CLEANING & JANITORIAL.CLEANING MATERIALS
02/12/2021,2243213,21.25,BUNZL UK LTD T/A BUNZL CLEANING & HYGIENE SUPPLIES,027747,Commissioning & Asset Management,Unallocated,N/A,Premises-Related Expenditure,502,Cleaning and Domestic Supplies,5012,Revenue,CLEANING & JANITORIAL.CLEANING MATERIALS
02/12/2021,2243213,21.25,BUNZL UK LTD T/A BUNZL CLEANING & HYGIENE SUPPLIES,027747,Commissioning & Asset Management,Unallocated,N/A,Premises-Related Expenditure,502,Cleaning and Domestic Supplies,5012,Revenue,CLEANING & JANITORIAL.CLEANING MATERIALS
02/12/2021,2243213,23.58,BUNZL UK LTD T/A BUNZL CLEANING & HYGIENE SUPPLIES,027747,"Environment, Housing & Leisure",Cultural & Related Services,104,Premises-Related Expenditure,502,Cleaning and Domestic Supplies,5012,Revenue,CLEANING & JANITORIAL.CLEANING MATERIALS
02/12/2021,2243213,24.04,BUNZL UK LTD T/A BUNZL CLEANING & HYGIENE SUPPLIES,027747,"Environment, Housing & Leisure",Cultural & Related Services,104,Premises-Related Expenditure,502,Cleaning and Domestic Supplies,5012,Revenue,CLEANING & JANITORIAL.CLEANING MATERIALS
02/12/2021,2243213,27.25,BUNZL UK LTD T/A BUNZL CLEANING & HYGIENE SUPPLIES,027747,Commissioning & Asset Management,Unallocated,N/A,Premises-Related Expenditure,502,Cleaning and Domestic Supplies,5012,Revenue,CLEANING & JANITORIAL.CLEANING MATERIALS
02/12/2021,2243213,30.90,BUNZL UK LTD T/A BUNZL CLEANING & HYGIENE SUPPLIES,027747,Commissioning & Asset Management,Unallocated,N/A,Premises-Related Expenditure,502,Cleaning and Domestic Supplies,5012,Revenue,CLEANING & JANITORIAL.CLEANING MATERIALS
02/12/2021,2243213,33.20,BUNZL UK LTD T/A BUNZL CLEANING & HYGIENE SUPPLIES,027747,"Environment, Housing & Leisure",Cultural & Related Services,104,Premises-Related Expenditure,502,Cleaning and Domestic Supplies,5012,Revenue,CLEANING & JANITORIAL.CLEANING MATERIALS
02/12/2021,2243213,33.48,BUNZL UK LTD T/A BUNZL CLEANING & HYGIENE SUPPLIES,027747,"Environment, Housing & Leisure",Cultural & Related Services,104,Premises-Related Expenditure,502,Cleaning and Domestic Supplies,5012,Revenue,CLEANING & JANITORIAL.CLEANING MATERIALS
02/12/2021,2243213,48.40,BUNZL UK LTD T/A BUNZL CLEANING & HYGIENE SUPPLIES,027747,"Environment, Housing & Leisure",Housing Services,108,Premises-Related Expenditure,502,Cleaning and Domestic Supplies,5012,Revenue,CLEANING & JANITORIAL.CLEANING MATERIALS
02/12/2021,2243213,55.56,BUNZL UK LTD T/A BUNZL CLEANING & HYGIENE SUPPLIES,027747,Commissioning & Asset Management,Unallocated,N/A,Premises-Related Expenditure,502,Cleaning and Domestic Supplies,5012,Revenue,CLEANING & JANITORIAL.CLEANING MATERIALS
02/12/2021,2243213,61.68,BUNZL UK LTD T/A BUNZL CLEANING & HYGIENE SUPPLIES,027747,"Environment, Housing & Leisure",Cultural & Related Services,104,Premises-Related Expenditure,502,Cleaning and Domestic Supplies,5012,Revenue,CLEANING & JANITORIAL.CLEANING MATERIALS
02/12/2021,2243213,62.49,BUNZL UK LTD T/A BUNZL CLEANING & HYGIENE SUPPLIES,027747,Commissioning & Asset Management,Unallocated,N/A,Premises-Related Expenditure,502,Cleaning and Domestic Supplies,5012,Revenue,CLEANING & JANITORIAL.CLEANING MATERIALS
02/12/2021,2243213,87.12,BUNZL UK LTD T/A BUNZL CLEANING & HYGIENE SUPPLIES,027747,Commissioning & Asset Management,Unallocated,N/A,Premises-Related Expenditure,502,Cleaning and Domestic Supplies,5012,Revenue,CLEANING & JANITORIAL.CLEANING MATERIALS
02/12/2021,2243213,99.50,BUNZL UK LTD T/A BUNZL CLEANING & HYGIENE SUPPLIES,027747,Commissioning & Asset Management,Unallocated,N/A,Premises-Related Expenditure,502,Cleaning and Domestic Supplies,5012,Revenue,CLEANING & JANITORIAL.CLEANING MATERIALS
02/12/2021,2243213,111.20,BUNZL UK LTD T/A BUNZL CLEANING & HYGIENE SUPPLIES,027747,Commissioning & Asset Management,Unallocated,N/A,Premises-Related Expenditure,502,Cleaning and Domestic Supplies,5012,Revenue,CLEANING & JANITORIAL.CLEANING MATERIALS
02/12/2021,2243213,116.96,BUNZL UK LTD T/A BUNZL CLEANING & HYGIENE SUPPLIES,027747,Commissioning & Asset Management,Unallocated,N/A,Premises-Related Expenditure,502,Cleaning and Domestic Supplies,5012,Revenue,CLEANING & JANITORIAL.CLEANING MATERIALS
02/12/2021,2243213,185.30,BUNZL UK LTD T/A BUNZL CLEANING & HYGIENE SUPPLIES,027747,"Environment, Housing & Leisure",Environmental & Regulatory Services,105,Premises-Related Expenditure,502,Cleaning and Domestic Supplies,5012,Revenue,CLEANING & JANITORIAL.CLEANING MATERIALS
02/12/2021,2243213,196.90,BUNZL UK LTD T/A BUNZL CLEANING & HYGIENE SUPPLIES,027747,Commissioning & Asset Management,Unallocated,N/A,Premises-Related Expenditure,502,Cleaning and Domestic Supplies,5012,Revenue,CLEANING & JANITORIAL.CLEANING MATERIALS
02/12/2021,2243213,196.90,BUNZL UK LTD T/A BUNZL CLEANING & HYGIENE SUPPLIES,027747,"Environment, Housing & Leisure",Housing Services,108,Premises-Related Expenditure,502,Cleaning and Domestic Supplies,5012,Revenue,CLEANING & JANITORIAL.CLEANING MATERIALS
02/12/2021,2243213,312.40,BUNZL UK LTD T/A BUNZL CLEANING & HYGIENE SUPPLIES,027747,"Environment, Housing & Leisure",Environmental & Regulatory Services,105,Premises-Related Expenditure,502,Cleaning and Domestic Supplies,5012,Revenue,CLEANING & JANITORIAL.CLEANING MATERIALS
02/12/2021,2243213,840.00,BUNZL UK LTD T/A BUNZL CLEANING & HYGIENE SUPPLIES,027747,Commissioning & Asset Management,Unallocated,N/A,Premises-Related Expenditure,502,Cleaning and Domestic Supplies,5012,Revenue,CLEANING & JANITORIAL.CLEANING MATERIALS
02/12/2021,2243213,2192.40,BUNZL UK LTD T/A BUNZL CLEANING & HYGIENE SUPPLIES,027747,Commissioning & Asset Management,Unallocated,N/A,Premises-Related Expenditure,502,Cleaning and Domestic Supplies,5012,Revenue,CLEANING & JANITORIAL.CLEANING MATERIALS
02/12/2021,2243215,16.00,Redacted Personal Data,393838,Housing Operations,Housing Revenue Account,N/A,Supplies and Services,504,Equipment,5023,Revenue,FURNITURE.DOMESTIC
02/12/2021,2243215,70.72,Redacted Personal Data,393838,Housing Operations,Housing Services,108,Supplies and Services,504,Equipment,5023,Revenue,FURNITURE.DOMESTIC
02/12/2021,2243215,84.25,Redacted Personal Data,393838,Housing Operations,Housing Services,108,Supplies and Services,504,Equipment,5023,Revenue,FURNITURE.DOMESTIC
02/12/2021,2243215,84.25,Redacted Personal Data,393838,Housing Operations,Housing Services,108,Supplies and Services,504,Equipment,5023,Revenue,FURNITURE.DOMESTIC
02/12/2021,2243215,107.51,Redacted Personal Data,393838,Housing Operations,Housing Services,108,Supplies and Services,504,Equipment,5023,Revenue,FURNITURE.DOMESTIC
02/12/2021,2243215,151.20,Redacted Personal Data,393838,Housing Operations,Housing Services,108,Supplies and Services,504,Equipment,5023,Revenue,FURNITURE.DOMESTIC
02/12/2021,2243215,189.60,Redacted Personal Data,393838,Housing Operations,Housing Services,108,Supplies and Services,504,Equipment,5023,Revenue,FURNITURE.DOMESTIC
02/12/2021,2243215,216.00,Redacted Personal Data,393838,Housing Operations,Housing Services,108,Supplies and Services,504,Equipment,5023,Revenue,FURNITURE.DOMESTIC
02/12/2021,2243215,216.00,Redacted Personal Data,393838,Housing Operations,Housing Services,108,Supplies and Services,504,Equipment,5023,Revenue,FURNITURE.DOMESTIC
02/12/2021,2243215,229.23,Redacted Personal Data,393838,Housing Operations,Housing Services,108,Supplies and Services,504,Equipment,5023,Revenue,FURNITURE.DOMESTIC
02/12/2021,2243215,229.23,Redacted Personal Data,393838,Housing Operations,Housing Services,108,Supplies and Services,504,Equipment,5023,Revenue,FURNITURE.DOMESTIC
02/12/2021,2243215,229.23,Redacted Personal Data,393838,Housing Operations,Housing Services,108,Supplies and Services,504,Equipment,5023,Revenue,FURNITURE.DOMESTIC
02/12/2021,2243215,229.23,Redacted Personal Data,393838,Housing Operations,Housing Services,108,Supplies and Services,504,Equipment,5023,Revenue,FURNITURE.DOMESTIC
02/12/2021,2243215,240.03,Redacted Personal Data,393838,Housing Operations,Housing Services,108,Supplies and Services,504,Equipment,5023,Revenue,FURNITURE.DOMESTIC
02/12/2021,2243215,240.03,Redacted Personal Data,393838,Housing Operations,Housing Services,108,Supplies and Services,504,Equipment,5023,Revenue,FURNITURE.DOMESTIC
02/12/2021,2243215,249.50,Redacted Personal Data,393838,Housing Operations,Housing Services,108,Supplies and Services,504,Equipment,5023,Revenue,FURNITURE.DOMESTIC
02/12/2021,2243215,249.50,Redacted Personal Data,393838,Housing Operations,Housing Services,108,Supplies and Services,504,Equipment,5023,Revenue,FURNITURE.DOMESTIC
02/12/2021,2243215,249.50,Redacted Personal Data,393838,Housing Operations,Housing Services,108,Supplies and Services,504,Equipment,5023,Revenue,FURNITURE.DOMESTIC
02/12/2021,2243215,249.50,Redacted Personal Data,393838,Housing Operations,Housing Services,108,Supplies and Services,504,Equipment,5023,Revenue,FURNITURE.DOMESTIC
02/12/2021,2243215,249.50,Redacted Personal Data,393838,Housing Operations,Housing Services,108,Supplies and Services,504,Equipment,5023,Revenue,FURNITURE.DOMESTIC
02/12/2021,2243215,284.40,Redacted Personal Data,393838,Housing Operations,Housing Services,108,Supplies and Services,504,Equipment,5023,Revenue,FURNITURE.DOMESTIC
02/12/2021,2243215,302.40,Redacted Personal Data,393838,Housing Operations,Housing Services,108,Supplies and Services,504,Equipment,5023,Revenue,FURNITURE.DOMESTIC
02/12/2021,2243215,457.09,Redacted Personal Data,393838,"Environment, Housing & Leisure",Housing Services,108,Supplies and Services,504,Equipment,5023,Revenue,FURNITURE.DOMESTIC
02/12/2021,2243215,512.44,Redacted Personal Data,393838,Housing Operations,Housing Revenue Account,N/A,Supplies and Services,504,Equipment,5023,Revenue,FURNITURE.DOMESTIC
02/12/2021,2243215,2557.10,Redacted Personal Data,393838,"Environment, Housing & Leisure",Housing Services,108,Supplies and Services,504,Equipment,5023,Revenue,FURNITURE.DOMESTIC
02/12/2021,2243215,4135.00,Redacted Personal Data,393838,"Environment, Housing & Leisure",Housing Services,108,Supplies and Services,504,Equipment,5023,Revenue,FURNITURE.DOMESTIC
02/12/2021,2243215,4907.00,Redacted Personal Data,393838,"Environment, Housing & Leisure",Housing Services,108,Supplies and Services,504,Equipment,5023,Revenue,FURNITURE.DOMESTIC
02/12/2021,2243222,2358.68,STANNAH LIFT SERVICES LIMITED,102817,Capital,Capital,Capital,Third Party Payments,505,Private Contractors,5042,Capital,SOCIAL CARE.FITTED EQUIPMENT
02/12/2021,2243223,747.32,STANNAH LIFT SERVICES LIMITED,102817,"Health, Education, Care and Safeguarding",Adult Social Care,101,Third Party Payments,505,Private Contractors,5042,Revenue,SOCIAL CARE.FITTED EQUIPMENT
02/12/2021,2243223,13226.56,STANNAH LIFT SERVICES LIMITED,102817,Capital,Capital,Capital,Third Party Payments,505,Private Contractors,5042,Capital,SOCIAL CARE.FITTED EQUIPMENT
02/12/2021,2243227,519.94,ASH DEBTOR REFUNDS,299979,Capital,General Fund,N/A,Capital,Capital,Capital,Capital,Capital,NON INFLUENCIBLE.NON INFLUENCIBLE
02/12/2021,2243228,903.00,GENERAL BACS PAYMENTS - BSS ONLY,381148,Central Items,Holding A/C,N/A,Control Accounts,N/A,Control Accounts,N/A,Revenue,NON INFLUENCIBLE.NON INFLUENCIBLE
02/12/2021,2243229,387.20,GENERAL BACS PAYMENTS - BSS ONLY,381148,Commissioning & Asset Management,Children's & Education Services,103,Transport,503,Recharges,5017,Revenue,NON INFLUENCIBLE.NON INFLUENCIBLE
02/12/2021,2243230,316.80,GENERAL BACS PAYMENTS - BSS ONLY,381148,Commissioning & Asset Management,Children's & Education Services,103,Transport,503,Recharges,5017,Revenue,NON INFLUENCIBLE.NON INFLUENCIBLE
02/12/2021,2243237,260.00,GENERAL BACS PAYMENTS - BSS ONLY,381148,Commissioning & Asset Management,Children's & Education Services,103,Transport,503,Recharges,5017,Revenue,NON INFLUENCIBLE.NON INFLUENCIBLE
02/12/2021,2243239,348.00,GENERAL BACS PAYMENTS - BSS ONLY,381148,Commissioning & Asset Management,Children's & Education Services,103,Transport,503,Recharges,5017,Revenue,NON INFLUENCIBLE.NON INFLUENCIBLE
02/12/2021,2243240,1553.00,RICHARDSON DEES PRIMARY SCHOOL,345412,Capital,Capital,Capital,Supplies and Services,504,Communications & Computing,5028,Capital,NON INFLUENCIBLE.NT SCHOOLS
02/12/2021,2243240,2800.00,RICHARDSON DEES PRIMARY SCHOOL,345412,Capital,Capital,Capital,Supplies and Services,504,Communications & Computing,5028,Capital,NON INFLUENCIBLE.NT SCHOOLS
02/12/2021,2243242,400.00,LOTUS THERAPY,402248,"Health, Education, Care and Safeguarding",Children's & Education Services,103,Third Party Payments,505,Private Contractors,5042,Revenue,SOCIAL CARE.ADOPTION SERVICES
02/12/2021,2243243,-1200.00,MIND,316804,Resources,Central Services,102,Supplies and Services,504,Contribution to Provisions,5033,Revenue,HUMAN RESOURCES.TRAINING & CONFERENCES
02/12/2021,2243243,600.00,MIND,316804,Resources,Children's & Education Services,103,Supplies and Services,504,Miscellaneous Expenses,5034,Revenue,HUMAN RESOURCES.TRAINING & CONFERENCES
02/12/2021,2243243,2400.00,MIND,316804,Resources,Central Services,102,Supplies and Services,504,Contribution to Provisions,5033,Revenue,HUMAN RESOURCES.TRAINING & CONFERENCES
02/12/2021,2243244,940.10,ARK SEARCH LIMITED,401396,Resources,Children's & Education Services,103,Supplies and Services,504,Miscellaneous Expenses,5034,Revenue,HUMAN RESOURCES.TEMPORARY & AGENCY STAFF
02/12/2021,2243245,78.00,BRENNTAG UK LIMITED,382522,"Environment, Housing & Leisure",Cultural & Related Services,104,Supplies and Services,504,Equipment,5023,Revenue,SPORTS & PLAYGROUND EQUIPMENT.POOL MAINTENANCE
02/12/2021,2243245,536.83,BRENNTAG UK LIMITED,382522,"Environment, Housing & Leisure",Cultural & Related Services,104,Supplies and Services,504,Equipment,5023,Revenue,SPORTS & PLAYGROUND EQUIPMENT.POOL MAINTENANCE
02/12/2021,2243245,613.52,BRENNTAG UK LIMITED,382522,"Environment, Housing & Leisure",Cultural & Related Services,104,Supplies and Services,504,Equipment,5023,Revenue,SPORTS & PLAYGROUND EQUIPMENT.POOL MAINTENANCE
02/12/2021,2243246,751.50,STEPS SUPPORT,400992,"Health, Education, Care and Safeguarding",Children's & Education Services,103,Supplies and Services,504,Miscellaneous Expenses,5034,Revenue,SOCIAL CARE.CHILDCARE SERVICES
02/12/2021,2243247,5.95,SPEAK-IT SOLUTIONS LIMITED,368426,"Health, Education, Care and Safeguarding",Children's & Education Services,103,Supplies and Services,504,Miscellaneous Expenses,5034,Revenue,ICT.HARDWARE
02/12/2021,2243247,339.00,SPEAK-IT SOLUTIONS LIMITED,368426,"Health, Education, Care and Safeguarding",Children's & Education Services,103,Supplies and Services,504,Miscellaneous Expenses,5034,Revenue,ICT.HARDWARE
02/12/2021,2243248,400.00,NORTH EAST ADOPTION THERAPY SERVICES LTD,400034,"Health, Education, Care and Safeguarding",Children's & Education Services,103,Third Party Payments,505,Private Contractors,5042,Revenue,"SOCIAL CARE.ADVICE, ADVOCACY & COUNSELLING"
02/12/2021,2243248,550.00,NORTH EAST ADOPTION THERAPY SERVICES LTD,400034,"Health, Education, Care and Safeguarding",Children's & Education Services,103,Third Party Payments,505,Private Contractors,5042,Revenue,"SOCIAL CARE.ADVICE, ADVOCACY & COUNSELLING"
02/12/2021,2243248,550.00,NORTH EAST ADOPTION THERAPY SERVICES LTD,400034,"Health, Education, Care and Safeguarding",Children's & Education Services,103,Third Party Payments,505,Private Contractors,5042,Revenue,"SOCIAL CARE.ADVICE, ADVOCACY & COUNSELLING"
02/12/2021,2243248,600.00,NORTH EAST ADOPTION THERAPY SERVICES LTD,400034,"Health, Education, Care and Safeguarding",Children's & Education Services,103,Third Party Payments,505,Private Contractors,5042,Revenue,"SOCIAL CARE.ADVICE, ADVOCACY & COUNSELLING"
02/12/2021,2243248,800.00,NORTH EAST ADOPTION THERAPY SERVICES LTD,400034,"Health, Education, Care and Safeguarding",Children's & Education Services,103,Third Party Payments,505,Private Contractors,5042,Revenue,"SOCIAL CARE.ADVICE, ADVOCACY & COUNSELLING"
02/12/2021,2243248,900.00,NORTH EAST ADOPTION THERAPY SERVICES LTD,400034,"Health, Education, Care and Safeguarding",Children's & Education Services,103,Third Party Payments,505,Private Contractors,5042,Revenue,"SOCIAL CARE.ADVICE, ADVOCACY & COUNSELLING"
02/12/2021,2243248,1450.00,NORTH EAST ADOPTION THERAPY SERVICES LTD,400034,"Health, Education, Care and Safeguarding",Children's & Education Services,103,Third Party Payments,505,Private Contractors,5042,Revenue,"SOCIAL CARE.ADVICE, ADVOCACY & COUNSELLING"
02/12/2021,2243249,624.80,HCS MECHANICAL SERVICES,399863,Housing Property and Construction,Housing Services,108,Capital,Capital,Capital,Capital,Revenue,ENVIRONMENTAL SERVICES.DRAINAGE & SEWAGE CLEARANCE
02/12/2021,2243253,27.00,BRYAN CRISP & SON SPECIALIST SERVICES LIMITED,399128,Housing Property and Construction,Housing Services,108,Capital,Capital,Capital,Capital,Revenue,REPAIRS & MAINTENANCE.REPAIRS & MAINTENANCE
02/12/2021,2243253,48.00,BRYAN CRISP & SON SPECIALIST SERVICES LIMITED,399128,Housing Property and Construction,Housing Services,108,Capital,Capital,Capital,Capital,Revenue,REPAIRS & MAINTENANCE.REPAIRS & MAINTENANCE
02/12/2021,2243253,58.50,BRYAN CRISP & SON SPECIALIST SERVICES LIMITED,399128,Housing Property and Construction,Housing Services,108,Capital,Capital,Capital,Capital,Revenue,REPAIRS & MAINTENANCE.REPAIRS & MAINTENANCE
02/12/2021,2243253,72.00,BRYAN CRISP & SON SPECIALIST SERVICES LIMITED,399128,Housing Property and Construction,Housing Services,108,Capital,Capital,Capital,Capital,Revenue,REPAIRS & MAINTENANCE.REPAIRS & MAINTENANCE
02/12/2021,2243253,72.00,BRYAN CRISP & SON SPECIALIST SERVICES LIMITED,399128,Housing Property and Construction,Housing Services,108,Capital,Capital,Capital,Capital,Revenue,REPAIRS & MAINTENANCE.REPAIRS & MAINTENANCE
02/12/2021,2243253,80.00,BRYAN CRISP & SON SPECIALIST SERVICES LIMITED,399128,Housing Property and Construction,Housing Services,108,Capital,Capital,Capital,Capital,Revenue,REPAIRS & MAINTENANCE.REPAIRS & MAINTENANCE
02/12/2021,2243253,90.00,BRYAN CRISP & SON SPECIALIST SERVICES LIMITED,399128,Housing Property and Construction,Housing Services,108,Capital,Capital,Capital,Capital,Revenue,REPAIRS & MAINTENANCE.REPAIRS & MAINTENANCE
02/12/2021,2243253,180.00,BRYAN CRISP & SON SPECIALIST SERVICES LIMITED,399128,Housing Property and Construction,Housing Services,108,Capital,Capital,Capital,Capital,Revenue,REPAIRS & MAINTENANCE.REPAIRS & MAINTENANCE
02/12/2021,2243253,390.00,BRYAN CRISP & SON SPECIALIST SERVICES LIMITED,399128,Housing Property and Construction,Housing Services,108,Capital,Capital,Capital,Capital,Revenue,REPAIRS & MAINTENANCE.REPAIRS & MAINTENANCE
02/12/2021,2243257,-126.00,FLOW TECH WATER SERVICES,345337,Central Items,Holding A/C,N/A,Supplies and Services,504,Miscellaneous Expenses,5034,Revenue,REPAIRS & MAINTENANCE.REPAIRS & MAINTENANCE
02/12/2021,2243257,790.00,FLOW TECH WATER SERVICES,345337,Capital,Capital,Capital,Capital,Capital,Capital,Capital,Capital,REPAIRS & MAINTENANCE.REPAIRS & MAINTENANCE
02/12/2021,2243258,4000.00,Redacted Personal Data,398274,"Health, Education, Care and Safeguarding",Children's & Education Services,103,Third Party Payments,505,Private Contractors,5042,Revenue,SOCIAL CARE.ADOPTION SERVICES
02/12/2021,2243259,245.16,DFP SERVICES,331933,Housing Property and Construction,Housing Services,108,Capital,Capital,Capital,Capital,Revenue,REPAIRS & MAINTENANCE.REPAIRS & MAINTENANCE
02/12/2021,2243259,330.00,DFP SERVICES,331933,Housing Property and Construction,Housing Services,108,Capital,Capital,Capital,Capital,Revenue,REPAIRS & MAINTENANCE.REPAIRS & MAINTENANCE
02/12/2021,2243260,218.75,ASTRAL CONTROL SERVICES LTD,392712,Housing Property and Construction,Housing Services,108,Capital,Capital,Capital,Capital,Revenue,REPAIRS & MAINTENANCE.REPAIRS & MAINTENANCE
02/12/2021,2243262,253.50,BOLTON GATE SERVICES LTD,366997,Housing Property and Construction,Housing Services,108,Capital,Capital,Capital,Capital,Revenue,REPAIRS & MAINTENANCE.REPAIRS & MAINTENANCE
02/12/2021,2243263,2500.00,ALIGN PROPERTY PARTNERS LTD,397966,Capital,Capital,Capital,Capital,Capital,Capital,Capital,Capital,REPAIRS & MAINTENANCE.REPAIRS & MAINTENANCE
02/12/2021,2243263,2500.00,ALIGN PROPERTY PARTNERS LTD,397966,Capital,Capital,Capital,Capital,Capital,Capital,Capital,Capital,REPAIRS & MAINTENANCE.REPAIRS & MAINTENANCE
02/12/2021,2243263,2500.00,ALIGN PROPERTY PARTNERS LTD,397966,Capital,Capital,Capital,Capital,Capital,Capital,Capital,Capital,REPAIRS & MAINTENANCE.REPAIRS & MAINTENANCE
02/12/2021,2243264,2665.00,GFA GASTECH LTD,372882,Housing Property and Construction,Housing Services,108,Capital,Capital,Capital,Capital,Revenue,REPAIRS & MAINTENANCE.REPAIRS & MAINTENANCE
02/12/2021,2243265,2.32,REXEL UK LTD,347413,Housing Property and Construction,Housing Services,108,Supplies and Services,504,Equipment,5023,Revenue,STATIONERY.STATIONERY
02/12/2021,2243265,7.20,REXEL UK LTD,347413,Housing Property and Construction,Housing Services,108,Supplies and Services,504,Equipment,5023,Revenue,STATIONERY.STATIONERY
02/12/2021,2243265,76.50,REXEL UK LTD,347413,Housing Property and Construction,Housing Services,108,Supplies and Services,504,Equipment,5023,Revenue,STATIONERY.STATIONERY
02/12/2021,2243265,166.40,REXEL UK LTD,347413,Housing Property and Construction,Housing Services,108,Supplies and Services,504,Equipment,5023,Revenue,STATIONERY.STATIONERY
02/12/2021,2243265,171.75,REXEL UK LTD,347413,Housing Property and Construction,Housing Services,108,Supplies and Services,504,Equipment,5023,Revenue,STATIONERY.STATIONERY
02/12/2021,2243265,998.40,REXEL UK LTD,347413,Housing Property and Construction,Housing Services,108,Supplies and Services,504,Equipment,5023,Revenue,STATIONERY.STATIONERY
02/12/2021,2243265,1164.80,REXEL UK LTD,347413,Housing Property and Construction,Housing Services,108,Supplies and Services,504,Equipment,5023,Revenue,STATIONERY.STATIONERY
02/12/2021,2243267,500.00,Redacted Personal Data,399669,Central Items,Planning Services,110,Capital,Capital,Capital,Capital,Revenue,NON INFLUENCIBLE.GRANTS
02/12/2021,2243268,500.00,Redacted Personal Data,399669,Central Items,Planning Services,110,Capital,Capital,Capital,Capital,Revenue,NON INFLUENCIBLE.GRANTS
02/12/2021,2243269,500.00,Redacted Personal Data,399669,Central Items,Planning Services,110,Capital,Capital,Capital,Capital,Revenue,NON INFLUENCIBLE.GRANTS
02/12/2021,2243270,500.00,Redacted Personal Data,399669,Central Items,Planning Services,110,Capital,Capital,Capital,Capital,Revenue,NON INFLUENCIBLE.GRANTS
02/12/2021,2243271,500.00,Redacted Personal Data,399669,Central Items,Planning Services,110,Capital,Capital,Capital,Capital,Revenue,NON INFLUENCIBLE.GRANTS
02/12/2021,2243272,500.00,Redacted Personal Data,399669,Central Items,Planning Services,110,Capital,Capital,Capital,Capital,Revenue,NON INFLUENCIBLE.GRANTS
02/12/2021,2243273,500.00,Redacted Personal Data,399669,Central Items,Planning Services,110,Capital,Capital,Capital,Capital,Revenue,NON INFLUENCIBLE.GRANTS
02/12/2021,2243274,500.00,Redacted Personal Data,399669,Central Items,Planning Services,110,Capital,Capital,Capital,Capital,Revenue,NON INFLUENCIBLE.GRANTS
02/12/2021,2243275,500.00,Redacted Personal Data,399669,Central Items,Planning Services,110,Capital,Capital,Capital,Capital,Revenue,NON INFLUENCIBLE.GRANTS
02/12/2021,2243276,500.00,Redacted Personal Data,399669,Central Items,Planning Services,110,Capital,Capital,Capital,Capital,Revenue,NON INFLUENCIBLE.GRANTS
02/12/2021,2243277,375.96,ASH DEBTOR REFUNDS,299979,Capital,General Fund,N/A,Capital,Capital,Capital,Capital,Capital,NON INFLUENCIBLE.NON INFLUENCIBLE
02/12/2021,2243280,287.92,ASH DEBTOR REFUNDS,299979,Capital,General Fund,N/A,Capital,Capital,Capital,Capital,Capital,NON INFLUENCIBLE.NON INFLUENCIBLE
02/12/2021,2243286,126.90,CROWN PAINTS LTD,397733,Housing Property and Construction,Housing Services,108,Supplies and Services,504,Equipment,5023,Revenue,REPAIRS & MAINTENANCE.REPAIRS & MAINTENANCE
02/12/2021,2243286,666.00,CROWN PAINTS LTD,397733,Housing Property and Construction,Housing Services,108,Supplies and Services,504,Equipment,5023,Revenue,REPAIRS & MAINTENANCE.REPAIRS & MAINTENANCE
02/12/2021,2243287,10.00,J T DOVE LTD,004226,Housing Property and Construction,Housing Services,108,Supplies and Services,504,Equipment,5023,Revenue,BUILDING MATERIALS.GENERAL MATERIALS
02/12/2021,2243287,13.50,J T DOVE LTD,004226,Housing Property and Construction,Housing Services,108,Supplies and Services,504,Equipment,5023,Revenue,BUILDING MATERIALS.GENERAL MATERIALS
02/12/2021,2243287,15.75,J T DOVE LTD,004226,Housing Property and Construction,Housing Services,108,Supplies and Services,504,Equipment,5023,Revenue,BUILDING MATERIALS.GENERAL MATERIALS
02/12/2021,2243287,18.61,J T DOVE LTD,004226,Housing Property and Construction,Housing Services,108,Supplies and Services,504,Equipment,5023,Revenue,BUILDING MATERIALS.GENERAL MATERIALS
02/12/2021,2243287,22.00,J T DOVE LTD,004226,Housing Property and Construction,Housing Services,108,Supplies and Services,504,Equipment,5023,Revenue,BUILDING MATERIALS.GENERAL MATERIALS
02/12/2021,2243287,22.00,J T DOVE LTD,004226,Housing Property and Construction,Housing Services,108,Supplies and Services,504,Equipment,5023,Revenue,BUILDING MATERIALS.GENERAL MATERIALS
02/12/2021,2243287,40.00,J T DOVE LTD,004226,Housing Property and Construction,Housing Services,108,Supplies and Services,504,Equipment,5023,Revenue,BUILDING MATERIALS.GENERAL MATERIALS
02/12/2021,2243287,50.00,J T DOVE LTD,004226,Housing Property and Construction,Housing Services,108,Supplies and Services,504,Equipment,5023,Revenue,BUILDING MATERIALS.GENERAL MATERIALS
02/12/2021,2243287,50.00,J T DOVE LTD,004226,Housing Property and Construction,Housing Services,108,Supplies and Services,504,Equipment,5023,Revenue,BUILDING MATERIALS.GENERAL MATERIALS
02/12/2021,2243287,54.00,J T DOVE LTD,004226,Housing Property and Construction,Housing Services,108,Supplies and Services,504,Equipment,5023,Revenue,BUILDING MATERIALS.GENERAL MATERIALS
02/12/2021,2243287,63.70,J T DOVE LTD,004226,Housing Property and Construction,Housing Services,108,Supplies and Services,504,Equipment,5023,Revenue,BUILDING MATERIALS.GENERAL MATERIALS
02/12/2021,2243287,70.50,J T DOVE LTD,004226,Housing Property and Construction,Housing Services,108,Supplies and Services,504,Equipment,5023,Revenue,BUILDING MATERIALS.GENERAL MATERIALS
02/12/2021,2243287,84.38,J T DOVE LTD,004226,Housing Property and Construction,Housing Services,108,Supplies and Services,504,Equipment,5023,Revenue,BUILDING MATERIALS.GENERAL MATERIALS
02/12/2021,2243287,154.76,J T DOVE LTD,004226,Housing Property and Construction,Housing Services,108,Supplies and Services,504,Equipment,5023,Revenue,BUILDING MATERIALS.GENERAL MATERIALS
02/12/2021,2243287,171.00,J T DOVE LTD,004226,Housing Property and Construction,Housing Services,108,Supplies and Services,504,Equipment,5023,Revenue,BUILDING MATERIALS.GENERAL MATERIALS
02/12/2021,2243287,185.20,J T DOVE LTD,004226,Housing Property and Construction,Housing Services,108,Supplies and Services,504,Equipment,5023,Revenue,BUILDING MATERIALS.GENERAL MATERIALS
02/12/2021,2243287,254.40,J T DOVE LTD,004226,Housing Property and Construction,Housing Services,108,Supplies and Services,504,Equipment,5023,Revenue,BUILDING MATERIALS.GENERAL MATERIALS
02/12/2021,2243287,266.70,J T DOVE LTD,004226,Housing Property and Construction,Housing Services,108,Supplies and Services,504,Equipment,5023,Revenue,BUILDING MATERIALS.GENERAL MATERIALS
02/12/2021,2243287,330.40,J T DOVE LTD,004226,Housing Property and Construction,Housing Services,108,Supplies and Services,504,Equipment,5023,Revenue,BUILDING MATERIALS.GENERAL MATERIALS
02/12/2021,2243287,444.00,J T DOVE LTD,004226,Housing Property and Construction,Housing Services,108,Supplies and Services,504,Equipment,5023,Revenue,BUILDING MATERIALS.GENERAL MATERIALS
02/12/2021,2243287,477.50,J T DOVE LTD,004226,Housing Property and Construction,Housing Services,108,Supplies and Services,504,Equipment,5023,Revenue,BUILDING MATERIALS.GENERAL MATERIALS
02/12/2021,2243287,513.30,J T DOVE LTD,004226,Housing Property and Construction,Housing Services,108,Supplies and Services,504,Equipment,5023,Revenue,BUILDING MATERIALS.GENERAL MATERIALS
02/12/2021,2243287,554.08,J T DOVE LTD,004226,Housing Property and Construction,Housing Services,108,Supplies and Services,504,Equipment,5023,Revenue,BUILDING MATERIALS.GENERAL MATERIALS
02/12/2021,2243287,592.00,J T DOVE LTD,004226,Housing Property and Construction,Housing Services,108,Supplies and Services,504,Equipment,5023,Revenue,BUILDING MATERIALS.GENERAL MATERIALS
02/12/2021,2243287,640.77,J T DOVE LTD,004226,Housing Property and Construction,Housing Services,108,Supplies and Services,504,Equipment,5023,Revenue,BUILDING MATERIALS.GENERAL MATERIALS
02/12/2021,2243287,652.00,J T DOVE LTD,004226,Housing Property and Construction,Housing Services,108,Supplies and Services,504,Equipment,5023,Revenue,BUILDING MATERIALS.GENERAL MATERIALS
02/12/2021,2243288,-404.60,CROSSLING & CO LTD,003416,Housing Property and Construction,Housing Services,108,Supplies and Services,504,Equipment,5023,Revenue,REPAIRS & MAINTENANCE.REPAIRS & MAINTENANCE
02/12/2021,2243288,0.76,CROSSLING & CO LTD,003416,Housing Property and Construction,Housing Services,108,Supplies and Services,504,Equipment,5023,Revenue,REPAIRS & MAINTENANCE.REPAIRS & MAINTENANCE
02/12/2021,2243288,0.84,CROSSLING & CO LTD,003416,Housing Property and Construction,Housing Services,108,Supplies and Services,504,Equipment,5023,Revenue,REPAIRS & MAINTENANCE.REPAIRS & MAINTENANCE
02/12/2021,2243288,2.00,CROSSLING & CO LTD,003416,Housing Property and Construction,Housing Services,108,Supplies and Services,504,Equipment,5023,Revenue,REPAIRS & MAINTENANCE.REPAIRS & MAINTENANCE
02/12/2021,2243288,2.15,CROSSLING & CO LTD,003416,Housing Property and Construction,Housing Services,108,Supplies and Services,504,Equipment,5023,Revenue,REPAIRS & MAINTENANCE.REPAIRS & MAINTENANCE
02/12/2021,2243288,3.55,CROSSLING & CO LTD,003416,Housing Property and Construction,Housing Services,108,Supplies and Services,504,Equipment,5023,Revenue,REPAIRS & MAINTENANCE.REPAIRS & MAINTENANCE
02/12/2021,2243288,4.20,CROSSLING & CO LTD,003416,Housing Property and Construction,Housing Services,108,Supplies and Services,504,Equipment,5023,Revenue,REPAIRS & MAINTENANCE.REPAIRS & MAINTENANCE
02/12/2021,2243288,4.45,CROSSLING & CO LTD,003416,Housing Property and Construction,Housing Services,108,Supplies and Services,504,Equipment,5023,Revenue,REPAIRS & MAINTENANCE.REPAIRS & MAINTENANCE
02/12/2021,2243288,4.80,CROSSLING & CO LTD,003416,Housing Property and Construction,Housing Services,108,Supplies and Services,504,Equipment,5023,Revenue,REPAIRS & MAINTENANCE.REPAIRS & MAINTENANCE
02/12/2021,2243288,7.20,CROSSLING & CO LTD,003416,Housing Property and Construction,Housing Services,108,Supplies and Services,504,Equipment,5023,Revenue,REPAIRS & MAINTENANCE.REPAIRS & MAINTENANCE
02/12/2021,2243288,7.84,CROSSLING & CO LTD,003416,Housing Property and Construction,Housing Services,108,Supplies and Services,504,Equipment,5023,Revenue,REPAIRS & MAINTENANCE.REPAIRS & MAINTENANCE
02/12/2021,2243288,7.90,CROSSLING & CO LTD,003416,Housing Property and Construction,Housing Services,108,Supplies and Services,504,Equipment,5023,Revenue,REPAIRS & MAINTENANCE.REPAIRS & MAINTENANCE
02/12/2021,2243288,8.10,CROSSLING & CO LTD,003416,Housing Property and Construction,Housing Services,108,Supplies and Services,504,Equipment,5023,Revenue,REPAIRS & MAINTENANCE.REPAIRS & MAINTENANCE
02/12/2021,2243288,8.40,CROSSLING & CO LTD,003416,Housing Property and Construction,Housing Services,108,Supplies and Services,504,Equipment,5023,Revenue,REPAIRS & MAINTENANCE.REPAIRS & MAINTENANCE
02/12/2021,2243288,12.15,CROSSLING & CO LTD,003416,Housing Property and Construction,Housing Services,108,Supplies and Services,504,Equipment,5023,Revenue,REPAIRS & MAINTENANCE.REPAIRS & MAINTENANCE
02/12/2021,2243288,13.60,CROSSLING & CO LTD,003416,Housing Property and Construction,Housing Services,108,Supplies and Services,504,Equipment,5023,Revenue,REPAIRS & MAINTENANCE.REPAIRS & MAINTENANCE
02/12/2021,2243288,15.50,CROSSLING & CO LTD,003416,Housing Property and Construction,Housing Services,108,Supplies and Services,504,Equipment,5023,Revenue,REPAIRS & MAINTENANCE.REPAIRS & MAINTENANCE
02/12/2021,2243288,16.00,CROSSLING & CO LTD,003416,Housing Property and Construction,Housing Services,108,Supplies and Services,504,Equipment,5023,Revenue,REPAIRS & MAINTENANCE.REPAIRS & MAINTENANCE
02/12/2021,2243288,16.60,CROSSLING & CO LTD,003416,Housing Property and Construction,Housing Services,108,Supplies and Services,504,Equipment,5023,Revenue,REPAIRS & MAINTENANCE.REPAIRS & MAINTENANCE
02/12/2021,2243288,18.00,CROSSLING & CO LTD,003416,Housing Property and Construction,Housing Services,108,Supplies and Services,504,Equipment,5023,Revenue,REPAIRS & MAINTENANCE.REPAIRS & MAINTENANCE
02/12/2021,2243288,18.40,CROSSLING & CO LTD,003416,Housing Property and Construction,Housing Services,108,Supplies and Services,504,Equipment,5023,Revenue,REPAIRS & MAINTENANCE.REPAIRS & MAINTENANCE
02/12/2021,2243288,18.90,CROSSLING & CO LTD,003416,Housing Property and Construction,Housing Services,108,Supplies and Services,504,Equipment,5023,Revenue,REPAIRS & MAINTENANCE.REPAIRS & MAINTENANCE
02/12/2021,2243288,20.00,CROSSLING & CO LTD,003416,Housing Property and Construction,Housing Services,108,Supplies and Services,504,Equipment,5023,Revenue,REPAIRS & MAINTENANCE.REPAIRS & MAINTENANCE
02/12/2021,2243288,23.75,CROSSLING & CO LTD,003416,Housing Property and Construction,Housing Services,108,Supplies and Services,504,Equipment,5023,Revenue,REPAIRS & MAINTENANCE.REPAIRS & MAINTENANCE
02/12/2021,2243288,24.08,CROSSLING & CO LTD,003416,Housing Property and Construction,Housing Services,108,Supplies and Services,504,Equipment,5023,Revenue,REPAIRS & MAINTENANCE.REPAIRS & MAINTENANCE
02/12/2021,2243288,24.08,CROSSLING & CO LTD,003416,Housing Property and Construction,Housing Services,108,Supplies and Services,504,Equipment,5023,Revenue,REPAIRS & MAINTENANCE.REPAIRS & MAINTENANCE
02/12/2021,2243288,25.05,CROSSLING & CO LTD,003416,Housing Property and Construction,Housing Services,108,Supplies and Services,504,Equipment,5023,Revenue,REPAIRS & MAINTENANCE.REPAIRS & MAINTENANCE
02/12/2021,2243288,26.04,CROSSLING & CO LTD,003416,Housing Property and Construction,Housing Services,108,Supplies and Services,504,Equipment,5023,Revenue,REPAIRS & MAINTENANCE.REPAIRS & MAINTENANCE
02/12/2021,2243288,26.40,CROSSLING & CO LTD,003416,Housing Property and Construction,Housing Services,108,Supplies and Services,504,Equipment,5023,Revenue,REPAIRS & MAINTENANCE.REPAIRS & MAINTENANCE
02/12/2021,2243288,29.84,CROSSLING & CO LTD,003416,Housing Property and Construction,Housing Services,108,Supplies and Services,504,Equipment,5023,Revenue,REPAIRS & MAINTENANCE.REPAIRS & MAINTENANCE
02/12/2021,2243288,30.00,CROSSLING & CO LTD,003416,Housing Property and Construction,Housing Services,108,Supplies and Services,504,Equipment,5023,Revenue,REPAIRS & MAINTENANCE.REPAIRS & MAINTENANCE
02/12/2021,2243288,30.00,CROSSLING & CO LTD,003416,Housing Property and Construction,Housing Services,108,Supplies and Services,504,Equipment,5023,Revenue,REPAIRS & MAINTENANCE.REPAIRS & MAINTENANCE
02/12/2021,2243288,30.40,CROSSLING & CO LTD,003416,Housing Property and Construction,Housing Services,108,Supplies and Services,504,Equipment,5023,Revenue,REPAIRS & MAINTENANCE.REPAIRS & MAINTENANCE
02/12/2021,2243288,31.30,CROSSLING & CO LTD,003416,Housing Property and Construction,Housing Services,108,Supplies and Services,504,Equipment,5023,Revenue,REPAIRS & MAINTENANCE.REPAIRS & MAINTENANCE
02/12/2021,2243288,31.70,CROSSLING & CO LTD,003416,Housing Property and Construction,Housing Services,108,Supplies and Services,504,Equipment,5023,Revenue,REPAIRS & MAINTENANCE.REPAIRS & MAINTENANCE
02/12/2021,2243288,34.60,CROSSLING & CO LTD,003416,Housing Property and Construction,Housing Services,108,Supplies and Services,504,Equipment,5023,Revenue,REPAIRS & MAINTENANCE.REPAIRS & MAINTENANCE
02/12/2021,2243288,36.00,CROSSLING & CO LTD,003416,Housing Property and Construction,Housing Services,108,Supplies and Services,504,Equipment,5023,Revenue,REPAIRS & MAINTENANCE.REPAIRS & MAINTENANCE
02/12/2021,2243288,36.40,CROSSLING & CO LTD,003416,Housing Property and Construction,Housing Services,108,Supplies and Services,504,Equipment,5023,Revenue,REPAIRS & MAINTENANCE.REPAIRS & MAINTENANCE
02/12/2021,2243288,39.36,CROSSLING & CO LTD,003416,Housing Property and Construction,Housing Services,108,Supplies and Services,504,Equipment,5023,Revenue,REPAIRS & MAINTENANCE.REPAIRS & MAINTENANCE
02/12/2021,2243288,40.00,CROSSLING & CO LTD,003416,Housing Property and Construction,Housing Services,108,Supplies and Services,504,Equipment,5023,Revenue,REPAIRS & MAINTENANCE.REPAIRS & MAINTENANCE
02/12/2021,2243288,44.38,CROSSLING & CO LTD,003416,Housing Property and Construction,Housing Services,108,Supplies and Services,504,Equipment,5023,Revenue,REPAIRS & MAINTENANCE.REPAIRS & MAINTENANCE
02/12/2021,2243288,45.36,CROSSLING & CO LTD,003416,Housing Property and Construction,Housing Services,108,Supplies and Services,504,Equipment,5023,Revenue,REPAIRS & MAINTENANCE.REPAIRS & MAINTENANCE
02/12/2021,2243288,46.90,CROSSLING & CO LTD,003416,Housing Property and Construction,Housing Services,108,Supplies and Services,504,Equipment,5023,Revenue,REPAIRS & MAINTENANCE.REPAIRS & MAINTENANCE
02/12/2021,2243288,49.60,CROSSLING & CO LTD,003416,Housing Property and Construction,Housing Services,108,Supplies and Services,504,Equipment,5023,Revenue,REPAIRS & MAINTENANCE.REPAIRS & MAINTENANCE
02/12/2021,2243288,50.00,CROSSLING & CO LTD,003416,Housing Property and Construction,Housing Services,108,Supplies and Services,504,Equipment,5023,Revenue,REPAIRS & MAINTENANCE.REPAIRS & MAINTENANCE
02/12/2021,2243288,59.04,CROSSLING & CO LTD,003416,Housing Property and Construction,Housing Services,108,Supplies and Services,504,Equipment,5023,Revenue,REPAIRS & MAINTENANCE.REPAIRS & MAINTENANCE
02/12/2021,2243288,60.80,CROSSLING & CO LTD,003416,Housing Property and Construction,Housing Services,108,Supplies and Services,504,Equipment,5023,Revenue,REPAIRS & MAINTENANCE.REPAIRS & MAINTENANCE
02/12/2021,2243288,62.00,CROSSLING & CO LTD,003416,Housing Property and Construction,Housing Services,108,Supplies and Services,504,Equipment,5023,Revenue,REPAIRS & MAINTENANCE.REPAIRS & MAINTENANCE
02/12/2021,2243288,63.00,CROSSLING & CO LTD,003416,Housing Property and Construction,Housing Services,108,Supplies and Services,504,Equipment,5023,Revenue,REPAIRS & MAINTENANCE.REPAIRS & MAINTENANCE
02/12/2021,2243288,63.50,CROSSLING & CO LTD,003416,Housing Property and Construction,Housing Services,108,Supplies and Services,504,Equipment,5023,Revenue,REPAIRS & MAINTENANCE.REPAIRS & MAINTENANCE
02/12/2021,2243288,64.68,CROSSLING & CO LTD,003416,Housing Property and Construction,Housing Services,108,Supplies and Services,504,Equipment,5023,Revenue,REPAIRS & MAINTENANCE.REPAIRS & MAINTENANCE
02/12/2021,2243288,68.46,CROSSLING & CO LTD,003416,Housing Property and Construction,Housing Services,108,Supplies and Services,504,Equipment,5023,Revenue,REPAIRS & MAINTENANCE.REPAIRS & MAINTENANCE
02/12/2021,2243288,72.24,CROSSLING & CO LTD,003416,Housing Property and Construction,Housing Services,108,Supplies and Services,504,Equipment,5023,Revenue,REPAIRS & MAINTENANCE.REPAIRS & MAINTENANCE
02/12/2021,2243288,75.00,CROSSLING & CO LTD,003416,Housing Property and Construction,Housing Services,108,Supplies and Services,504,Equipment,5023,Revenue,REPAIRS & MAINTENANCE.REPAIRS & MAINTENANCE
02/12/2021,2243288,75.10,CROSSLING & CO LTD,003416,Housing Property and Construction,Housing Services,108,Supplies and Services,504,Equipment,5023,Revenue,REPAIRS & MAINTENANCE.REPAIRS & MAINTENANCE
02/12/2021,2243288,77.91,CROSSLING & CO LTD,003416,Housing Property and Construction,Housing Services,108,Supplies and Services,504,Equipment,5023,Revenue,REPAIRS & MAINTENANCE.REPAIRS & MAINTENANCE
02/12/2021,2243288,86.88,CROSSLING & CO LTD,003416,Housing Property and Construction,Housing Services,108,Supplies and Services,504,Equipment,5023,Revenue,REPAIRS & MAINTENANCE.REPAIRS & MAINTENANCE
02/12/2021,2243288,92.00,CROSSLING & CO LTD,003416,Housing Property and Construction,Housing Services,108,Supplies and Services,504,Equipment,5023,Revenue,REPAIRS & MAINTENANCE.REPAIRS & MAINTENANCE
02/12/2021,2243288,94.00,CROSSLING & CO LTD,003416,Housing Property and Construction,Housing Services,108,Supplies and Services,504,Equipment,5023,Revenue,REPAIRS & MAINTENANCE.REPAIRS & MAINTENANCE
02/12/2021,2243288,114.41,CROSSLING & CO LTD,003416,Housing Property and Construction,Housing Services,108,Supplies and Services,504,Equipment,5023,Revenue,REPAIRS & MAINTENANCE.REPAIRS & MAINTENANCE
02/12/2021,2243288,121.44,CROSSLING & CO LTD,003416,Housing Property and Construction,Housing Services,108,Supplies and Services,504,Equipment,5023,Revenue,REPAIRS & MAINTENANCE.REPAIRS & MAINTENANCE
02/12/2021,2243288,129.00,CROSSLING & CO LTD,003416,Housing Property and Construction,Housing Services,108,Supplies and Services,504,Equipment,5023,Revenue,REPAIRS & MAINTENANCE.REPAIRS & MAINTENANCE
02/12/2021,2243288,134.40,CROSSLING & CO LTD,003416,Housing Property and Construction,Housing Services,108,Supplies and Services,504,Equipment,5023,Revenue,REPAIRS & MAINTENANCE.REPAIRS & MAINTENANCE
02/12/2021,2243288,139.38,CROSSLING & CO LTD,003416,Housing Property and Construction,Housing Services,108,Supplies and Services,504,Equipment,5023,Revenue,REPAIRS & MAINTENANCE.REPAIRS & MAINTENANCE
02/12/2021,2243288,146.96,CROSSLING & CO LTD,003416,Housing Property and Construction,Housing Services,108,Supplies and Services,504,Equipment,5023,Revenue,REPAIRS & MAINTENANCE.REPAIRS & MAINTENANCE
02/12/2021,2243288,149.94,CROSSLING & CO LTD,003416,Housing Property and Construction,Housing Services,108,Supplies and Services,504,Equipment,5023,Revenue,REPAIRS & MAINTENANCE.REPAIRS & MAINTENANCE
02/12/2021,2243288,161.40,CROSSLING & CO LTD,003416,Housing Property and Construction,Housing Services,108,Supplies and Services,504,Equipment,5023,Revenue,REPAIRS & MAINTENANCE.REPAIRS & MAINTENANCE
02/12/2021,2243288,203.20,CROSSLING & CO LTD,003416,Housing Property and Construction,Housing Services,108,Supplies and Services,504,Equipment,5023,Revenue,REPAIRS & MAINTENANCE.REPAIRS & MAINTENANCE
02/12/2021,2243288,214.40,CROSSLING & CO LTD,003416,Housing Property and Construction,Housing Services,108,Supplies and Services,504,Equipment,5023,Revenue,REPAIRS & MAINTENANCE.REPAIRS & MAINTENANCE
02/12/2021,2243288,219.20,CROSSLING & CO LTD,003416,Housing Property and Construction,Housing Services,108,Supplies and Services,504,Equipment,5023,Revenue,REPAIRS & MAINTENANCE.REPAIRS & MAINTENANCE
02/12/2021,2243288,244.90,CROSSLING & CO LTD,003416,Housing Property and Construction,Housing Services,108,Supplies and Services,504,Equipment,5023,Revenue,REPAIRS & MAINTENANCE.REPAIRS & MAINTENANCE
02/12/2021,2243288,258.12,CROSSLING & CO LTD,003416,Housing Property and Construction,Housing Services,108,Supplies and Services,504,Equipment,5023,Revenue,REPAIRS & MAINTENANCE.REPAIRS & MAINTENANCE
02/12/2021,2243288,269.80,CROSSLING & CO LTD,003416,Housing Property and Construction,Housing Services,108,Supplies and Services,504,Equipment,5023,Revenue,REPAIRS & MAINTENANCE.REPAIRS & MAINTENANCE
02/12/2021,2243288,323.68,CROSSLING & CO LTD,003416,Housing Property and Construction,Housing Services,108,Supplies and Services,504,Equipment,5023,Revenue,REPAIRS & MAINTENANCE.REPAIRS & MAINTENANCE
02/12/2021,2243288,334.72,CROSSLING & CO LTD,003416,Housing Property and Construction,Housing Services,108,Supplies and Services,504,Equipment,5023,Revenue,REPAIRS & MAINTENANCE.REPAIRS & MAINTENANCE
02/12/2021,2243288,337.01,CROSSLING & CO LTD,003416,Housing Property and Construction,Housing Services,108,Supplies and Services,504,Equipment,5023,Revenue,REPAIRS & MAINTENANCE.REPAIRS & MAINTENANCE
02/12/2021,2243288,362.00,CROSSLING & CO LTD,003416,Housing Property and Construction,Housing Services,108,Supplies and Services,504,Equipment,5023,Revenue,REPAIRS & MAINTENANCE.REPAIRS & MAINTENANCE
02/12/2021,2243288,367.40,CROSSLING & CO LTD,003416,Housing Property and Construction,Housing Services,108,Supplies and Services,504,Equipment,5023,Revenue,REPAIRS & MAINTENANCE.REPAIRS & MAINTENANCE
02/12/2021,2243288,372.00,CROSSLING & CO LTD,003416,Housing Property and Construction,Housing Services,108,Supplies and Services,504,Equipment,5023,Revenue,REPAIRS & MAINTENANCE.REPAIRS & MAINTENANCE
02/12/2021,2243288,450.00,CROSSLING & CO LTD,003416,Housing Property and Construction,Housing Services,108,Supplies and Services,504,Equipment,5023,Revenue,REPAIRS & MAINTENANCE.REPAIRS & MAINTENANCE
02/12/2021,2243288,674.00,CROSSLING & CO LTD,003416,Housing Property and Construction,Housing Services,108,Supplies and Services,504,Equipment,5023,Revenue,REPAIRS & MAINTENANCE.REPAIRS & MAINTENANCE
02/12/2021,2243288,1036.00,CROSSLING & CO LTD,003416,Housing Property and Construction,Housing Services,108,Supplies and Services,504,Equipment,5023,Revenue,REPAIRS & MAINTENANCE.REPAIRS & MAINTENANCE
02/12/2021,2243290,0.00,NE EXECUTIVE LTD T/A NE TAXIS,397329,Commissioning & Asset Management,Children's & Education Services,103,Transport,503,Recharges,5017,Revenue,PUBLIC TRANSPORT.TAXI SERVICES
02/12/2021,2243290,0.00,NE EXECUTIVE LTD T/A NE TAXIS,397329,Commissioning & Asset Management,Children's & Education Services,103,Transport,503,Recharges,5017,Revenue,PUBLIC TRANSPORT.TAXI SERVICES
02/12/2021,2243290,924.00,NE EXECUTIVE LTD T/A NE TAXIS,397329,Commissioning & Asset Management,Children's & Education Services,103,Transfer Payments,506,School Children and Students,5046,Revenue,PUBLIC TRANSPORT.TAXI SERVICES
02/12/2021,2243290,1200.00,NE EXECUTIVE LTD T/A NE TAXIS,397329,Commissioning & Asset Management,Children's & Education Services,103,Transport,503,Recharges,5017,Revenue,PUBLIC TRANSPORT.TAXI SERVICES
02/12/2021,2243290,1200.00,NE EXECUTIVE LTD T/A NE TAXIS,397329,Commissioning & Asset Management,Children's & Education Services,103,Transfer Payments,506,School Children and Students,5046,Revenue,PUBLIC TRANSPORT.TAXI SERVICES
02/12/2021,2243290,1216.00,NE EXECUTIVE LTD T/A NE TAXIS,397329,Commissioning & Asset Management,Children's & Education Services,103,Transport,503,Recharges,5017,Revenue,PUBLIC TRANSPORT.TAXI SERVICES
02/12/2021,2243290,1368.00,NE EXECUTIVE LTD T/A NE TAXIS,397329,Commissioning & Asset Management,Children's & Education Services,103,Transfer Payments,506,School Children and Students,5046,Revenue,PUBLIC TRANSPORT.TAXI SERVICES
02/12/2021,2243290,1400.00,NE EXECUTIVE LTD T/A NE TAXIS,397329,Commissioning & Asset Management,Children's & Education Services,103,Transport,503,Recharges,5017,Revenue,PUBLIC TRANSPORT.TAXI SERVICES
02/12/2021,2243290,1400.00,NE EXECUTIVE LTD T/A NE TAXIS,397329,Commissioning & Asset Management,Children's & Education Services,103,Transport,503,Recharges,5017,Revenue,PUBLIC TRANSPORT.TAXI SERVICES
02/12/2021,2243290,1482.00,NE EXECUTIVE LTD T/A NE TAXIS,397329,Commissioning & Asset Management,Children's & Education Services,103,Transport,503,Recharges,5017,Revenue,PUBLIC TRANSPORT.TAXI SERVICES
02/12/2021,2243290,1520.00,NE EXECUTIVE LTD T/A NE TAXIS,397329,Commissioning & Asset Management,Children's & Education Services,103,Transport,503,Recharges,5017,Revenue,PUBLIC TRANSPORT.TAXI SERVICES
02/12/2021,2243290,1520.00,NE EXECUTIVE LTD T/A NE TAXIS,397329,Commissioning & Asset Management,Children's & Education Services,103,Transport,503,Recharges,5017,Revenue,PUBLIC TRANSPORT.TAXI SERVICES
02/12/2021,2243290,1520.00,NE EXECUTIVE LTD T/A NE TAXIS,397329,Commissioning & Asset Management,Children's & Education Services,103,Transport,503,Recharges,5017,Revenue,PUBLIC TRANSPORT.TAXI SERVICES
02/12/2021,2243290,1520.00,NE EXECUTIVE LTD T/A NE TAXIS,397329,Commissioning & Asset Management,Children's & Education Services,103,Transport,503,Recharges,5017,Revenue,PUBLIC TRANSPORT.TAXI SERVICES
02/12/2021,2243290,1540.00,NE EXECUTIVE LTD T/A NE TAXIS,397329,Commissioning & Asset Management,Children's & Education Services,103,Transfer Payments,506,School Children and Students,5046,Revenue,PUBLIC TRANSPORT.TAXI SERVICES
02/12/2021,2243290,1600.00,NE EXECUTIVE LTD T/A NE TAXIS,397329,Commissioning & Asset Management,Children's & Education Services,103,Transport,503,Recharges,5017,Revenue,PUBLIC TRANSPORT.TAXI SERVICES
02/12/2021,2243290,1600.00,NE EXECUTIVE LTD T/A NE TAXIS,397329,Commissioning & Asset Management,Children's & Education Services,103,Transport,503,Recharges,5017,Revenue,PUBLIC TRANSPORT.TAXI SERVICES
02/12/2021,2243290,1740.00,NE EXECUTIVE LTD T/A NE TAXIS,397329,Commissioning & Asset Management,Children's & Education Services,103,Transfer Payments,506,School Children and Students,5046,Revenue,PUBLIC TRANSPORT.TAXI SERVICES
02/12/2021,2243290,1880.00,NE EXECUTIVE LTD T/A NE TAXIS,397329,Commissioning & Asset Management,Children's & Education Services,103,Transport,503,Recharges,5017,Revenue,PUBLIC TRANSPORT.TAXI SERVICES
02/12/2021,2243290,2166.00,NE EXECUTIVE LTD T/A NE TAXIS,397329,Commissioning & Asset Management,Children's & Education Services,103,Transport,503,Recharges,5017,Revenue,PUBLIC TRANSPORT.TAXI SERVICES
02/12/2021,2243290,3600.00,NE EXECUTIVE LTD T/A NE TAXIS,397329,Commissioning & Asset Management,Children's & Education Services,103,Transport,503,Recharges,5017,Revenue,PUBLIC TRANSPORT.TAXI SERVICES
02/12/2021,2243292,159.16,RIGBY TAYLOR LTD,018386,"Environment, Housing & Leisure",Cultural & Related Services,104,Supplies and Services,504,Equipment,5023,Revenue,HORTICULTURAL.LANDSCAPING
02/12/2021,2243292,571.50,RIGBY TAYLOR LTD,018386,"Environment, Housing & Leisure",Cultural & Related Services,104,Supplies and Services,504,Equipment,5023,Revenue,HORTICULTURAL.LANDSCAPING
02/12/2021,2243292,571.50,RIGBY TAYLOR LTD,018386,"Environment, Housing & Leisure",Cultural & Related Services,104,Supplies and Services,504,Equipment,5023,Revenue,HORTICULTURAL.LANDSCAPING
02/12/2021,2243292,571.50,RIGBY TAYLOR LTD,018386,"Environment, Housing & Leisure",Cultural & Related Services,104,Supplies and Services,504,Equipment,5023,Revenue,HORTICULTURAL.LANDSCAPING
02/12/2021,2243293,311.00,Redacted Personal Data,385618,"Environment, Housing & Leisure",Cultural & Related Services,104,Third Party Payments,505,Private Contractors,5042,Revenue,HUMAN RESOURCES.TRAINING & CONFERENCES
02/12/2021,2243296,390.00,BUS & TRUCK PARTS (NE) LTD,392837,"Environment, Housing & Leisure",Unallocated,N/A,Transport,503,Direct Transport Costs,5016,Revenue,VEHICLE MANAGEMENT.PARTS
02/12/2021,2243296,1237.00,BUS & TRUCK PARTS (NE) LTD,392837,"Environment, Housing & Leisure",Unallocated,N/A,Transport,503,Direct Transport Costs,5016,Revenue,VEHICLE MANAGEMENT.PARTS
02/12/2021,2243297,93514.87,MGM LTD,222037,Capital,Capital,Capital,Capital,Capital,Capital,Capital,Capital,REPAIRS & MAINTENANCE.REPAIRS & MAINTENANCE
02/12/2021,2243300,1279.20,EVERLASTING CARE LTD,363743,"Health, Education, Care and Safeguarding",Children's & Education Services,103,Supplies and Services,504,Miscellaneous Expenses,5034,Revenue,SOCIAL CARE.HOMECARE SERVICES
02/12/2021,2243303,424.20,THE DERWENT INITIATIVE T/A TDI,386380,"Environment, Housing & Leisure",Cultural & Related Services,104,Supplies and Services,504,Grants and Subscriptions,5031,Revenue,SUBSCRIPTIONS & PUBLICATIONS.MEMBERSHIPS
02/12/2021,2243303,424.20,THE DERWENT INITIATIVE T/A TDI,386380,"Environment, Housing & Leisure",Cultural & Related Services,104,Supplies and Services,504,Grants and Subscriptions,5031,Revenue,SUBSCRIPTIONS & PUBLICATIONS.MEMBERSHIPS
02/12/2021,2243303,424.20,THE DERWENT INITIATIVE T/A TDI,386380,"Environment, Housing & Leisure",Cultural & Related Services,104,Supplies and Services,504,Grants and Subscriptions,5031,Revenue,SUBSCRIPTIONS & PUBLICATIONS.MEMBERSHIPS
02/12/2021,2243303,424.20,THE DERWENT INITIATIVE T/A TDI,386380,"Environment, Housing & Leisure",Cultural & Related Services,104,Supplies and Services,504,Grants and Subscriptions,5031,Revenue,SUBSCRIPTIONS & PUBLICATIONS.MEMBERSHIPS
02/12/2021,2243303,424.20,THE DERWENT INITIATIVE T/A TDI,386380,"Environment, Housing & Leisure",Cultural & Related Services,104,Supplies and Services,504,Grants and Subscriptions,5031,Revenue,SUBSCRIPTIONS & PUBLICATIONS.MEMBERSHIPS
02/12/2021,2243304,-936.12,NHC NHS FOUNDATION TRUST,317869,Central Items,Obsolete Code Community,102,Third Party Payments,505,Private Contractors,5042,Revenue,PUBLIC HEALTH.SPECIALIST SERVICES
02/12/2021,2243304,-936.12,NHC NHS FOUNDATION TRUST,317869,Central Items,Obsolete Code Community,102,Third Party Payments,505,Private Contractors,5042,Revenue,PUBLIC HEALTH.SPECIALIST SERVICES
02/12/2021,2243304,-763.93,NHC NHS FOUNDATION TRUST,317869,Central Items,Obsolete Code Community,102,Third Party Payments,505,Private Contractors,5042,Revenue,PUBLIC HEALTH.SPECIALIST SERVICES
02/12/2021,2243304,-187.22,NHC NHS FOUNDATION TRUST,317869,Central Items,Obsolete Code Community,102,Third Party Payments,505,Private Contractors,5042,Revenue,PUBLIC HEALTH.SPECIALIST SERVICES
02/12/2021,2243304,6849.33,NHC NHS FOUNDATION TRUST,317869,"Environment, Housing & Leisure",Environmental & Regulatory Services,105,Third Party Payments,505,Private Contractors,5042,Revenue,PUBLIC HEALTH.SPECIALIST SERVICES
02/12/2021,2243304,6849.33,NHC NHS FOUNDATION TRUST,317869,"Environment, Housing & Leisure",Environmental & Regulatory Services,105,Third Party Payments,505,Private Contractors,5042,Revenue,PUBLIC HEALTH.SPECIALIST SERVICES
02/12/2021,2243304,6849.34,NHC NHS FOUNDATION TRUST,317869,"Environment, Housing & Leisure",Environmental & Regulatory Services,105,Third Party Payments,505,Private Contractors,5042,Revenue,PUBLIC HEALTH.SPECIALIST SERVICES
02/12/2021,2243304,6849.34,NHC NHS FOUNDATION TRUST,317869,"Environment, Housing & Leisure",Environmental & Regulatory Services,105,Third Party Payments,505,Private Contractors,5042,Revenue,PUBLIC HEALTH.SPECIALIST SERVICES
02/12/2021,2243304,16814.75,NHC NHS FOUNDATION TRUST,317869,"Health, Education, Care and Safeguarding",Adult Social Care,101,Third Party Payments,505,Health Authorities,5038,Revenue,PUBLIC HEALTH.SPECIALIST SERVICES
02/12/2021,2243305,412.50,NAVMAN WIRELESS UK LIMITED,378101,"Environment, Housing & Leisure",Unallocated,N/A,Supplies and Services,504,Equipment,5023,Revenue,VEHICLE MANAGEMENT.PARTS
02/12/2021,2243305,840.00,NAVMAN WIRELESS UK LIMITED,378101,"Environment, Housing & Leisure",Unallocated,N/A,Supplies and Services,504,Equipment,5023,Revenue,VEHICLE MANAGEMENT.PARTS
02/12/2021,2243306,260.00,MEADOW WELL CONNECTED,355522,"Health, Education, Care and Safeguarding",Children's & Education Services,103,Third Party Payments,505,Private Contractors,5042,Revenue,SOCIAL CARE.CARE SERVICES
02/12/2021,2243308,389.34,NORTH TYNESIDE COUNCIL,102767,Capital,Housing Revenue Account,HRA,Capital,Capital,Capital,Capital,Capital,NON INFLUENCIBLE.PUBLIC SECTOR
02/12/2021,2243309,0.00,HADRIAN MINI BUSES,361545,Commissioning & Asset Management,Children's & Education Services,103,Transfer Payments,506,School Children and Students,5046,Revenue,PUBLIC TRANSPORT.TAXI SERVICES
02/12/2021,2243309,0.00,HADRIAN MINI BUSES,361545,Commissioning & Asset Management,Children's & Education Services,103,Transport,503,Recharges,5017,Revenue,PUBLIC TRANSPORT.TAXI SERVICES
02/12/2021,2243309,0.00,HADRIAN MINI BUSES,361545,Commissioning & Asset Management,Children's & Education Services,103,Transport,503,Recharges,5017,Revenue,PUBLIC TRANSPORT.TAXI SERVICES
02/12/2021,2243309,0.00,HADRIAN MINI BUSES,361545,Commissioning & Asset Management,Children's & Education Services,103,Transport,503,Recharges,5017,Revenue,PUBLIC TRANSPORT.TAXI SERVICES
02/12/2021,2243309,1400.00,HADRIAN MINI BUSES,361545,Commissioning & Asset Management,Children's & Education Services,103,Transport,503,Recharges,5017,Revenue,PUBLIC TRANSPORT.TAXI SERVICES
02/12/2021,2243309,1400.00,HADRIAN MINI BUSES,361545,Commissioning & Asset Management,Children's & Education Services,103,Transport,503,Recharges,5017,Revenue,PUBLIC TRANSPORT.TAXI SERVICES
02/12/2021,2243309,1600.00,HADRIAN MINI BUSES,361545,Commissioning & Asset Management,Children's & Education Services,103,Transport,503,Recharges,5017,Revenue,PUBLIC TRANSPORT.TAXI SERVICES
02/12/2021,2243309,1710.00,HADRIAN MINI BUSES,361545,Commissioning & Asset Management,Children's & Education Services,103,Transport,503,Recharges,5017,Revenue,PUBLIC TRANSPORT.TAXI SERVICES
02/12/2021,2243309,1710.00,HADRIAN MINI BUSES,361545,Commissioning & Asset Management,Children's & Education Services,103,Transport,503,Recharges,5017,Revenue,PUBLIC TRANSPORT.TAXI SERVICES
02/12/2021,2243309,1710.00,HADRIAN MINI BUSES,361545,Commissioning & Asset Management,Children's & Education Services,103,Transport,503,Recharges,5017,Revenue,PUBLIC TRANSPORT.TAXI SERVICES
02/12/2021,2243309,1710.00,HADRIAN MINI BUSES,361545,Commissioning & Asset Management,Children's & Education Services,103,Transport,503,Recharges,5017,Revenue,PUBLIC TRANSPORT.TAXI SERVICES
02/12/2021,2243309,1710.00,HADRIAN MINI BUSES,361545,Commissioning & Asset Management,Children's & Education Services,103,Transport,503,Recharges,5017,Revenue,PUBLIC TRANSPORT.TAXI SERVICES
02/12/2021,2243309,1710.00,HADRIAN MINI BUSES,361545,Commissioning & Asset Management,Children's & Education Services,103,Transport,503,Recharges,5017,Revenue,PUBLIC TRANSPORT.TAXI SERVICES
02/12/2021,2243309,1710.00,HADRIAN MINI BUSES,361545,Commissioning & Asset Management,Children's & Education Services,103,Transport,503,Recharges,5017,Revenue,PUBLIC TRANSPORT.TAXI SERVICES
02/12/2021,2243309,1800.00,HADRIAN MINI BUSES,361545,Commissioning & Asset Management,Children's & Education Services,103,Transport,503,Recharges,5017,Revenue,PUBLIC TRANSPORT.TAXI SERVICES
02/12/2021,2243309,1800.00,HADRIAN MINI BUSES,361545,Commissioning & Asset Management,Children's & Education Services,103,Transport,503,Recharges,5017,Revenue,PUBLIC TRANSPORT.TAXI SERVICES
02/12/2021,2243309,1800.00,HADRIAN MINI BUSES,361545,Commissioning & Asset Management,Children's & Education Services,103,Transfer Payments,506,School Children and Students,5046,Revenue,PUBLIC TRANSPORT.TAXI SERVICES
02/12/2021,2243309,2400.00,HADRIAN MINI BUSES,361545,Commissioning & Asset Management,Children's & Education Services,103,Transport,503,Recharges,5017,Revenue,PUBLIC TRANSPORT.TAXI SERVICES
02/12/2021,2243314,405.37,ADARE LTD,372769,Law & Governance,Central Services,102,Supplies and Services,504,"Printing, Stationery and General Office Expenses",5026,Revenue,PRINTING SERVICES.PRINTING
02/12/2021,2243314,438.86,ADARE LTD,372769,Law & Governance,Central Services,102,Supplies and Services,504,"Printing, Stationery and General Office Expenses",5026,Revenue,PRINTING SERVICES.PRINTING
02/12/2021,2243314,760.29,ADARE LTD,372769,Law & Governance,Central Services,102,Supplies and Services,504,Communications & Computing,5028,Revenue,PRINTING SERVICES.PRINTING
02/12/2021,2243317,530.40,NORTHUMBERLAND COUNTY COUNCIL,319694,"Health, Education, Care and Safeguarding",Children's & Education Services,103,Supplies and Services,504,Miscellaneous Expenses,5034,Revenue,NON INFLUENCIBLE.PUBLIC SECTOR
02/12/2021,2243317,9715.32,NORTHUMBERLAND COUNTY COUNCIL,319694,"Health, Education, Care and Safeguarding",Housing Services,108,Income,509,"Other Grants, Reimbursements & Contributions",5063,Revenue,NON INFLUENCIBLE.PUBLIC SECTOR
02/12/2021,2243318,7110.00,NORTH EAST REGIONAL EMPLOYERS ORGANISATION,324213,Resources,Central Services,102,Supplies and Services,504,Miscellaneous Expenses,5034,Revenue,NON INFLUENCIBLE.NON INFLUENCIBLE
02/12/2021,2243319,284.73,DENNIS EAGLE LTD,303955,"Environment, Housing & Leisure",Unallocated,N/A,Transport,503,Direct Transport Costs,5016,Revenue,VEHICLE MANAGEMENT.PARTS
02/12/2021,2243320,17.83,FARRAHS OF HARROGATE,379673,"Environment, Housing & Leisure",Cultural & Related Services,104,Supplies and Services,504,Equipment,5023,Revenue,CATERING.FOOD & BEVERAGES
02/12/2021,2243320,20.72,FARRAHS OF HARROGATE,379673,"Environment, Housing & Leisure",Cultural & Related Services,104,Supplies and Services,504,Equipment,5023,Revenue,CATERING.FOOD & BEVERAGES
02/12/2021,2243320,25.57,FARRAHS OF HARROGATE,379673,"Environment, Housing & Leisure",Cultural & Related Services,104,Supplies and Services,504,Equipment,5023,Revenue,CATERING.FOOD & BEVERAGES
02/12/2021,2243320,25.57,FARRAHS OF HARROGATE,379673,"Environment, Housing & Leisure",Cultural & Related Services,104,Supplies and Services,504,Equipment,5023,Revenue,CATERING.FOOD & BEVERAGES
02/12/2021,2243320,52.05,FARRAHS OF HARROGATE,379673,"Environment, Housing & Leisure",Cultural & Related Services,104,Supplies and Services,504,Equipment,5023,Revenue,CATERING.FOOD & BEVERAGES
02/12/2021,2243320,52.05,FARRAHS OF HARROGATE,379673,"Environment, Housing & Leisure",Cultural & Related Services,104,Supplies and Services,504,Equipment,5023,Revenue,CATERING.FOOD & BEVERAGES
02/12/2021,2243320,52.87,FARRAHS OF HARROGATE,379673,"Environment, Housing & Leisure",Cultural & Related Services,104,Supplies and Services,504,Equipment,5023,Revenue,CATERING.FOOD & BEVERAGES
02/12/2021,2243320,63.66,FARRAHS OF HARROGATE,379673,"Environment, Housing & Leisure",Cultural & Related Services,104,Supplies and Services,504,Equipment,5023,Revenue,CATERING.FOOD & BEVERAGES
02/12/2021,2243321,97341.23,DEERNESS FENCING LTD,316249,Capital,Capital,Capital,Capital,Capital,Capital,Capital,Capital,REPAIRS & MAINTENANCE.REPAIRS & MAINTENANCE
03/12/2021,2243335,500.00,Redacted Personal Data,399669,Central Items,Planning Services,110,Capital,Capital,Capital,Capital,Revenue,NON INFLUENCIBLE.GRANTS
03/12/2021,2243336,500.00,Redacted Personal Data,399669,Central Items,Planning Services,110,Capital,Capital,Capital,Capital,Revenue,NON INFLUENCIBLE.GRANTS
03/12/2021,2243337,500.00,Redacted Personal Data,399669,Central Items,Planning Services,110,Capital,Capital,Capital,Capital,Revenue,NON INFLUENCIBLE.GRANTS
03/12/2021,2243338,500.00,Redacted Personal Data,399669,Central Items,Planning Services,110,Capital,Capital,Capital,Capital,Revenue,NON INFLUENCIBLE.GRANTS
03/12/2021,2243339,500.00,Redacted Personal Data,399669,Central Items,Planning Services,110,Capital,Capital,Capital,Capital,Revenue,NON INFLUENCIBLE.GRANTS
03/12/2021,2243340,500.00,Redacted Personal Data,399669,Central Items,Planning Services,110,Capital,Capital,Capital,Capital,Revenue,NON INFLUENCIBLE.GRANTS
03/12/2021,2243341,300.00,NORTH EAST ADOPTION THERAPY SERVICES LTD,400034,"Health, Education, Care and Safeguarding",Children's & Education Services,103,Third Party Payments,505,Private Contractors,5042,Revenue,"SOCIAL CARE.ADVICE, ADVOCACY & COUNSELLING"
03/12/2021,2243341,400.00,NORTH EAST ADOPTION THERAPY SERVICES LTD,400034,"Health, Education, Care and Safeguarding",Children's & Education Services,103,Third Party Payments,505,Private Contractors,5042,Revenue,"SOCIAL CARE.ADVICE, ADVOCACY & COUNSELLING"
03/12/2021,2243341,400.00,NORTH EAST ADOPTION THERAPY SERVICES LTD,400034,"Health, Education, Care and Safeguarding",Children's & Education Services,103,Third Party Payments,505,Private Contractors,5042,Revenue,"SOCIAL CARE.ADVICE, ADVOCACY & COUNSELLING"
03/12/2021,2243341,450.00,NORTH EAST ADOPTION THERAPY SERVICES LTD,400034,"Health, Education, Care and Safeguarding",Children's & Education Services,103,Third Party Payments,505,Private Contractors,5042,Revenue,"SOCIAL CARE.ADVICE, ADVOCACY & COUNSELLING"
03/12/2021,2243341,550.00,NORTH EAST ADOPTION THERAPY SERVICES LTD,400034,"Health, Education, Care and Safeguarding",Children's & Education Services,103,Third Party Payments,505,Private Contractors,5042,Revenue,"SOCIAL CARE.ADVICE, ADVOCACY & COUNSELLING"
03/12/2021,2243341,650.00,NORTH EAST ADOPTION THERAPY SERVICES LTD,400034,"Health, Education, Care and Safeguarding",Children's & Education Services,103,Third Party Payments,505,Private Contractors,5042,Revenue,"SOCIAL CARE.ADVICE, ADVOCACY & COUNSELLING"
03/12/2021,2243341,700.00,NORTH EAST ADOPTION THERAPY SERVICES LTD,400034,"Health, Education, Care and Safeguarding",Children's & Education Services,103,Third Party Payments,505,Private Contractors,5042,Revenue,"SOCIAL CARE.ADVICE, ADVOCACY & COUNSELLING"
03/12/2021,2243341,800.00,NORTH EAST ADOPTION THERAPY SERVICES LTD,400034,"Health, Education, Care and Safeguarding",Children's & Education Services,103,Third Party Payments,505,Private Contractors,5042,Revenue,"SOCIAL CARE.ADVICE, ADVOCACY & COUNSELLING"
03/12/2021,2243341,1400.00,NORTH EAST ADOPTION THERAPY SERVICES LTD,400034,"Health, Education, Care and Safeguarding",Children's & Education Services,103,Third Party Payments,505,Private Contractors,5042,Revenue,"SOCIAL CARE.ADVICE, ADVOCACY & COUNSELLING"
03/12/2021,2243341,1400.00,NORTH EAST ADOPTION THERAPY SERVICES LTD,400034,"Health, Education, Care and Safeguarding",Children's & Education Services,103,Third Party Payments,505,Private Contractors,5042,Revenue,"SOCIAL CARE.ADVICE, ADVOCACY & COUNSELLING"
03/12/2021,2243342,1084.00,KATNIC LTD T/A H&M HEALTH & MOBILITY,399766,"Health, Education, Care and Safeguarding",Adult Social Care,101,Supplies and Services,504,Equipment,5023,Revenue,SOCIAL CARE.FITTED EQUIPMENT
03/12/2021,2243343,16000.00,RIGHT-TRAK LTD,368679,"Health, Education, Care and Safeguarding",Children's & Education Services,103,Third Party Payments,505,Private Contractors,5042,Revenue,SOCIAL CARE.NURSING & RESIDENTIAL CARE
03/12/2021,2243343,16000.00,RIGHT-TRAK LTD,368679,"Health, Education, Care and Safeguarding",Children's & Education Services,103,Third Party Payments,505,Private Contractors,5042,Revenue,SOCIAL CARE.NURSING & RESIDENTIAL CARE
03/12/2021,2243346,25640.46,NHS BUSINESS SERVICES AUTHORITY,394538,"Health, Education, Care and Safeguarding",Children's & Education Services,103,Supplies and Services,504,"Printing, Stationery and General Office Expenses",5026,Revenue,FINANCIAL SERVICES.PENSION FUNDS
03/12/2021,2243347,2312.04,EASIBATHE,002076,Housing Property and Construction,Housing Services,108,Capital,Capital,Capital,Capital,Revenue,REPAIRS & MAINTENANCE.ADAPTATIONS TO HOMES
03/12/2021,2243347,6160.35,EASIBATHE,002076,Housing Property and Construction,Housing Services,108,Capital,Capital,Capital,Capital,Revenue,REPAIRS & MAINTENANCE.ADAPTATIONS TO HOMES
03/12/2021,2243348,2702.49,Redacted Personal Data,399138,"Health, Education, Care and Safeguarding",Adult Social Care,101,Supplies and Services,504,Miscellaneous Expenses,5034,Revenue,NON INFLUENCIBLE.DOCTORS/MEDICAL FEES
03/12/2021,2243349,528.00,Redacted Personal Data,399043,"Health, Education, Care and Safeguarding",Children's & Education Services,103,Supplies and Services,504,Miscellaneous Expenses,5034,Revenue,NON INFLUENCIBLE.WELFARE
03/12/2021,2243350,0.00,MICHAEL J MCALLISTER TAXIS,398960,Commissioning & Asset Management,Children's & Education Services,103,Transport,503,Recharges,5017,Revenue,PUBLIC TRANSPORT.TAXI SERVICES
03/12/2021,2243350,1326.20,MICHAEL J MCALLISTER TAXIS,398960,Commissioning & Asset Management,Children's & Education Services,103,Transport,503,Recharges,5017,Revenue,PUBLIC TRANSPORT.TAXI SERVICES
03/12/2021,2243352,500.00,P F DWYER LTD,398775,Capital,Capital,Capital,Capital,Capital,Capital,Capital,Capital,CONSULTANCY.CONSULTANCY
03/12/2021,2243353,1813.27,PEBBLE SF SOFTWARE LTD,387635,Commissioning & Asset Management,Children's & Education Services,103,Supplies and Services,504,Catering,5024,Revenue,ICT.SOFTWARE
03/12/2021,2243354,14975.50,JW COLPITTS & CO LTD,397740,Capital,Capital,Capital,Third Party Payments,505,Private Contractors,5042,Capital,REPAIRS & MAINTENANCE.REPAIRS & MAINTENANCE
03/12/2021,2243355,6885.06,SITA UK LIMITED,359430,Housing Property and Construction,Housing Services,108,Transport,503,Contract Hire and Operating Leases,5018,Revenue,WASTE.RECYCLING
03/12/2021,2243357,14964.94,ROC NORTH WEST LTD,398384,"Health, Education, Care and Safeguarding",Children's & Education Services,103,Third Party Payments,505,Private Contractors,5042,Revenue,SOCIAL CARE.FAMILY SUPPORT
03/12/2021,2243358,1186.40,CTRACK LIMITED,397787,Housing Property and Construction,Housing Services,108,Supplies and Services,504,Communications & Computing,5028,Revenue,VEHICLE MANAGEMENT.FLEET MANAGEMENT
03/12/2021,2243360,0.00,Redacted Personal Data,395876,Commissioning & Asset Management,Children's & Education Services,103,Transfer Payments,506,School Children and Students,5046,Revenue,PUBLIC TRANSPORT.TAXI SERVICES
03/12/2021,2243360,2360.00,Redacted Personal Data,395876,Commissioning & Asset Management,Children's & Education Services,103,Transfer Payments,506,School Children and Students,5046,Revenue,PUBLIC TRANSPORT.TAXI SERVICES
03/12/2021,2243361,100.00,ASHTEAD PLANT HIRE CO LTD,398163,Housing Property and Construction,Housing Services,108,Capital,Capital,Capital,Capital,Revenue,BUILDING MATERIALS.HAND TOOLS
03/12/2021,2243361,175.00,ASHTEAD PLANT HIRE CO LTD,398163,Housing Property and Construction,Housing Services,108,Capital,Capital,Capital,Capital,Revenue,BUILDING MATERIALS.HAND TOOLS
03/12/2021,2243361,289.59,ASHTEAD PLANT HIRE CO LTD,398163,Housing Property and Construction,Housing Services,108,Capital,Capital,Capital,Capital,Revenue,BUILDING MATERIALS.HAND TOOLS
03/12/2021,2243362,250.00,DYSON ENERGY SERVICES LTD,398153,Housing Property and Construction,Housing Services,108,Capital,Capital,Capital,Capital,Revenue,REPAIRS & MAINTENANCE.REPAIRS & MAINTENANCE
03/12/2021,2243362,800.00,DYSON ENERGY SERVICES LTD,398153,Housing Property and Construction,Housing Services,108,Capital,Capital,Capital,Capital,Revenue,REPAIRS & MAINTENANCE.REPAIRS & MAINTENANCE
03/12/2021,2243363,240.00,DJ INSTALLATION & FABRICATION LTD,004782,Housing Property and Construction,Housing Services,108,Capital,Capital,Capital,Capital,Revenue,REPAIRS & MAINTENANCE.REPAIRS & MAINTENANCE
03/12/2021,2243364,120.00,E3 ECOLOGY LTD,366182,Capital,Capital,Capital,Capital,Capital,Capital,Capital,Capital,ENVIRONMENTAL SERVICES.TESTING & INSPECTION
03/12/2021,2243364,280.00,E3 ECOLOGY LTD,366182,Capital,Capital,Capital,Capital,Capital,Capital,Capital,Capital,ENVIRONMENTAL SERVICES.TESTING & INSPECTION
03/12/2021,2243365,103.68,REXEL UK LTD,347413,Housing Property and Construction,Housing Services,108,Supplies and Services,504,Equipment,5023,Revenue,STATIONERY.STATIONERY
03/12/2021,2243365,113.40,REXEL UK LTD,347413,Housing Property and Construction,Housing Services,108,Supplies and Services,504,Equipment,5023,Revenue,STATIONERY.STATIONERY
03/12/2021,2243365,570.00,REXEL UK LTD,347413,Housing Property and Construction,Housing Services,108,Supplies and Services,504,Equipment,5023,Revenue,STATIONERY.STATIONERY
03/12/2021,2243367,4.25,J T DOVE LTD,004226,Housing Property and Construction,Housing Services,108,Supplies and Services,504,Equipment,5023,Revenue,BUILDING MATERIALS.GENERAL MATERIALS
03/12/2021,2243367,5.50,J T DOVE LTD,004226,Housing Property and Construction,Housing Services,108,Supplies and Services,504,Equipment,5023,Revenue,BUILDING MATERIALS.GENERAL MATERIALS
03/12/2021,2243367,10.80,J T DOVE LTD,004226,Housing Property and Construction,Housing Services,108,Supplies and Services,504,Equipment,5023,Revenue,BUILDING MATERIALS.GENERAL MATERIALS
03/12/2021,2243367,14.25,J T DOVE LTD,004226,Housing Property and Construction,Housing Services,108,Supplies and Services,504,Equipment,5023,Revenue,BUILDING MATERIALS.GENERAL MATERIALS
03/12/2021,2243367,15.75,J T DOVE LTD,004226,Housing Property and Construction,Housing Services,108,Supplies and Services,504,Equipment,5023,Revenue,BUILDING MATERIALS.GENERAL MATERIALS
03/12/2021,2243367,19.00,J T DOVE LTD,004226,Housing Property and Construction,Housing Services,108,Supplies and Services,504,Equipment,5023,Revenue,BUILDING MATERIALS.GENERAL MATERIALS
03/12/2021,2243367,24.50,J T DOVE LTD,004226,Housing Property and Construction,Housing Services,108,Supplies and Services,504,Equipment,5023,Revenue,BUILDING MATERIALS.GENERAL MATERIALS
03/12/2021,2243367,24.60,J T DOVE LTD,004226,Housing Property and Construction,Housing Services,108,Supplies and Services,504,Equipment,5023,Revenue,BUILDING MATERIALS.GENERAL MATERIALS
03/12/2021,2243367,27.35,J T DOVE LTD,004226,Housing Property and Construction,Housing Services,108,Supplies and Services,504,Equipment,5023,Revenue,BUILDING MATERIALS.GENERAL MATERIALS
03/12/2021,2243367,44.75,J T DOVE LTD,004226,Housing Property and Construction,Housing Services,108,Supplies and Services,504,Equipment,5023,Revenue,BUILDING MATERIALS.GENERAL MATERIALS
03/12/2021,2243367,57.00,J T DOVE LTD,004226,Housing Property and Construction,Housing Services,108,Supplies and Services,504,Equipment,5023,Revenue,BUILDING MATERIALS.GENERAL MATERIALS
03/12/2021,2243367,63.00,J T DOVE LTD,004226,Housing Property and Construction,Housing Services,108,Supplies and Services,504,Equipment,5023,Revenue,BUILDING MATERIALS.GENERAL MATERIALS
03/12/2021,2243367,76.68,J T DOVE LTD,004226,Housing Property and Construction,Housing Services,108,Supplies and Services,504,Equipment,5023,Revenue,BUILDING MATERIALS.GENERAL MATERIALS
03/12/2021,2243367,80.00,J T DOVE LTD,004226,Housing Property and Construction,Housing Services,108,Supplies and Services,504,Equipment,5023,Revenue,BUILDING MATERIALS.GENERAL MATERIALS
03/12/2021,2243367,80.28,J T DOVE LTD,004226,Housing Property and Construction,Housing Services,108,Supplies and Services,504,Equipment,5023,Revenue,BUILDING MATERIALS.GENERAL MATERIALS
03/12/2021,2243367,100.00,J T DOVE LTD,004226,Housing Property and Construction,Housing Services,108,Supplies and Services,504,Equipment,5023,Revenue,BUILDING MATERIALS.GENERAL MATERIALS
03/12/2021,2243367,105.12,J T DOVE LTD,004226,Housing Property and Construction,Housing Services,108,Supplies and Services,504,Equipment,5023,Revenue,BUILDING MATERIALS.GENERAL MATERIALS
03/12/2021,2243367,115.50,J T DOVE LTD,004226,Housing Property and Construction,Housing Services,108,Supplies and Services,504,Equipment,5023,Revenue,BUILDING MATERIALS.GENERAL MATERIALS
03/12/2021,2243367,150.00,J T DOVE LTD,004226,Housing Property and Construction,Housing Services,108,Supplies and Services,504,Equipment,5023,Revenue,BUILDING MATERIALS.GENERAL MATERIALS
03/12/2021,2243367,150.00,J T DOVE LTD,004226,Housing Property and Construction,Housing Services,108,Supplies and Services,504,Equipment,5023,Revenue,BUILDING MATERIALS.GENERAL MATERIALS
03/12/2021,2243367,156.00,J T DOVE LTD,004226,Housing Property and Construction,Housing Services,108,Supplies and Services,504,Equipment,5023,Revenue,BUILDING MATERIALS.GENERAL MATERIALS
03/12/2021,2243367,174.50,J T DOVE LTD,004226,Housing Property and Construction,Housing Services,108,Supplies and Services,504,Equipment,5023,Revenue,BUILDING MATERIALS.GENERAL MATERIALS
03/12/2021,2243367,187.44,J T DOVE LTD,004226,Housing Property and Construction,Housing Services,108,Supplies and Services,504,Equipment,5023,Revenue,BUILDING MATERIALS.GENERAL MATERIALS
03/12/2021,2243367,200.00,J T DOVE LTD,004226,Housing Property and Construction,Housing Services,108,Supplies and Services,504,Equipment,5023,Revenue,BUILDING MATERIALS.GENERAL MATERIALS
03/12/2021,2243367,209.44,J T DOVE LTD,004226,Housing Property and Construction,Housing Services,108,Supplies and Services,504,Equipment,5023,Revenue,BUILDING MATERIALS.GENERAL MATERIALS
03/12/2021,2243367,222.00,J T DOVE LTD,004226,Housing Property and Construction,Housing Services,108,Supplies and Services,504,Equipment,5023,Revenue,BUILDING MATERIALS.GENERAL MATERIALS
03/12/2021,2243367,248.40,J T DOVE LTD,004226,Housing Property and Construction,Housing Services,108,Supplies and Services,504,Equipment,5023,Revenue,BUILDING MATERIALS.GENERAL MATERIALS
03/12/2021,2243367,256.00,J T DOVE LTD,004226,Housing Property and Construction,Housing Services,108,Supplies and Services,504,Equipment,5023,Revenue,BUILDING MATERIALS.GENERAL MATERIALS
03/12/2021,2243367,256.00,J T DOVE LTD,004226,Housing Property and Construction,Housing Services,108,Supplies and Services,504,Equipment,5023,Revenue,BUILDING MATERIALS.GENERAL MATERIALS
03/12/2021,2243367,300.00,J T DOVE LTD,004226,Housing Property and Construction,Housing Services,108,Supplies and Services,504,Equipment,5023,Revenue,BUILDING MATERIALS.GENERAL MATERIALS
03/12/2021,2243367,330.00,J T DOVE LTD,004226,Housing Property and Construction,Housing Services,108,Supplies and Services,504,Equipment,5023,Revenue,BUILDING MATERIALS.GENERAL MATERIALS
03/12/2021,2243367,334.50,J T DOVE LTD,004226,Housing Property and Construction,Housing Services,108,Supplies and Services,504,Equipment,5023,Revenue,BUILDING MATERIALS.GENERAL MATERIALS
03/12/2021,2243367,372.00,J T DOVE LTD,004226,Housing Property and Construction,Housing Services,108,Supplies and Services,504,Equipment,5023,Revenue,BUILDING MATERIALS.GENERAL MATERIALS
03/12/2021,2243367,385.00,J T DOVE LTD,004226,Housing Property and Construction,Housing Services,108,Supplies and Services,504,Equipment,5023,Revenue,BUILDING MATERIALS.GENERAL MATERIALS
03/12/2021,2243367,492.00,J T DOVE LTD,004226,Housing Property and Construction,Housing Services,108,Supplies and Services,504,Equipment,5023,Revenue,BUILDING MATERIALS.GENERAL MATERIALS
03/12/2021,2243367,554.08,J T DOVE LTD,004226,Housing Property and Construction,Housing Services,108,Supplies and Services,504,Equipment,5023,Revenue,BUILDING MATERIALS.GENERAL MATERIALS
03/12/2021,2243367,681.90,J T DOVE LTD,004226,Housing Property and Construction,Housing Services,108,Supplies and Services,504,Equipment,5023,Revenue,BUILDING MATERIALS.GENERAL MATERIALS
03/12/2021,2243367,1152.00,J T DOVE LTD,004226,Housing Property and Construction,Housing Services,108,Supplies and Services,504,Equipment,5023,Revenue,BUILDING MATERIALS.GENERAL MATERIALS
03/12/2021,2243367,1495.00,J T DOVE LTD,004226,Housing Property and Construction,Housing Services,108,Supplies and Services,504,Equipment,5023,Revenue,BUILDING MATERIALS.GENERAL MATERIALS
03/12/2021,2243369,425.43,ALL FLOORS (SERVICES) LTD,397729,Housing Property and Construction,Housing Services,108,Capital,Capital,Capital,Capital,Revenue,REPAIRS & MAINTENANCE.REPAIRS & MAINTENANCE
03/12/2021,2243370,1568.00,LIVEASY LIMITED,385872,"Health, Education, Care and Safeguarding",Adult Social Care,101,Supplies and Services,504,Equipment,5023,Revenue,SOCIAL CARE.SUPPLIES
03/12/2021,2243371,500.00,Redacted Personal Data,397425,"Environment, Housing & Leisure",Housing Services,108,Supplies and Services,504,Expenses,5030,Revenue,NON INFLUENCIBLE.NON INFLUENCIBLE
03/12/2021,2243371,955.72,Redacted Personal Data,397425,"Environment, Housing & Leisure",Housing Services,108,Supplies and Services,504,Expenses,5030,Revenue,NON INFLUENCIBLE.NON INFLUENCIBLE
03/12/2021,2243372,16928.57,KEYS GROUP,393286,"Health, Education, Care and Safeguarding",Children's & Education Services,103,Third Party Payments,505,Private Contractors,5042,Revenue,SOCIAL CARE.CARE SERVICES
03/12/2021,2243374,9040.00,ETHITEC,396087,"Health, Education, Care and Safeguarding",Adult Social Care,101,Supplies and Services,504,Equipment,5023,Revenue,ICT.SOFTWARE
03/12/2021,2243375,4464.17,A & J KEITH LTD,322019,Housing Property and Construction,Housing Services,108,Capital,Capital,Capital,Capital,Revenue,REPAIRS & MAINTENANCE.REPAIRS & MAINTENANCE
03/12/2021,2243375,4500.00,A & J KEITH LTD,322019,Housing Property and Construction,Housing Services,108,Capital,Capital,Capital,Capital,Revenue,REPAIRS & MAINTENANCE.REPAIRS & MAINTENANCE
03/12/2021,2243376,582.00,DEVILBISS HEALTHCARE LTD,305544,"Health, Education, Care and Safeguarding",Adult Social Care,101,Supplies and Services,504,Equipment,5023,Revenue,BUILDING MATERIALS.ELECTRICAL
03/12/2021,2243377,171.06,CASTLE VIEW GROUP,395092,"Health, Education, Care and Safeguarding",Children's & Education Services,103,Third Party Payments,505,Private Contractors,5042,Revenue,SOCIAL CARE.FAMILY SUPPORT
03/12/2021,2243377,272.00,CASTLE VIEW GROUP,395092,"Health, Education, Care and Safeguarding",Children's & Education Services,103,Third Party Payments,505,Private Contractors,5042,Revenue,SOCIAL CARE.FAMILY SUPPORT
03/12/2021,2243377,288.00,CASTLE VIEW GROUP,395092,"Health, Education, Care and Safeguarding",Children's & Education Services,103,Third Party Payments,505,Private Contractors,5042,Revenue,SOCIAL CARE.FAMILY SUPPORT
03/12/2021,2243377,4368.00,CASTLE VIEW GROUP,395092,"Health, Education, Care and Safeguarding",Children's & Education Services,103,Third Party Payments,505,Private Contractors,5042,Revenue,SOCIAL CARE.FAMILY SUPPORT
03/12/2021,2243377,4368.00,CASTLE VIEW GROUP,395092,"Health, Education, Care and Safeguarding",Children's & Education Services,103,Third Party Payments,505,Private Contractors,5042,Revenue,SOCIAL CARE.FAMILY SUPPORT
03/12/2021,2243377,4368.00,CASTLE VIEW GROUP,395092,"Health, Education, Care and Safeguarding",Children's & Education Services,103,Third Party Payments,505,Private Contractors,5042,Revenue,SOCIAL CARE.FAMILY SUPPORT
03/12/2021,2243377,5376.00,CASTLE VIEW GROUP,395092,"Health, Education, Care and Safeguarding",Children's & Education Services,103,Third Party Payments,505,Private Contractors,5042,Revenue,SOCIAL CARE.FAMILY SUPPORT
03/12/2021,2243377,5652.00,CASTLE VIEW GROUP,395092,"Health, Education, Care and Safeguarding",Children's & Education Services,103,Third Party Payments,505,Private Contractors,5042,Revenue,SOCIAL CARE.FAMILY SUPPORT
03/12/2021,2243378,261.99,Redacted Personal Data,392982,"Health, Education, Care and Safeguarding",Children's & Education Services,103,Third Party Payments,505,Private Contractors,5042,Revenue,NON INFLUENCIBLE.GRANTS
03/12/2021,2243379,1560.00,STEVE JOHNSTON TAXI SERVICE,394914,Commissioning & Asset Management,Children's & Education Services,103,Transport,503,Recharges,5017,Revenue,PUBLIC TRANSPORT.TAXI SERVICES
03/12/2021,2243380,286.95,BENMOR MEDICAL UK LTD,381444,"Health, Education, Care and Safeguarding",Adult Social Care,101,Supplies and Services,504,Equipment,5023,Revenue,SOCIAL CARE.SUPPLIES
03/12/2021,2243382,360.00,G&P HEALTHCARE LTD,393780,"Health, Education, Care and Safeguarding",Children's & Education Services,103,Supplies and Services,504,Miscellaneous Expenses,5034,Revenue,SOCIAL CARE.HOMECARE SERVICES
03/12/2021,2243382,360.00,G&P HEALTHCARE LTD,393780,"Health, Education, Care and Safeguarding",Children's & Education Services,103,Supplies and Services,504,Miscellaneous Expenses,5034,Revenue,SOCIAL CARE.HOMECARE SERVICES
03/12/2021,2243382,432.00,G&P HEALTHCARE LTD,393780,"Health, Education, Care and Safeguarding",Children's & Education Services,103,Supplies and Services,504,Miscellaneous Expenses,5034,Revenue,SOCIAL CARE.HOMECARE SERVICES
03/12/2021,2243382,450.00,G&P HEALTHCARE LTD,393780,"Health, Education, Care and Safeguarding",Children's & Education Services,103,Supplies and Services,504,Miscellaneous Expenses,5034,Revenue,SOCIAL CARE.HOMECARE SERVICES
03/12/2021,2243382,450.00,G&P HEALTHCARE LTD,393780,"Health, Education, Care and Safeguarding",Children's & Education Services,103,Supplies and Services,504,Miscellaneous Expenses,5034,Revenue,SOCIAL CARE.HOMECARE SERVICES
03/12/2021,2243382,1080.00,G&P HEALTHCARE LTD,393780,"Health, Education, Care and Safeguarding",Children's & Education Services,103,Supplies and Services,504,Miscellaneous Expenses,5034,Revenue,SOCIAL CARE.HOMECARE SERVICES
03/12/2021,2243382,1098.00,G&P HEALTHCARE LTD,393780,"Health, Education, Care and Safeguarding",Children's & Education Services,103,Supplies and Services,504,Miscellaneous Expenses,5034,Revenue,SOCIAL CARE.HOMECARE SERVICES
03/12/2021,2243382,1134.00,G&P HEALTHCARE LTD,393780,"Health, Education, Care and Safeguarding",Children's & Education Services,103,Supplies and Services,504,Miscellaneous Expenses,5034,Revenue,SOCIAL CARE.HOMECARE SERVICES
03/12/2021,2243382,1188.00,G&P HEALTHCARE LTD,393780,"Health, Education, Care and Safeguarding",Children's & Education Services,103,Supplies and Services,504,Miscellaneous Expenses,5034,Revenue,SOCIAL CARE.HOMECARE SERVICES
03/12/2021,2243382,1620.00,G&P HEALTHCARE LTD,393780,"Health, Education, Care and Safeguarding",Children's & Education Services,103,Supplies and Services,504,Miscellaneous Expenses,5034,Revenue,SOCIAL CARE.HOMECARE SERVICES
03/12/2021,2243382,1800.00,G&P HEALTHCARE LTD,393780,"Health, Education, Care and Safeguarding",Children's & Education Services,103,Supplies and Services,504,Miscellaneous Expenses,5034,Revenue,SOCIAL CARE.HOMECARE SERVICES
03/12/2021,2243382,1800.00,G&P HEALTHCARE LTD,393780,"Health, Education, Care and Safeguarding",Children's & Education Services,103,Supplies and Services,504,Miscellaneous Expenses,5034,Revenue,SOCIAL CARE.HOMECARE SERVICES
03/12/2021,2243382,1800.00,G&P HEALTHCARE LTD,393780,"Health, Education, Care and Safeguarding",Children's & Education Services,103,Supplies and Services,504,Miscellaneous Expenses,5034,Revenue,SOCIAL CARE.HOMECARE SERVICES
03/12/2021,2243383,1000.00,WALKING WITH,362924,"Environment, Housing & Leisure",Housing Services,108,Supplies and Services,504,Expenses,5030,Revenue,NON INFLUENCIBLE.GRANTS
03/12/2021,2243386,0.00,S&B TAXIS,361901,Commissioning & Asset Management,Children's & Education Services,103,Transport,503,Recharges,5017,Revenue,PUBLIC TRANSPORT.TAXI SERVICES
03/12/2021,2243386,2352.00,S&B TAXIS,361901,Commissioning & Asset Management,Children's & Education Services,103,Transport,503,Recharges,5017,Revenue,PUBLIC TRANSPORT.TAXI SERVICES
03/12/2021,2243387,904.80,HOMECARE PLUS LIMITED,392990,"Health, Education, Care and Safeguarding",Public Health,112,Third Party Payments,505,Private Contractors,5042,Revenue,SOCIAL CARE.CARE SERVICES
03/12/2021,2243387,1016.79,HOMECARE PLUS LIMITED,392990,"Health, Education, Care and Safeguarding",Public Health,112,Third Party Payments,505,Private Contractors,5042,Revenue,SOCIAL CARE.CARE SERVICES
03/12/2021,2243387,1029.60,HOMECARE PLUS LIMITED,392990,"Health, Education, Care and Safeguarding",Public Health,112,Third Party Payments,505,Private Contractors,5042,Revenue,SOCIAL CARE.CARE SERVICES
03/12/2021,2243387,1045.20,HOMECARE PLUS LIMITED,392990,"Health, Education, Care and Safeguarding",Public Health,112,Third Party Payments,505,Private Contractors,5042,Revenue,SOCIAL CARE.CARE SERVICES
03/12/2021,2243387,1070.30,HOMECARE PLUS LIMITED,392990,"Health, Education, Care and Safeguarding",Public Health,112,Third Party Payments,505,Private Contractors,5042,Revenue,SOCIAL CARE.CARE SERVICES
03/12/2021,2243387,1092.00,HOMECARE PLUS LIMITED,392990,"Health, Education, Care and Safeguarding",Public Health,112,Third Party Payments,505,Private Contractors,5042,Revenue,SOCIAL CARE.CARE SERVICES
03/12/2021,2243387,1092.00,HOMECARE PLUS LIMITED,392990,"Health, Education, Care and Safeguarding",Public Health,112,Third Party Payments,505,Private Contractors,5042,Revenue,SOCIAL CARE.CARE SERVICES
03/12/2021,2243387,1092.00,HOMECARE PLUS LIMITED,392990,"Health, Education, Care and Safeguarding",Public Health,112,Third Party Payments,505,Private Contractors,5042,Revenue,SOCIAL CARE.CARE SERVICES
03/12/2021,2243387,1092.00,HOMECARE PLUS LIMITED,392990,"Health, Education, Care and Safeguarding",Public Health,112,Third Party Payments,505,Private Contractors,5042,Revenue,SOCIAL CARE.CARE SERVICES
03/12/2021,2243387,19874.58,HOMECARE PLUS LIMITED,392990,"Health, Education, Care and Safeguarding",Adult Social Care,101,Third Party Payments,505,Private Contractors,5042,Revenue,SOCIAL CARE.CARE SERVICES
03/12/2021,2243388,9739.03,BALFOUR BEATTY WORKPLACE LIMITED,389026,Commissioning & Asset Management,Central Services,102,Third Party Payments,505,Private Contractors,5042,Revenue,HUMAN RESOURCES.PROFESSIONAL & ADVISORY SERVICES
03/12/2021,2243388,84210.57,BALFOUR BEATTY WORKPLACE LIMITED,389026,Resources,Central Services,102,Third Party Payments,505,Private Contractors,5042,Revenue,HUMAN RESOURCES.PROFESSIONAL & ADVISORY SERVICES
03/12/2021,2243388,119440.10,BALFOUR BEATTY WORKPLACE LIMITED,389026,Corporate Strategy,Central Services,102,Third Party Payments,505,Private Contractors,5042,Revenue,HUMAN RESOURCES.PROFESSIONAL & ADVISORY SERVICES
03/12/2021,2243388,183251.47,BALFOUR BEATTY WORKPLACE LIMITED,389026,Resources,Central Services,102,Third Party Payments,505,Private Contractors,5042,Revenue,HUMAN RESOURCES.PROFESSIONAL & ADVISORY SERVICES
03/12/2021,2243388,211814.20,BALFOUR BEATTY WORKPLACE LIMITED,389026,Resources,Central Services,102,Third Party Payments,505,Private Contractors,5042,Revenue,HUMAN RESOURCES.PROFESSIONAL & ADVISORY SERVICES
03/12/2021,2243388,342231.01,BALFOUR BEATTY WORKPLACE LIMITED,389026,Resources,Central Services,102,Third Party Payments,505,Private Contractors,5042,Revenue,HUMAN RESOURCES.PROFESSIONAL & ADVISORY SERVICES
03/12/2021,2243389,3018.30,DR EWA HARRINGTON,385767,"Health, Education, Care and Safeguarding",Adult Social Care,101,Supplies and Services,504,Miscellaneous Expenses,5034,Revenue,NON INFLUENCIBLE.DOCTORS/MEDICAL FEES
03/12/2021,2243393,1680.00,Redacted Personal Data,390223,Commissioning & Asset Management,Children's & Education Services,103,Transport,503,Recharges,5017,Revenue,PUBLIC TRANSPORT.TAXI SERVICES
03/12/2021,2243394,609.12,NOTTINGHAM REHAB LIMITED,014765,"Health, Education, Care and Safeguarding",Adult Social Care,101,Supplies and Services,504,Equipment,5023,Revenue,SOCIAL CARE.SUPPLIES
03/12/2021,2243394,1336.80,NOTTINGHAM REHAB LIMITED,014765,"Health, Education, Care and Safeguarding",Adult Social Care,101,Supplies and Services,504,Equipment,5023,Revenue,SOCIAL CARE.SUPPLIES
03/12/2021,2243394,3937.60,NOTTINGHAM REHAB LIMITED,014765,"Health, Education, Care and Safeguarding",Adult Social Care,101,Supplies and Services,504,Equipment,5023,Revenue,SOCIAL CARE.SUPPLIES
03/12/2021,2243395,2135.00,CAPITA SYMONDS LTD,376582,"Environment, Housing & Leisure",Environmental & Regulatory Services,105,Supplies and Services,504,Miscellaneous Expenses,5034,Revenue,REPAIRS & MAINTENANCE.REPAIRS & MAINTENANCE
03/12/2021,2243395,8961.00,CAPITA SYMONDS LTD,376582,"Environment, Housing & Leisure",Environmental & Regulatory Services,105,Supplies and Services,504,Miscellaneous Expenses,5034,Revenue,REPAIRS & MAINTENANCE.REPAIRS & MAINTENANCE
03/12/2021,2243395,50646.30,CAPITA SYMONDS LTD,376582,"Environment, Housing & Leisure",Environmental & Regulatory Services,105,Third Party Payments,505,Private Contractors,5042,Revenue,REPAIRS & MAINTENANCE.REPAIRS & MAINTENANCE
03/12/2021,2243395,53600.38,CAPITA SYMONDS LTD,376582,"Environment, Housing & Leisure",Environmental & Regulatory Services,105,Third Party Payments,505,Private Contractors,5042,Revenue,REPAIRS & MAINTENANCE.REPAIRS & MAINTENANCE
03/12/2021,2243395,53983.53,CAPITA SYMONDS LTD,376582,"Environment, Housing & Leisure",Environmental & Regulatory Services,105,Third Party Payments,505,Private Contractors,5042,Revenue,REPAIRS & MAINTENANCE.REPAIRS & MAINTENANCE
03/12/2021,2243395,59514.24,CAPITA SYMONDS LTD,376582,"Environment, Housing & Leisure",Central Services,102,Third Party Payments,505,Private Contractors,5042,Revenue,REPAIRS & MAINTENANCE.REPAIRS & MAINTENANCE
03/12/2021,2243395,342627.44,CAPITA SYMONDS LTD,376582,"Environment, Housing & Leisure",Planning Services,110,Third Party Payments,505,Private Contractors,5042,Revenue,REPAIRS & MAINTENANCE.REPAIRS & MAINTENANCE
03/12/2021,2243395,586089.89,CAPITA SYMONDS LTD,376582,Commissioning & Asset Management,Environmental & Regulatory Services,105,Third Party Payments,505,Private Contractors,5042,Revenue,REPAIRS & MAINTENANCE.REPAIRS & MAINTENANCE
03/12/2021,2243395,619238.22,CAPITA SYMONDS LTD,376582,"Environment, Housing & Leisure",Environmental & Regulatory Services,105,Third Party Payments,505,Private Contractors,5042,Revenue,REPAIRS & MAINTENANCE.REPAIRS & MAINTENANCE
03/12/2021,2243395,2238604.89,CAPITA SYMONDS LTD,376582,"Environment, Housing & Leisure",Highways & Transport Services,107,Third Party Payments,505,Private Contractors,5042,Revenue,REPAIRS & MAINTENANCE.REPAIRS & MAINTENANCE
03/12/2021,2243396,500.00,Redacted Personal Data,399669,Central Items,Planning Services,110,Capital,Capital,Capital,Capital,Revenue,NON INFLUENCIBLE.GRANTS
03/12/2021,2243397,500.00,Redacted Personal Data,399669,Central Items,Planning Services,110,Capital,Capital,Capital,Capital,Revenue,NON INFLUENCIBLE.GRANTS
03/12/2021,2243398,500.00,Redacted Personal Data,399669,Central Items,Planning Services,110,Capital,Capital,Capital,Capital,Revenue,NON INFLUENCIBLE.GRANTS
03/12/2021,2243399,500.00,Redacted Personal Data,399669,Central Items,Planning Services,110,Capital,Capital,Capital,Capital,Revenue,NON INFLUENCIBLE.GRANTS
03/12/2021,2243400,500.00,Redacted Personal Data,399669,Central Items,Planning Services,110,Capital,Capital,Capital,Capital,Revenue,NON INFLUENCIBLE.GRANTS
03/12/2021,2243401,500.00,Redacted Personal Data,399669,Central Items,Planning Services,110,Capital,Capital,Capital,Capital,Revenue,NON INFLUENCIBLE.GRANTS
03/12/2021,2243402,500.00,Redacted Personal Data,399669,Central Items,Planning Services,110,Capital,Capital,Capital,Capital,Revenue,NON INFLUENCIBLE.GRANTS
03/12/2021,2243403,500.00,Redacted Personal Data,399669,Central Items,Planning Services,110,Capital,Capital,Capital,Capital,Revenue,NON INFLUENCIBLE.GRANTS
03/12/2021,2243404,500.00,Redacted Personal Data,399669,Central Items,Planning Services,110,Capital,Capital,Capital,Capital,Revenue,NON INFLUENCIBLE.GRANTS
03/12/2021,2243405,500.00,Redacted Personal Data,399669,Central Items,Planning Services,110,Capital,Capital,Capital,Capital,Revenue,NON INFLUENCIBLE.GRANTS
03/12/2021,2243406,500.00,Redacted Personal Data,399669,Central Items,Planning Services,110,Capital,Capital,Capital,Capital,Revenue,NON INFLUENCIBLE.GRANTS
03/12/2021,2243407,500.00,Redacted Personal Data,399669,Central Items,Planning Services,110,Capital,Capital,Capital,Capital,Revenue,NON INFLUENCIBLE.GRANTS
03/12/2021,2243408,500.00,Redacted Personal Data,399669,Central Items,Planning Services,110,Capital,Capital,Capital,Capital,Revenue,NON INFLUENCIBLE.GRANTS
03/12/2021,2243409,500.00,Redacted Personal Data,399669,Central Items,Planning Services,110,Capital,Capital,Capital,Capital,Revenue,NON INFLUENCIBLE.GRANTS
03/12/2021,2243410,500.00,Redacted Personal Data,399669,Central Items,Planning Services,110,Capital,Capital,Capital,Capital,Revenue,NON INFLUENCIBLE.GRANTS
03/12/2021,2243411,500.00,Redacted Personal Data,399669,Central Items,Planning Services,110,Capital,Capital,Capital,Capital,Revenue,NON INFLUENCIBLE.GRANTS
03/12/2021,2243412,500.00,Redacted Personal Data,399669,Central Items,Planning Services,110,Capital,Capital,Capital,Capital,Revenue,NON INFLUENCIBLE.GRANTS
03/12/2021,2243413,500.00,Redacted Personal Data,399669,Central Items,Planning Services,110,Capital,Capital,Capital,Capital,Revenue,NON INFLUENCIBLE.GRANTS
03/12/2021,2243414,500.00,Redacted Personal Data,399669,Central Items,Planning Services,110,Capital,Capital,Capital,Capital,Revenue,NON INFLUENCIBLE.GRANTS
03/12/2021,2243415,500.00,Redacted Personal Data,399669,Central Items,Planning Services,110,Capital,Capital,Capital,Capital,Revenue,NON INFLUENCIBLE.GRANTS
03/12/2021,2243416,500.00,Redacted Personal Data,399669,Central Items,Planning Services,110,Capital,Capital,Capital,Capital,Revenue,NON INFLUENCIBLE.GRANTS
03/12/2021,2243417,500.00,Redacted Personal Data,399669,Central Items,Planning Services,110,Capital,Capital,Capital,Capital,Revenue,NON INFLUENCIBLE.GRANTS
03/12/2021,2243422,300.00,Redacted Personal Data,402299,Commissioning & Asset Management,Children's & Education Services,103,Transfer Payments,506,School Children and Students,5046,Revenue,PUBLIC TRANSPORT.TAXI SERVICES
03/12/2021,2243423,360.00,Redacted Personal Data,402090,"Environment, Housing & Leisure",Cultural & Related Services,104,Supplies and Services,504,Equipment,5023,Revenue,ICT.MAINTENANCE & SUPPORT
03/12/2021,2243424,360.00,CSCS,100500,"Health, Education, Care and Safeguarding",Children's & Education Services,103,Supplies and Services,504,Miscellaneous Expenses,5034,Revenue,REPAIRS & MAINTENANCE.REPAIRS & MAINTENANCE
03/12/2021,2243425,0.00,24 X 7 LTD,401814,Commissioning & Asset Management,Children's & Education Services,103,Transport,503,Recharges,5017,Revenue,PUBLIC TRANSPORT.TAXI SERVICES
03/12/2021,2243425,3044.00,24 X 7 LTD,401814,Commissioning & Asset Management,Children's & Education Services,103,Transport,503,Recharges,5017,Revenue,PUBLIC TRANSPORT.TAXI SERVICES
03/12/2021,2243426,1100.00,Redacted Personal Data,401811,"Environment, Housing & Leisure",Housing Services,108,Supplies and Services,504,Expenses,5030,Revenue,NON INFLUENCIBLE.NON INFLUENCIBLE
03/12/2021,2243428,1300.00,THE COLOUR WORKS INTERNATIONAL LIMITED,401513,Resources,Children's & Education Services,103,Supplies and Services,504,Miscellaneous Expenses,5034,Revenue,HUMAN RESOURCES.TRAINING & CONFERENCES
03/12/2021,2243429,357.00,Redacted Personal Data,394026,"Health, Education, Care and Safeguarding",Children's & Education Services,103,Supplies and Services,504,Miscellaneous Expenses,5034,Revenue,NON INFLUENCIBLE.GRANTS
03/12/2021,2243430,479.25,STEPS SUPPORT,400992,"Health, Education, Care and Safeguarding",Children's & Education Services,103,Supplies and Services,504,Miscellaneous Expenses,5034,Revenue,SOCIAL CARE.CHILDCARE SERVICES
03/12/2021,2243430,513.00,STEPS SUPPORT,400992,"Health, Education, Care and Safeguarding",Children's & Education Services,103,Supplies and Services,504,Miscellaneous Expenses,5034,Revenue,SOCIAL CARE.CHILDCARE SERVICES
03/12/2021,2243430,2106.00,STEPS SUPPORT,400992,"Health, Education, Care and Safeguarding",Children's & Education Services,103,Supplies and Services,504,Miscellaneous Expenses,5034,Revenue,SOCIAL CARE.CHILDCARE SERVICES
03/12/2021,2243431,1000.00,MARK HUNTER,347587,Commissioning & Asset Management,Children's & Education Services,103,Transport,503,Recharges,5017,Revenue,PUBLIC TRANSPORT.TAXI SERVICES
03/12/2021,2243431,1121.00,MARK HUNTER,347587,Commissioning & Asset Management,Children's & Education Services,103,Transport,503,Recharges,5017,Revenue,PUBLIC TRANSPORT.TAXI SERVICES
03/12/2021,2243431,1180.00,MARK HUNTER,347587,Commissioning & Asset Management,Children's & Education Services,103,Transport,503,Recharges,5017,Revenue,PUBLIC TRANSPORT.TAXI SERVICES
03/12/2021,2243431,1200.00,MARK HUNTER,347587,Commissioning & Asset Management,Children's & Education Services,103,Transport,503,Recharges,5017,Revenue,PUBLIC TRANSPORT.TAXI SERVICES
03/12/2021,2243431,1836.00,MARK HUNTER,347587,Commissioning & Asset Management,Children's & Education Services,103,Transport,503,Recharges,5017,Revenue,PUBLIC TRANSPORT.TAXI SERVICES
03/12/2021,2243431,1881.00,MARK HUNTER,347587,Commissioning & Asset Management,Children's & Education Services,103,Transport,503,Recharges,5017,Revenue,PUBLIC TRANSPORT.TAXI SERVICES
03/12/2021,2243431,2200.00,MARK HUNTER,347587,Commissioning & Asset Management,Children's & Education Services,103,Transport,503,Recharges,5017,Revenue,PUBLIC TRANSPORT.TAXI SERVICES
03/12/2021,2243431,2400.00,MARK HUNTER,347587,Commissioning & Asset Management,Children's & Education Services,103,Transfer Payments,506,School Children and Students,5046,Revenue,PUBLIC TRANSPORT.TAXI SERVICES
03/12/2021,2243432,19135.71,KEYSPCE LTD,400625,"Health, Education, Care and Safeguarding",Children's & Education Services,103,Third Party Payments,505,Private Contractors,5042,Revenue,SOCIAL CARE.CARE SERVICES
03/12/2021,2243433,54559.33,KEDLESTON (WINGS EDUCATION) LIMITED,400482,Commissioning & Asset Management,Children's & Education Services,103,Third Party Payments,505,Private Contractors,5042,Revenue,EDUCATIONAL SUPPLIES.EDUCATIONAL PLACEMENTS
03/12/2021,2243435,1368.00,MEKLEC CARS,400445,Central Items,Planning Services,110,Transport,503,Recharges,5017,Revenue,PUBLIC TRANSPORT.TAXI SERVICES
03/12/2021,2243437,385.00,LEARNING CURVE GROUP,397570,"Health, Education, Care and Safeguarding",Children's & Education Services,103,Supplies and Services,504,Equipment,5023,Revenue,HUMAN RESOURCES.TRAINING & CONFERENCES
03/12/2021,2243439,2763.60,INVACARE (UK) LTD,322290,"Health, Education, Care and Safeguarding",Adult Social Care,101,Supplies and Services,504,Equipment,5023,Revenue,SOCIAL CARE.SUPPLIES
03/12/2021,2243440,40000.00,NORTHUMBERLAND COUNTY COUNCIL,319694,Commissioning & Asset Management,Children's & Education Services,103,Third Party Payments,505,Other Local Authorities,5037,Revenue,NON INFLUENCIBLE.PUBLIC SECTOR
03/12/2021,2243443,2000.00,Redacted Personal Data,272405,Commissioning & Asset Management,Children's & Education Services,103,Transport,503,Recharges,5017,Revenue,PUBLIC TRANSPORT.TAXI SERVICES
03/12/2021,2243446,1200.00,LIVING NORTH LTD,362333,"Health, Education, Care and Safeguarding",Children's & Education Services,103,Supplies and Services,504,"Printing, Stationery and General Office Expenses",5026,Revenue,ADVERTISING & MARKETING.ADVERTISING
03/12/2021,2243448,269.75,ALPHA BIOLABS,387258,"Health, Education, Care and Safeguarding",Children's & Education Services,103,Third Party Payments,505,Private Contractors,5042,Revenue,LEGAL.LEGAL OPINION
03/12/2021,2243450,520.00,AIDAPT BATHROOMS LTD,352134,"Health, Education, Care and Safeguarding",Adult Social Care,101,Supplies and Services,504,Equipment,5023,Revenue,SOCIAL CARE.SUPPLIES
03/12/2021,2243451,0.00,Redacted Personal Data,370827,Commissioning & Asset Management,Children's & Education Services,103,Transport,503,Recharges,5017,Revenue,PUBLIC TRANSPORT.TAXI SERVICES
03/12/2021,2243451,1600.00,Redacted Personal Data,370827,Commissioning & Asset Management,Children's & Education Services,103,Transport,503,Recharges,5017,Revenue,PUBLIC TRANSPORT.TAXI SERVICES
03/12/2021,2243452,0.00,ELITE TAXIS,320730,Commissioning & Asset Management,Children's & Education Services,103,Transfer Payments,506,School Children and Students,5046,Revenue,PUBLIC TRANSPORT.TAXI SERVICES
03/12/2021,2243452,2090.00,ELITE TAXIS,320730,Commissioning & Asset Management,Children's & Education Services,103,Transfer Payments,506,School Children and Students,5046,Revenue,PUBLIC TRANSPORT.TAXI SERVICES
03/12/2021,2243453,895.00,W A FAIRHURST & PARTNERS,006810,Capital,Capital,Capital,Supplies and Services,504,Miscellaneous Expenses,5034,Capital,CONSULTANCY.CONSULTANCY
03/12/2021,2243454,0.00,Redacted Personal Data,333622,Commissioning & Asset Management,Children's & Education Services,103,Transport,503,Recharges,5017,Revenue,PUBLIC TRANSPORT.TAXI SERVICES
03/12/2021,2243454,2127.00,Redacted Personal Data,333622,Commissioning & Asset Management,Children's & Education Services,103,Transport,503,Recharges,5017,Revenue,PUBLIC TRANSPORT.TAXI SERVICES
03/12/2021,2243456,1000.00,Redacted Personal Data,364876,Commissioning & Asset Management,Children's & Education Services,103,Transport,503,Recharges,5017,Revenue,PUBLIC TRANSPORT.TAXI SERVICES
03/12/2021,2243457,1175.52,GATESHEAD COUNCIL,231440,Commissioning & Asset Management,Children's & Education Services,103,Third Party Payments,505,Other Local Authorities,5037,Revenue,NON INFLUENCIBLE.PUBLIC SECTOR
03/12/2021,2243457,7706.40,GATESHEAD COUNCIL,231440,Commissioning & Asset Management,Children's & Education Services,103,Third Party Payments,505,Other Local Authorities,5037,Revenue,NON INFLUENCIBLE.PUBLIC SECTOR
03/12/2021,2243457,16891.17,GATESHEAD COUNCIL,231440,Central Items,Planning Services,110,Supplies and Services,504,"Printing, Stationery and General Office Expenses",5026,Revenue,NON INFLUENCIBLE.PUBLIC SECTOR
03/12/2021,2243458,440.00,Redacted Personal Data,363850,Commissioning & Asset Management,Children's & Education Services,103,Transfer Payments,506,School Children and Students,5046,Revenue,PUBLIC TRANSPORT.TAXI SERVICES
03/12/2021,2243458,1360.00,Redacted Personal Data,363850,Commissioning & Asset Management,Children's & Education Services,103,Transport,503,Recharges,5017,Revenue,PUBLIC TRANSPORT.TAXI SERVICES
03/12/2021,2243459,809.00,YMCA NORTH TYNESIDE,356069,"Health, Education, Care and Safeguarding",Children's & Education Services,103,Premises-Related Expenditure,502,Rents,5007,Revenue,SOCIAL CARE.CARE SERVICES
03/12/2021,2243459,995.00,YMCA NORTH TYNESIDE,356069,"Health, Education, Care and Safeguarding",Children's & Education Services,103,Premises-Related Expenditure,502,Rents,5007,Revenue,SOCIAL CARE.CARE SERVICES
03/12/2021,2243459,1791.00,YMCA NORTH TYNESIDE,356069,"Health, Education, Care and Safeguarding",Central Services,102,Premises-Related Expenditure,502,Rents,5007,Revenue,SOCIAL CARE.CARE SERVICES
03/12/2021,2243460,22266.06,APPLETREE TREATMENT CENTRE LTD,328549,"Health, Education, Care and Safeguarding",Children's & Education Services,103,Third Party Payments,505,Private Contractors,5042,Revenue,SOCIAL CARE.NURSING & RESIDENTIAL CARE
03/12/2021,2243461,4520.53,HEALTHMATIC LTD,325703,Commissioning & Asset Management,Central Services,102,Third Party Payments,505,Private Contractors,5042,Revenue,ENVIRONMENTAL SERVICES.ENVIRONMENTAL SERVICES
03/12/2021,2243462,988.00,Redacted Personal Data,234365,Commissioning & Asset Management,Children's & Education Services,103,Transport,503,Recharges,5017,Revenue,PUBLIC TRANSPORT.TAXI SERVICES
03/12/2021,2243462,1710.00,Redacted Personal Data,234365,Commissioning & Asset Management,Children's & Education Services,103,Transport,503,Recharges,5017,Revenue,PUBLIC TRANSPORT.TAXI SERVICES
03/12/2021,2243463,1139.00,CEFNDY ENTERPRISES HEALTHCARE,326032,"Health, Education, Care and Safeguarding",Adult Social Care,101,Supplies and Services,504,Equipment,5023,Revenue,SOCIAL CARE.SUPPLIES
06/12/2021,44858,751.07,COUNCIL TAX REFUND,299993,General Fund Financing,Holding A/C,N/A,Excluded from General Fund,N/A,Collection Fund,N/A,Revenue,NON INFLUENCIBLE.NON INFLUENCIBLE
06/12/2021,44859,765.36,COUNCIL TAX REFUND,299993,General Fund Financing,Holding A/C,N/A,Excluded from General Fund,N/A,Collection Fund,N/A,Revenue,NON INFLUENCIBLE.NON INFLUENCIBLE
06/12/2021,44860,1503.51,COUNCIL TAX REFUND,299993,General Fund Financing,Holding A/C,N/A,Excluded from General Fund,N/A,Collection Fund,N/A,Revenue,NON INFLUENCIBLE.NON INFLUENCIBLE
06/12/2021,44866,1406.50,COUNCIL TAX REFUND,299993,General Fund Financing,Holding A/C,N/A,Excluded from General Fund,N/A,Collection Fund,N/A,Revenue,NON INFLUENCIBLE.NON INFLUENCIBLE
06/12/2021,44868,409.56,COUNCIL TAX REFUND,299993,General Fund Financing,Holding A/C,N/A,Excluded from General Fund,N/A,Collection Fund,N/A,Revenue,NON INFLUENCIBLE.NON INFLUENCIBLE
06/12/2021,44871,904.24,COUNCIL TAX REFUND,299993,General Fund Financing,Holding A/C,N/A,Excluded from General Fund,N/A,Collection Fund,N/A,Revenue,NON INFLUENCIBLE.NON INFLUENCIBLE
06/12/2021,44883,394.03,COUNCIL TAX REFUND,299993,General Fund Financing,Holding A/C,N/A,Excluded from General Fund,N/A,Collection Fund,N/A,Revenue,NON INFLUENCIBLE.NON INFLUENCIBLE
06/12/2021,44896,4814.20,NNDR,299990,General Fund Financing,Holding A/C,N/A,Excluded from General Fund,N/A,Collection Fund,N/A,Revenue,NON INFLUENCIBLE.NON INFLUENCIBLE
06/12/2021,44897,1774.20,NNDR,299990,General Fund Financing,Holding A/C,N/A,Excluded from General Fund,N/A,Collection Fund,N/A,Revenue,NON INFLUENCIBLE.NON INFLUENCIBLE
06/12/2021,44898,955.68,NNDR,299990,General Fund Financing,Holding A/C,N/A,Excluded from General Fund,N/A,Collection Fund,N/A,Revenue,NON INFLUENCIBLE.NON INFLUENCIBLE
06/12/2021,44899,731.07,NNDR,299990,General Fund Financing,Holding A/C,N/A,Excluded from General Fund,N/A,Collection Fund,N/A,Revenue,NON INFLUENCIBLE.NON INFLUENCIBLE
06/12/2021,2243464,406.16,HOUSING BENEFIT,299992,Resources,Housing Services,108,Transfer Payments,506,Housing Benefits,5048,Revenue,NON INFLUENCIBLE.NON INFLUENCIBLE
06/12/2021,2243465,480.00,HOUSING BENEFIT,299992,Resources,Housing Services,108,Transfer Payments,506,Housing Benefits,5048,Revenue,NON INFLUENCIBLE.NON INFLUENCIBLE
06/12/2021,2243466,754.84,HOUSING BENEFIT,299992,Resources,Housing Services,108,Transfer Payments,506,Housing Benefits,5048,Revenue,NON INFLUENCIBLE.NON INFLUENCIBLE
06/12/2021,2243470,391.24,HOUSING BENEFIT,299992,Resources,Housing Services,108,Transfer Payments,506,Housing Benefits,5048,Revenue,NON INFLUENCIBLE.NON INFLUENCIBLE
06/12/2021,2243471,901.92,HOUSING BENEFIT,299992,Resources,Housing Services,108,Transfer Payments,506,Housing Benefits,5048,Revenue,NON INFLUENCIBLE.NON INFLUENCIBLE
06/12/2021,2243472,364.60,HOUSING BENEFIT,299992,Resources,Housing Services,108,Transfer Payments,506,Housing Benefits,5048,Revenue,NON INFLUENCIBLE.NON INFLUENCIBLE
06/12/2021,2243473,437.28,HOUSING BENEFIT,299992,Resources,Housing Services,108,Transfer Payments,506,Housing Benefits,5048,Revenue,NON INFLUENCIBLE.NON INFLUENCIBLE
06/12/2021,2243474,346.24,HOUSING BENEFIT,299992,Resources,Housing Services,108,Transfer Payments,506,Housing Benefits,5048,Revenue,NON INFLUENCIBLE.NON INFLUENCIBLE
06/12/2021,2243475,724.60,HOUSING BENEFIT,299992,Resources,Housing Services,108,Transfer Payments,506,Housing Benefits,5048,Revenue,NON INFLUENCIBLE.NON INFLUENCIBLE
06/12/2021,2243476,437.28,HOUSING BENEFIT,299992,Resources,Housing Services,108,Transfer Payments,506,Housing Benefits,5048,Revenue,NON INFLUENCIBLE.NON INFLUENCIBLE
06/12/2021,2243477,391.24,HOUSING BENEFIT,299992,Resources,Housing Services,108,Transfer Payments,506,Housing Benefits,5048,Revenue,NON INFLUENCIBLE.NON INFLUENCIBLE
06/12/2021,2243478,391.24,HOUSING BENEFIT,299992,Resources,Housing Services,108,Transfer Payments,506,Housing Benefits,5048,Revenue,NON INFLUENCIBLE.NON INFLUENCIBLE
06/12/2021,2243480,13107.72,HOUSING BENEFIT,299992,Resources,Housing Services,108,Transfer Payments,506,Housing Benefits,5048,Revenue,NON INFLUENCIBLE.NON INFLUENCIBLE
06/12/2021,2243481,391.24,HOUSING BENEFIT,299992,Resources,Housing Services,108,Transfer Payments,506,Housing Benefits,5048,Revenue,NON INFLUENCIBLE.NON INFLUENCIBLE
06/12/2021,2243482,391.24,HOUSING BENEFIT,299992,Resources,Housing Services,108,Transfer Payments,506,Housing Benefits,5048,Revenue,NON INFLUENCIBLE.NON INFLUENCIBLE
06/12/2021,2243483,3322.74,HOUSING BENEFIT,299992,Resources,Housing Services,108,Transfer Payments,506,Housing Benefits,5048,Revenue,NON INFLUENCIBLE.NON INFLUENCIBLE
06/12/2021,2243484,2224.48,HOUSING BENEFIT,299992,Resources,Housing Services,108,Transfer Payments,506,Housing Benefits,5048,Revenue,NON INFLUENCIBLE.NON INFLUENCIBLE
06/12/2021,2243486,445.04,HOUSING BENEFIT,299992,Resources,Housing Services,108,Transfer Payments,506,Housing Benefits,5048,Revenue,NON INFLUENCIBLE.NON INFLUENCIBLE
06/12/2021,2243487,437.28,HOUSING BENEFIT,299992,Resources,Housing Services,108,Transfer Payments,506,Housing Benefits,5048,Revenue,NON INFLUENCIBLE.NON INFLUENCIBLE
06/12/2021,2243488,437.28,HOUSING BENEFIT,299992,Resources,Housing Services,108,Transfer Payments,506,Housing Benefits,5048,Revenue,NON INFLUENCIBLE.NON INFLUENCIBLE
06/12/2021,2243489,369.24,HOUSING BENEFIT,299992,Resources,Housing Services,108,Transfer Payments,506,Housing Benefits,5048,Revenue,NON INFLUENCIBLE.NON INFLUENCIBLE
06/12/2021,2243490,391.24,HOUSING BENEFIT,299992,Resources,Housing Services,108,Transfer Payments,506,Housing Benefits,5048,Revenue,NON INFLUENCIBLE.NON INFLUENCIBLE
06/12/2021,2243491,350.76,HOUSING BENEFIT,299992,Resources,Housing Services,108,Transfer Payments,506,Housing Benefits,5048,Revenue,NON INFLUENCIBLE.NON INFLUENCIBLE
06/12/2021,2243492,669.24,HOUSING BENEFIT,299992,Resources,Housing Services,108,Transfer Payments,506,Housing Benefits,5048,Revenue,NON INFLUENCIBLE.NON INFLUENCIBLE
06/12/2021,2243493,1775.28,HOUSING BENEFIT,299992,Resources,Housing Services,108,Transfer Payments,506,Housing Benefits,5048,Revenue,NON INFLUENCIBLE.NON INFLUENCIBLE
06/12/2021,2243502,692.32,HOUSING BENEFIT,299992,Resources,Housing Services,108,Transfer Payments,506,Housing Benefits,5048,Revenue,NON INFLUENCIBLE.NON INFLUENCIBLE
06/12/2021,2243503,461.52,HOUSING BENEFIT,299992,Resources,Housing Services,108,Transfer Payments,506,Housing Benefits,5048,Revenue,NON INFLUENCIBLE.NON INFLUENCIBLE
06/12/2021,2243506,530.76,HOUSING BENEFIT,299992,Resources,Housing Services,108,Transfer Payments,506,Housing Benefits,5048,Revenue,NON INFLUENCIBLE.NON INFLUENCIBLE
06/12/2021,2243507,3615.24,HOUSING BENEFIT,299992,Resources,Housing Services,108,Transfer Payments,506,Housing Benefits,5048,Revenue,NON INFLUENCIBLE.NON INFLUENCIBLE
06/12/2021,2243508,437.28,HOUSING BENEFIT,299992,Resources,Housing Services,108,Transfer Payments,506,Housing Benefits,5048,Revenue,NON INFLUENCIBLE.NON INFLUENCIBLE
06/12/2021,2243509,340.00,HOUSING BENEFIT,299992,Resources,Housing Services,108,Transfer Payments,506,Housing Benefits,5048,Revenue,NON INFLUENCIBLE.NON INFLUENCIBLE
06/12/2021,2243510,291.84,HOUSING BENEFIT,299992,Resources,Housing Services,108,Transfer Payments,506,Housing Benefits,5048,Revenue,NON INFLUENCIBLE.NON INFLUENCIBLE
06/12/2021,2243511,369.24,HOUSING BENEFIT,299992,Resources,Housing Services,108,Transfer Payments,506,Housing Benefits,5048,Revenue,NON INFLUENCIBLE.NON INFLUENCIBLE
06/12/2021,2243512,391.24,HOUSING BENEFIT,299992,Resources,Housing Services,108,Transfer Payments,506,Housing Benefits,5048,Revenue,NON INFLUENCIBLE.NON INFLUENCIBLE
06/12/2021,2243513,392.32,HOUSING BENEFIT,299992,Resources,Housing Services,108,Transfer Payments,506,Housing Benefits,5048,Revenue,NON INFLUENCIBLE.NON INFLUENCIBLE
06/12/2021,2243514,391.24,HOUSING BENEFIT,299992,Resources,Housing Services,108,Transfer Payments,506,Housing Benefits,5048,Revenue,NON INFLUENCIBLE.NON INFLUENCIBLE
06/12/2021,2243515,391.24,HOUSING BENEFIT,299992,Resources,Housing Services,108,Transfer Payments,506,Housing Benefits,5048,Revenue,NON INFLUENCIBLE.NON INFLUENCIBLE
06/12/2021,2243516,199501.23,HOUSING BENEFIT,299992,Resources,Housing Services,108,Transfer Payments,506,Housing Benefits,5048,Revenue,NON INFLUENCIBLE.NON INFLUENCIBLE
06/12/2021,2243517,391.24,HOUSING BENEFIT,299992,Resources,Housing Services,108,Transfer Payments,506,Housing Benefits,5048,Revenue,NON INFLUENCIBLE.NON INFLUENCIBLE
06/12/2021,2243518,380.00,HOUSING BENEFIT,299992,Resources,Housing Services,108,Transfer Payments,506,Housing Benefits,5048,Revenue,NON INFLUENCIBLE.NON INFLUENCIBLE
06/12/2021,2243519,1021.16,HOUSING BENEFIT,299992,Resources,Housing Services,108,Transfer Payments,506,Housing Benefits,5048,Revenue,NON INFLUENCIBLE.NON INFLUENCIBLE
06/12/2021,2243520,369.24,HOUSING BENEFIT,299992,Resources,Housing Services,108,Transfer Payments,506,Housing Benefits,5048,Revenue,NON INFLUENCIBLE.NON INFLUENCIBLE
06/12/2021,2243521,391.24,HOUSING BENEFIT,299992,Resources,Housing Services,108,Transfer Payments,506,Housing Benefits,5048,Revenue,NON INFLUENCIBLE.NON INFLUENCIBLE
06/12/2021,2243522,506.32,HOUSING BENEFIT,299992,Resources,Housing Services,108,Transfer Payments,506,Housing Benefits,5048,Revenue,NON INFLUENCIBLE.NON INFLUENCIBLE
06/12/2021,2243523,6701.88,HOUSING BENEFIT,299992,Resources,Housing Services,108,Transfer Payments,506,Housing Benefits,5048,Revenue,NON INFLUENCIBLE.NON INFLUENCIBLE
06/12/2021,2243524,715.40,HOUSING BENEFIT,299992,Resources,Housing Services,108,Transfer Payments,506,Housing Benefits,5048,Revenue,NON INFLUENCIBLE.NON INFLUENCIBLE
06/12/2021,2243525,369.24,HOUSING BENEFIT,299992,Resources,Housing Services,108,Transfer Payments,506,Housing Benefits,5048,Revenue,NON INFLUENCIBLE.NON INFLUENCIBLE
06/12/2021,2243526,437.28,HOUSING BENEFIT,299992,Resources,Housing Services,108,Transfer Payments,506,Housing Benefits,5048,Revenue,NON INFLUENCIBLE.NON INFLUENCIBLE
06/12/2021,2243527,387.68,HOUSING BENEFIT,299992,Resources,Housing Services,108,Transfer Payments,506,Housing Benefits,5048,Revenue,NON INFLUENCIBLE.NON INFLUENCIBLE
06/12/2021,2243528,346.16,HOUSING BENEFIT,299992,Resources,Housing Services,108,Transfer Payments,506,Housing Benefits,5048,Revenue,NON INFLUENCIBLE.NON INFLUENCIBLE
06/12/2021,2243529,391.24,HOUSING BENEFIT,299992,Resources,Housing Services,108,Transfer Payments,506,Housing Benefits,5048,Revenue,NON INFLUENCIBLE.NON INFLUENCIBLE
06/12/2021,2243530,2377.88,HOUSING BENEFIT,299992,Resources,Housing Services,108,Transfer Payments,506,Housing Benefits,5048,Revenue,NON INFLUENCIBLE.NON INFLUENCIBLE
06/12/2021,2243531,6827.76,HOUSING BENEFIT,299992,Resources,Housing Services,108,Transfer Payments,506,Housing Benefits,5048,Revenue,NON INFLUENCIBLE.NON INFLUENCIBLE
06/12/2021,2243532,730.92,HOUSING BENEFIT,299992,Resources,Housing Services,108,Transfer Payments,506,Housing Benefits,5048,Revenue,NON INFLUENCIBLE.NON INFLUENCIBLE
06/12/2021,2243533,391.24,HOUSING BENEFIT,299992,Resources,Housing Services,108,Transfer Payments,506,Housing Benefits,5048,Revenue,NON INFLUENCIBLE.NON INFLUENCIBLE
06/12/2021,2243534,360.00,HOUSING BENEFIT,299992,Resources,Housing Services,108,Transfer Payments,506,Housing Benefits,5048,Revenue,NON INFLUENCIBLE.NON INFLUENCIBLE
06/12/2021,2243535,356.60,HOUSING BENEFIT,299992,Resources,Housing Services,108,Transfer Payments,506,Housing Benefits,5048,Revenue,NON INFLUENCIBLE.NON INFLUENCIBLE
06/12/2021,2243536,454.16,HOUSING BENEFIT,299992,Resources,Housing Services,108,Transfer Payments,506,Housing Benefits,5048,Revenue,NON INFLUENCIBLE.NON INFLUENCIBLE
06/12/2021,2243537,909.00,HOUSING BENEFIT,299992,Resources,Housing Services,108,Transfer Payments,506,Housing Benefits,5048,Revenue,NON INFLUENCIBLE.NON INFLUENCIBLE
06/12/2021,2243538,480.00,HOUSING BENEFIT,299992,Resources,Housing Services,108,Transfer Payments,506,Housing Benefits,5048,Revenue,NON INFLUENCIBLE.NON INFLUENCIBLE
06/12/2021,2243539,465.72,HOUSING BENEFIT,299992,Resources,Housing Services,108,Transfer Payments,506,Housing Benefits,5048,Revenue,NON INFLUENCIBLE.NON INFLUENCIBLE
06/12/2021,2243557,302.64,HOUSING BENEFIT,299992,Resources,Housing Services,108,Transfer Payments,506,Housing Benefits,5048,Revenue,NON INFLUENCIBLE.NON INFLUENCIBLE
06/12/2021,2243560,377.60,HOUSING BENEFIT,299992,Resources,Housing Services,108,Transfer Payments,506,Housing Benefits,5048,Revenue,NON INFLUENCIBLE.NON INFLUENCIBLE
06/12/2021,2243561,1090.20,HOUSING BENEFIT,299992,Resources,Housing Services,108,Transfer Payments,506,Housing Benefits,5048,Revenue,NON INFLUENCIBLE.NON INFLUENCIBLE
06/12/2021,2243562,391.24,HOUSING BENEFIT,299992,Resources,Housing Services,108,Transfer Payments,506,Housing Benefits,5048,Revenue,NON INFLUENCIBLE.NON INFLUENCIBLE
06/12/2021,2243563,369.24,HOUSING BENEFIT,299992,Resources,Housing Services,108,Transfer Payments,506,Housing Benefits,5048,Revenue,NON INFLUENCIBLE.NON INFLUENCIBLE
06/12/2021,2243564,437.28,HOUSING BENEFIT,299992,Resources,Housing Services,108,Transfer Payments,506,Housing Benefits,5048,Revenue,NON INFLUENCIBLE.NON INFLUENCIBLE
06/12/2021,2243565,507.68,HOUSING BENEFIT,299992,Resources,Housing Services,108,Transfer Payments,506,Housing Benefits,5048,Revenue,NON INFLUENCIBLE.NON INFLUENCIBLE
06/12/2021,2243566,391.24,HOUSING BENEFIT,299992,Resources,Housing Services,108,Transfer Payments,506,Housing Benefits,5048,Revenue,NON INFLUENCIBLE.NON INFLUENCIBLE
06/12/2021,2243567,782.48,HOUSING BENEFIT,299992,Resources,Housing Services,108,Transfer Payments,506,Housing Benefits,5048,Revenue,NON INFLUENCIBLE.NON INFLUENCIBLE
06/12/2021,2243568,391.24,HOUSING BENEFIT,299992,Resources,Housing Services,108,Transfer Payments,506,Housing Benefits,5048,Revenue,NON INFLUENCIBLE.NON INFLUENCIBLE
06/12/2021,2243569,631.52,HOUSING BENEFIT,299992,Resources,Housing Services,108,Transfer Payments,506,Housing Benefits,5048,Revenue,NON INFLUENCIBLE.NON INFLUENCIBLE
06/12/2021,2243570,2119.68,HOUSING BENEFIT,299992,Resources,Housing Services,108,Transfer Payments,506,Housing Benefits,5048,Revenue,NON INFLUENCIBLE.NON INFLUENCIBLE
06/12/2021,2243571,437.28,HOUSING BENEFIT,299992,Resources,Housing Services,108,Transfer Payments,506,Housing Benefits,5048,Revenue,NON INFLUENCIBLE.NON INFLUENCIBLE
06/12/2021,2243572,3512.72,HOUSING BENEFIT,299992,Resources,Housing Services,108,Transfer Payments,506,Housing Benefits,5048,Revenue,NON INFLUENCIBLE.NON INFLUENCIBLE
06/12/2021,2243573,254.32,HOUSING BENEFIT,299992,Resources,Housing Services,108,Transfer Payments,506,Housing Benefits,5048,Revenue,NON INFLUENCIBLE.NON INFLUENCIBLE
06/12/2021,2243574,391.24,HOUSING BENEFIT,299992,Resources,Housing Services,108,Transfer Payments,506,Housing Benefits,5048,Revenue,NON INFLUENCIBLE.NON INFLUENCIBLE
06/12/2021,2243575,711.24,HOUSING BENEFIT,299992,Resources,Housing Services,108,Transfer Payments,506,Housing Benefits,5048,Revenue,NON INFLUENCIBLE.NON INFLUENCIBLE
06/12/2021,2243576,777.28,HOUSING BENEFIT,299992,Resources,Housing Services,108,Transfer Payments,506,Housing Benefits,5048,Revenue,NON INFLUENCIBLE.NON INFLUENCIBLE
06/12/2021,2243577,437.28,HOUSING BENEFIT,299992,Resources,Housing Services,108,Transfer Payments,506,Housing Benefits,5048,Revenue,NON INFLUENCIBLE.NON INFLUENCIBLE
06/12/2021,2243579,316.24,HOUSING BENEFIT,299992,Resources,Housing Services,108,Transfer Payments,506,Housing Benefits,5048,Revenue,NON INFLUENCIBLE.NON INFLUENCIBLE
06/12/2021,2243580,391.24,HOUSING BENEFIT,299992,Resources,Housing Services,108,Transfer Payments,506,Housing Benefits,5048,Revenue,NON INFLUENCIBLE.NON INFLUENCIBLE
06/12/2021,2243581,364.60,HOUSING BENEFIT,299992,Resources,Housing Services,108,Transfer Payments,506,Housing Benefits,5048,Revenue,NON INFLUENCIBLE.NON INFLUENCIBLE
06/12/2021,2243582,461.52,HOUSING BENEFIT,299992,Resources,Housing Services,108,Transfer Payments,506,Housing Benefits,5048,Revenue,NON INFLUENCIBLE.NON INFLUENCIBLE
06/12/2021,2243583,38121.01,HOUSING BENEFIT,299992,Resources,Housing Services,108,Transfer Payments,506,Housing Benefits,5048,Revenue,NON INFLUENCIBLE.NON INFLUENCIBLE
06/12/2021,2243584,364.60,HOUSING BENEFIT,299992,Resources,Housing Services,108,Transfer Payments,506,Housing Benefits,5048,Revenue,NON INFLUENCIBLE.NON INFLUENCIBLE
06/12/2021,2243585,349.32,HOUSING BENEFIT,299992,Resources,Housing Services,108,Transfer Payments,506,Housing Benefits,5048,Revenue,NON INFLUENCIBLE.NON INFLUENCIBLE
06/12/2021,2243586,314.08,HOUSING BENEFIT,299992,Resources,Housing Services,108,Transfer Payments,506,Housing Benefits,5048,Revenue,NON INFLUENCIBLE.NON INFLUENCIBLE
06/12/2021,2243587,346.16,HOUSING BENEFIT,299992,Resources,Housing Services,108,Transfer Payments,506,Housing Benefits,5048,Revenue,NON INFLUENCIBLE.NON INFLUENCIBLE
06/12/2021,2243588,391.24,HOUSING BENEFIT,299992,Resources,Housing Services,108,Transfer Payments,506,Housing Benefits,5048,Revenue,NON INFLUENCIBLE.NON INFLUENCIBLE
06/12/2021,2243590,360.00,HOUSING BENEFIT,299992,Resources,Housing Services,108,Transfer Payments,506,Housing Benefits,5048,Revenue,NON INFLUENCIBLE.NON INFLUENCIBLE
06/12/2021,2243591,10387.56,HOUSING BENEFIT,299992,Resources,Housing Services,108,Transfer Payments,506,Housing Benefits,5048,Revenue,NON INFLUENCIBLE.NON INFLUENCIBLE
06/12/2021,2243592,316.00,HOUSING BENEFIT,299992,Resources,Housing Services,108,Transfer Payments,506,Housing Benefits,5048,Revenue,NON INFLUENCIBLE.NON INFLUENCIBLE
06/12/2021,2243593,391.24,HOUSING BENEFIT,299992,Resources,Housing Services,108,Transfer Payments,506,Housing Benefits,5048,Revenue,NON INFLUENCIBLE.NON INFLUENCIBLE
06/12/2021,2243594,391.24,HOUSING BENEFIT,299992,Resources,Housing Services,108,Transfer Payments,506,Housing Benefits,5048,Revenue,NON INFLUENCIBLE.NON INFLUENCIBLE
06/12/2021,2243595,391.24,HOUSING BENEFIT,299992,Resources,Housing Services,108,Transfer Payments,506,Housing Benefits,5048,Revenue,NON INFLUENCIBLE.NON INFLUENCIBLE
06/12/2021,2243596,33066.08,HOUSING BENEFIT,299992,Resources,Housing Services,108,Transfer Payments,506,Housing Benefits,5048,Revenue,NON INFLUENCIBLE.NON INFLUENCIBLE
06/12/2021,2243597,280.76,HOUSING BENEFIT,299992,Resources,Housing Services,108,Transfer Payments,506,Housing Benefits,5048,Revenue,NON INFLUENCIBLE.NON INFLUENCIBLE
06/12/2021,2243598,3719.36,HOUSING BENEFIT,299992,Resources,Housing Services,108,Transfer Payments,506,Housing Benefits,5048,Revenue,NON INFLUENCIBLE.NON INFLUENCIBLE
06/12/2021,2243599,311.80,HOUSING BENEFIT,299992,Resources,Housing Services,108,Transfer Payments,506,Housing Benefits,5048,Revenue,NON INFLUENCIBLE.NON INFLUENCIBLE
06/12/2021,2243600,391.24,HOUSING BENEFIT,299992,Resources,Housing Services,108,Transfer Payments,506,Housing Benefits,5048,Revenue,NON INFLUENCIBLE.NON INFLUENCIBLE
06/12/2021,2243601,506.32,HOUSING BENEFIT,299992,Resources,Housing Services,108,Transfer Payments,506,Housing Benefits,5048,Revenue,NON INFLUENCIBLE.NON INFLUENCIBLE
06/12/2021,2243602,380.00,HOUSING BENEFIT,299992,Resources,Housing Services,108,Transfer Payments,506,Housing Benefits,5048,Revenue,NON INFLUENCIBLE.NON INFLUENCIBLE
06/12/2021,2243603,369.24,HOUSING BENEFIT,299992,Resources,Housing Services,108,Transfer Payments,506,Housing Benefits,5048,Revenue,NON INFLUENCIBLE.NON INFLUENCIBLE
06/12/2021,2243604,489.20,HOUSING BENEFIT,299992,Resources,Housing Services,108,Transfer Payments,506,Housing Benefits,5048,Revenue,NON INFLUENCIBLE.NON INFLUENCIBLE
06/12/2021,2243605,391.24,HOUSING BENEFIT,299992,Resources,Housing Services,108,Transfer Payments,506,Housing Benefits,5048,Revenue,NON INFLUENCIBLE.NON INFLUENCIBLE
06/12/2021,2243606,415.40,HOUSING BENEFIT,299992,Resources,Housing Services,108,Transfer Payments,506,Housing Benefits,5048,Revenue,NON INFLUENCIBLE.NON INFLUENCIBLE
06/12/2021,2243607,437.28,HOUSING BENEFIT,299992,Resources,Housing Services,108,Transfer Payments,506,Housing Benefits,5048,Revenue,NON INFLUENCIBLE.NON INFLUENCIBLE
06/12/2021,2243608,506.32,HOUSING BENEFIT,299992,Resources,Housing Services,108,Transfer Payments,506,Housing Benefits,5048,Revenue,NON INFLUENCIBLE.NON INFLUENCIBLE
06/12/2021,2243609,706.16,HOUSING BENEFIT,299992,Resources,Housing Services,108,Transfer Payments,506,Housing Benefits,5048,Revenue,NON INFLUENCIBLE.NON INFLUENCIBLE
06/12/2021,2243610,378.00,HOUSING BENEFIT,299992,Resources,Housing Services,108,Transfer Payments,506,Housing Benefits,5048,Revenue,NON INFLUENCIBLE.NON INFLUENCIBLE
06/12/2021,2243611,391.24,HOUSING BENEFIT,299992,Resources,Housing Services,108,Transfer Payments,506,Housing Benefits,5048,Revenue,NON INFLUENCIBLE.NON INFLUENCIBLE
06/12/2021,2243612,415.40,HOUSING BENEFIT,299992,Resources,Housing Services,108,Transfer Payments,506,Housing Benefits,5048,Revenue,NON INFLUENCIBLE.NON INFLUENCIBLE
06/12/2021,2243613,917.28,HOUSING BENEFIT,299992,Resources,Housing Services,108,Transfer Payments,506,Housing Benefits,5048,Revenue,NON INFLUENCIBLE.NON INFLUENCIBLE
06/12/2021,2243614,372.00,HOUSING BENEFIT,299992,Resources,Housing Services,108,Transfer Payments,506,Housing Benefits,5048,Revenue,NON INFLUENCIBLE.NON INFLUENCIBLE
06/12/2021,2243615,1930.16,HOUSING BENEFIT,299992,Resources,Housing Services,108,Transfer Payments,506,Housing Benefits,5048,Revenue,NON INFLUENCIBLE.NON INFLUENCIBLE
06/12/2021,2243616,364.60,HOUSING BENEFIT,299992,Resources,Housing Services,108,Transfer Payments,506,Housing Benefits,5048,Revenue,NON INFLUENCIBLE.NON INFLUENCIBLE
06/12/2021,2243617,391.24,HOUSING BENEFIT,299992,Resources,Housing Services,108,Transfer Payments,506,Housing Benefits,5048,Revenue,NON INFLUENCIBLE.NON INFLUENCIBLE
06/12/2021,2243618,1166.52,HOUSING BENEFIT,299992,Resources,Housing Services,108,Transfer Payments,506,Housing Benefits,5048,Revenue,NON INFLUENCIBLE.NON INFLUENCIBLE
06/12/2021,2243619,731.84,HOUSING BENEFIT,299992,Resources,Housing Services,108,Transfer Payments,506,Housing Benefits,5048,Revenue,NON INFLUENCIBLE.NON INFLUENCIBLE
06/12/2021,2243620,391.24,HOUSING BENEFIT,299992,Resources,Housing Services,108,Transfer Payments,506,Housing Benefits,5048,Revenue,NON INFLUENCIBLE.NON INFLUENCIBLE
06/12/2021,2243621,17184.60,HOUSING BENEFIT,299992,Resources,Housing Services,108,Transfer Payments,506,Housing Benefits,5048,Revenue,NON INFLUENCIBLE.NON INFLUENCIBLE
06/12/2021,2243622,507.68,HOUSING BENEFIT,299992,Resources,Housing Services,108,Transfer Payments,506,Housing Benefits,5048,Revenue,NON INFLUENCIBLE.NON INFLUENCIBLE
06/12/2021,2243623,391.24,HOUSING BENEFIT,299992,Resources,Housing Services,108,Transfer Payments,506,Housing Benefits,5048,Revenue,NON INFLUENCIBLE.NON INFLUENCIBLE
06/12/2021,2243624,391.24,HOUSING BENEFIT,299992,Resources,Housing Services,108,Transfer Payments,506,Housing Benefits,5048,Revenue,NON INFLUENCIBLE.NON INFLUENCIBLE
06/12/2021,2243625,2657.54,HOUSING BENEFIT,299992,Resources,Housing Services,108,Transfer Payments,506,Housing Benefits,5048,Revenue,NON INFLUENCIBLE.NON INFLUENCIBLE
06/12/2021,2243626,364.60,HOUSING BENEFIT,299992,Resources,Housing Services,108,Transfer Payments,506,Housing Benefits,5048,Revenue,NON INFLUENCIBLE.NON INFLUENCIBLE
06/12/2021,2243627,369.24,HOUSING BENEFIT,299992,Resources,Housing Services,108,Transfer Payments,506,Housing Benefits,5048,Revenue,NON INFLUENCIBLE.NON INFLUENCIBLE
06/12/2021,2243628,7583.40,HOUSING BENEFIT,299992,Resources,Housing Services,108,Transfer Payments,506,Housing Benefits,5048,Revenue,NON INFLUENCIBLE.NON INFLUENCIBLE
06/12/2021,2243629,438.48,HOUSING BENEFIT,299992,Resources,Housing Services,108,Transfer Payments,506,Housing Benefits,5048,Revenue,NON INFLUENCIBLE.NON INFLUENCIBLE
06/12/2021,2243630,830.80,HOUSING BENEFIT,299992,Resources,Housing Services,108,Transfer Payments,506,Housing Benefits,5048,Revenue,NON INFLUENCIBLE.NON INFLUENCIBLE
06/12/2021,2243631,391.24,HOUSING BENEFIT,299992,Resources,Housing Services,108,Transfer Payments,506,Housing Benefits,5048,Revenue,NON INFLUENCIBLE.NON INFLUENCIBLE
06/12/2021,2243632,391.24,HOUSING BENEFIT,299992,Resources,Housing Services,108,Transfer Payments,506,Housing Benefits,5048,Revenue,NON INFLUENCIBLE.NON INFLUENCIBLE
06/12/2021,2243633,391.24,HOUSING BENEFIT,299992,Resources,Housing Services,108,Transfer Payments,506,Housing Benefits,5048,Revenue,NON INFLUENCIBLE.NON INFLUENCIBLE
06/12/2021,2243634,378.48,HOUSING BENEFIT,299992,Resources,Housing Services,108,Transfer Payments,506,Housing Benefits,5048,Revenue,NON INFLUENCIBLE.NON INFLUENCIBLE
06/12/2021,2243635,391.24,HOUSING BENEFIT,299992,Resources,Housing Services,108,Transfer Payments,506,Housing Benefits,5048,Revenue,NON INFLUENCIBLE.NON INFLUENCIBLE
06/12/2021,2243636,1639.76,HOUSING BENEFIT,299992,Resources,Housing Services,108,Transfer Payments,506,Housing Benefits,5048,Revenue,NON INFLUENCIBLE.NON INFLUENCIBLE
06/12/2021,2243637,350.76,HOUSING BENEFIT,299992,Resources,Housing Services,108,Transfer Payments,506,Housing Benefits,5048,Revenue,NON INFLUENCIBLE.NON INFLUENCIBLE
06/12/2021,2243638,323.08,HOUSING BENEFIT,299992,Resources,Housing Services,108,Transfer Payments,506,Housing Benefits,5048,Revenue,NON INFLUENCIBLE.NON INFLUENCIBLE
06/12/2021,2243639,369.24,HOUSING BENEFIT,299992,Resources,Housing Services,108,Transfer Payments,506,Housing Benefits,5048,Revenue,NON INFLUENCIBLE.NON INFLUENCIBLE
06/12/2021,2243640,2974.44,HOUSING BENEFIT,299992,Resources,Housing Services,108,Transfer Payments,506,Housing Benefits,5048,Revenue,NON INFLUENCIBLE.NON INFLUENCIBLE
06/12/2021,2243641,742.72,HOUSING BENEFIT,299992,Resources,Housing Services,108,Transfer Payments,506,Housing Benefits,5048,Revenue,NON INFLUENCIBLE.NON INFLUENCIBLE
06/12/2021,2243642,391.24,HOUSING BENEFIT,299992,Resources,Housing Services,108,Transfer Payments,506,Housing Benefits,5048,Revenue,NON INFLUENCIBLE.NON INFLUENCIBLE
06/12/2021,2243643,4397.44,HOUSING BENEFIT,299992,Resources,Housing Services,108,Transfer Payments,506,Housing Benefits,5048,Revenue,NON INFLUENCIBLE.NON INFLUENCIBLE
06/12/2021,2243644,391.24,HOUSING BENEFIT,299992,Resources,Housing Services,108,Transfer Payments,506,Housing Benefits,5048,Revenue,NON INFLUENCIBLE.NON INFLUENCIBLE
06/12/2021,2243645,390.48,HOUSING BENEFIT,299992,Resources,Housing Services,108,Transfer Payments,506,Housing Benefits,5048,Revenue,NON INFLUENCIBLE.NON INFLUENCIBLE
06/12/2021,2243646,391.24,HOUSING BENEFIT,299992,Resources,Housing Services,108,Transfer Payments,506,Housing Benefits,5048,Revenue,NON INFLUENCIBLE.NON INFLUENCIBLE
06/12/2021,2243647,362.40,HOUSING BENEFIT,299992,Resources,Housing Services,108,Transfer Payments,506,Housing Benefits,5048,Revenue,NON INFLUENCIBLE.NON INFLUENCIBLE
06/12/2021,2243648,437.28,HOUSING BENEFIT,299992,Resources,Housing Services,108,Transfer Payments,506,Housing Benefits,5048,Revenue,NON INFLUENCIBLE.NON INFLUENCIBLE
06/12/2021,2243650,480.00,HOUSING BENEFIT,299992,Resources,Housing Services,108,Transfer Payments,506,Housing Benefits,5048,Revenue,NON INFLUENCIBLE.NON INFLUENCIBLE
06/12/2021,2243651,391.24,HOUSING BENEFIT,299992,Resources,Housing Services,108,Transfer Payments,506,Housing Benefits,5048,Revenue,NON INFLUENCIBLE.NON INFLUENCIBLE
06/12/2021,2243652,391.24,HOUSING BENEFIT,299992,Resources,Housing Services,108,Transfer Payments,506,Housing Benefits,5048,Revenue,NON INFLUENCIBLE.NON INFLUENCIBLE
06/12/2021,2243653,1553.72,HOUSING BENEFIT,299992,Resources,Housing Services,108,Transfer Payments,506,Housing Benefits,5048,Revenue,NON INFLUENCIBLE.NON INFLUENCIBLE
06/12/2021,2243654,437.28,HOUSING BENEFIT,299992,Resources,Housing Services,108,Transfer Payments,506,Housing Benefits,5048,Revenue,NON INFLUENCIBLE.NON INFLUENCIBLE
06/12/2021,2243655,117269.98,HOUSING BENEFIT,299992,Resources,Housing Services,108,Transfer Payments,506,Housing Benefits,5048,Revenue,NON INFLUENCIBLE.NON INFLUENCIBLE
06/12/2021,2243656,280.76,HOUSING BENEFIT,299992,Resources,Housing Services,108,Transfer Payments,506,Housing Benefits,5048,Revenue,NON INFLUENCIBLE.NON INFLUENCIBLE
06/12/2021,2243658,366.68,HOUSING BENEFIT,299992,Resources,Housing Services,108,Transfer Payments,506,Housing Benefits,5048,Revenue,NON INFLUENCIBLE.NON INFLUENCIBLE
06/12/2021,2243659,437.28,HOUSING BENEFIT,299992,Resources,Housing Services,108,Transfer Payments,506,Housing Benefits,5048,Revenue,NON INFLUENCIBLE.NON INFLUENCIBLE
06/12/2021,2243660,369.24,HOUSING BENEFIT,299992,Resources,Housing Services,108,Transfer Payments,506,Housing Benefits,5048,Revenue,NON INFLUENCIBLE.NON INFLUENCIBLE
06/12/2021,2243661,391.24,HOUSING BENEFIT,299992,Resources,Housing Services,108,Transfer Payments,506,Housing Benefits,5048,Revenue,NON INFLUENCIBLE.NON INFLUENCIBLE
06/12/2021,2243662,364.60,HOUSING BENEFIT,299992,Resources,Housing Services,108,Transfer Payments,506,Housing Benefits,5048,Revenue,NON INFLUENCIBLE.NON INFLUENCIBLE
06/12/2021,2243663,6201.51,HOUSING BENEFIT,299992,Resources,Housing Services,108,Transfer Payments,506,Housing Benefits,5048,Revenue,NON INFLUENCIBLE.NON INFLUENCIBLE
06/12/2021,2243664,1173.72,HOUSING BENEFIT,299992,Resources,Housing Services,108,Transfer Payments,506,Housing Benefits,5048,Revenue,NON INFLUENCIBLE.NON INFLUENCIBLE
06/12/2021,2243665,391.24,HOUSING BENEFIT,299992,Resources,Housing Services,108,Transfer Payments,506,Housing Benefits,5048,Revenue,NON INFLUENCIBLE.NON INFLUENCIBLE
06/12/2021,2243666,369.24,HOUSING BENEFIT,299992,Resources,Housing Services,108,Transfer Payments,506,Housing Benefits,5048,Revenue,NON INFLUENCIBLE.NON INFLUENCIBLE
06/12/2021,2243667,737.40,HOUSING BENEFIT,299992,Resources,Housing Services,108,Transfer Payments,506,Housing Benefits,5048,Revenue,NON INFLUENCIBLE.NON INFLUENCIBLE
06/12/2021,2243668,480.00,HOUSING BENEFIT,299992,Resources,Housing Services,108,Transfer Payments,506,Housing Benefits,5048,Revenue,NON INFLUENCIBLE.NON INFLUENCIBLE
06/12/2021,2243669,576.00,HOUSING BENEFIT,299992,Resources,Housing Services,108,Transfer Payments,506,Housing Benefits,5048,Revenue,NON INFLUENCIBLE.NON INFLUENCIBLE
06/12/2021,2243670,506.32,HOUSING BENEFIT,299992,Resources,Housing Services,108,Transfer Payments,506,Housing Benefits,5048,Revenue,NON INFLUENCIBLE.NON INFLUENCIBLE
06/12/2021,2243671,828.52,HOUSING BENEFIT,299992,Resources,Housing Services,108,Transfer Payments,506,Housing Benefits,5048,Revenue,NON INFLUENCIBLE.NON INFLUENCIBLE
06/12/2021,2243672,437.28,HOUSING BENEFIT,299992,Resources,Housing Services,108,Transfer Payments,506,Housing Benefits,5048,Revenue,NON INFLUENCIBLE.NON INFLUENCIBLE
06/12/2021,2243673,391.24,HOUSING BENEFIT,299992,Resources,Housing Services,108,Transfer Payments,506,Housing Benefits,5048,Revenue,NON INFLUENCIBLE.NON INFLUENCIBLE
06/12/2021,2243674,380.00,HOUSING BENEFIT,299992,Resources,Housing Services,108,Transfer Payments,506,Housing Benefits,5048,Revenue,NON INFLUENCIBLE.NON INFLUENCIBLE
06/12/2021,2243675,280.76,HOUSING BENEFIT,299992,Resources,Housing Services,108,Transfer Payments,506,Housing Benefits,5048,Revenue,NON INFLUENCIBLE.NON INFLUENCIBLE
06/12/2021,2243676,10642.14,HOUSING BENEFIT,299992,Resources,Housing Services,108,Transfer Payments,506,Housing Benefits,5048,Revenue,NON INFLUENCIBLE.NON INFLUENCIBLE
06/12/2021,2243677,387.28,HOUSING BENEFIT,299992,Resources,Housing Services,108,Transfer Payments,506,Housing Benefits,5048,Revenue,NON INFLUENCIBLE.NON INFLUENCIBLE
06/12/2021,2243678,613.84,HOUSING BENEFIT,299992,Resources,Housing Services,108,Transfer Payments,506,Housing Benefits,5048,Revenue,NON INFLUENCIBLE.NON INFLUENCIBLE
06/12/2021,2243679,391.24,HOUSING BENEFIT,299992,Resources,Housing Services,108,Transfer Payments,506,Housing Benefits,5048,Revenue,NON INFLUENCIBLE.NON INFLUENCIBLE
06/12/2021,2243680,659.08,HOUSING BENEFIT,299992,Resources,Housing Services,108,Transfer Payments,506,Housing Benefits,5048,Revenue,NON INFLUENCIBLE.NON INFLUENCIBLE
06/12/2021,2243681,729.24,HOUSING BENEFIT,299992,Resources,Housing Services,108,Transfer Payments,506,Housing Benefits,5048,Revenue,NON INFLUENCIBLE.NON INFLUENCIBLE
06/12/2021,2243682,731.84,HOUSING BENEFIT,299992,Resources,Housing Services,108,Transfer Payments,506,Housing Benefits,5048,Revenue,NON INFLUENCIBLE.NON INFLUENCIBLE
06/12/2021,2243683,391.24,HOUSING BENEFIT,299992,Resources,Housing Services,108,Transfer Payments,506,Housing Benefits,5048,Revenue,NON INFLUENCIBLE.NON INFLUENCIBLE
06/12/2021,2243684,346.16,HOUSING BENEFIT,299992,Resources,Housing Services,108,Transfer Payments,506,Housing Benefits,5048,Revenue,NON INFLUENCIBLE.NON INFLUENCIBLE
06/12/2021,2243685,760.48,HOUSING BENEFIT,299992,Resources,Housing Services,108,Transfer Payments,506,Housing Benefits,5048,Revenue,NON INFLUENCIBLE.NON INFLUENCIBLE
06/12/2021,2243686,368.00,HOUSING BENEFIT,299992,Resources,Housing Services,108,Transfer Payments,506,Housing Benefits,5048,Revenue,NON INFLUENCIBLE.NON INFLUENCIBLE
06/12/2021,2243687,7681.40,HOUSING BENEFIT,299992,Resources,Housing Services,108,Transfer Payments,506,Housing Benefits,5048,Revenue,NON INFLUENCIBLE.NON INFLUENCIBLE
06/12/2021,2243688,1103.80,HOUSING BENEFIT,299992,Resources,Housing Services,108,Transfer Payments,506,Housing Benefits,5048,Revenue,NON INFLUENCIBLE.NON INFLUENCIBLE
06/12/2021,2243689,391.24,HOUSING BENEFIT,299992,Resources,Housing Services,108,Transfer Payments,506,Housing Benefits,5048,Revenue,NON INFLUENCIBLE.NON INFLUENCIBLE
06/12/2021,2243690,391.24,HOUSING BENEFIT,299992,Resources,Housing Services,108,Transfer Payments,506,Housing Benefits,5048,Revenue,NON INFLUENCIBLE.NON INFLUENCIBLE
06/12/2021,2243691,391.24,HOUSING BENEFIT,299992,Resources,Housing Services,108,Transfer Payments,506,Housing Benefits,5048,Revenue,NON INFLUENCIBLE.NON INFLUENCIBLE
06/12/2021,2243692,391.24,HOUSING BENEFIT,299992,Resources,Housing Services,108,Transfer Payments,506,Housing Benefits,5048,Revenue,NON INFLUENCIBLE.NON INFLUENCIBLE
06/12/2021,2243693,369.24,HOUSING BENEFIT,299992,Resources,Housing Services,108,Transfer Payments,506,Housing Benefits,5048,Revenue,NON INFLUENCIBLE.NON INFLUENCIBLE
06/12/2021,2243694,391.24,HOUSING BENEFIT,299992,Resources,Housing Services,108,Transfer Payments,506,Housing Benefits,5048,Revenue,NON INFLUENCIBLE.NON INFLUENCIBLE
06/12/2021,2243695,438.48,HOUSING BENEFIT,299992,Resources,Housing Services,108,Transfer Payments,506,Housing Benefits,5048,Revenue,NON INFLUENCIBLE.NON INFLUENCIBLE
06/12/2021,2243696,323.08,HOUSING BENEFIT,299992,Resources,Housing Services,108,Transfer Payments,506,Housing Benefits,5048,Revenue,NON INFLUENCIBLE.NON INFLUENCIBLE
06/12/2021,2243697,635.76,HOUSING BENEFIT,299992,Resources,Housing Services,108,Transfer Payments,506,Housing Benefits,5048,Revenue,NON INFLUENCIBLE.NON INFLUENCIBLE
06/12/2021,2243698,391.24,HOUSING BENEFIT,299992,Resources,Housing Services,108,Transfer Payments,506,Housing Benefits,5048,Revenue,NON INFLUENCIBLE.NON INFLUENCIBLE
06/12/2021,2243699,391.24,HOUSING BENEFIT,299992,Resources,Housing Services,108,Transfer Payments,506,Housing Benefits,5048,Revenue,NON INFLUENCIBLE.NON INFLUENCIBLE
06/12/2021,2243700,412.56,HOUSING BENEFIT,299992,Resources,Housing Services,108,Transfer Payments,506,Housing Benefits,5048,Revenue,NON INFLUENCIBLE.NON INFLUENCIBLE
06/12/2021,2243701,506.32,HOUSING BENEFIT,299992,Resources,Housing Services,108,Transfer Payments,506,Housing Benefits,5048,Revenue,NON INFLUENCIBLE.NON INFLUENCIBLE
06/12/2021,2243702,782.48,HOUSING BENEFIT,299992,Resources,Housing Services,108,Transfer Payments,506,Housing Benefits,5048,Revenue,NON INFLUENCIBLE.NON INFLUENCIBLE
06/12/2021,2243703,391.24,HOUSING BENEFIT,299992,Resources,Housing Services,108,Transfer Payments,506,Housing Benefits,5048,Revenue,NON INFLUENCIBLE.NON INFLUENCIBLE
06/12/2021,2243704,506.32,HOUSING BENEFIT,299992,Resources,Housing Services,108,Transfer Payments,506,Housing Benefits,5048,Revenue,NON INFLUENCIBLE.NON INFLUENCIBLE
06/12/2021,2243705,391.24,HOUSING BENEFIT,299992,Resources,Housing Services,108,Transfer Payments,506,Housing Benefits,5048,Revenue,NON INFLUENCIBLE.NON INFLUENCIBLE
06/12/2021,2243706,378.48,HOUSING BENEFIT,299992,Resources,Housing Services,108,Transfer Payments,506,Housing Benefits,5048,Revenue,NON INFLUENCIBLE.NON INFLUENCIBLE
06/12/2021,2243707,828.52,HOUSING BENEFIT,299992,Resources,Housing Services,108,Transfer Payments,506,Housing Benefits,5048,Revenue,NON INFLUENCIBLE.NON INFLUENCIBLE
06/12/2021,2243709,364.60,HOUSING BENEFIT,299992,Resources,Housing Services,108,Transfer Payments,506,Housing Benefits,5048,Revenue,NON INFLUENCIBLE.NON INFLUENCIBLE
06/12/2021,2243710,506.32,HOUSING BENEFIT,299992,Resources,Housing Services,108,Transfer Payments,506,Housing Benefits,5048,Revenue,NON INFLUENCIBLE.NON INFLUENCIBLE
06/12/2021,2243711,369.24,HOUSING BENEFIT,299992,Resources,Housing Services,108,Transfer Payments,506,Housing Benefits,5048,Revenue,NON INFLUENCIBLE.NON INFLUENCIBLE
06/12/2021,2243712,491.60,HOUSING BENEFIT,299992,Resources,Housing Services,108,Transfer Payments,506,Housing Benefits,5048,Revenue,NON INFLUENCIBLE.NON INFLUENCIBLE
06/12/2021,2243713,415.40,HOUSING BENEFIT,299992,Resources,Housing Services,108,Transfer Payments,506,Housing Benefits,5048,Revenue,NON INFLUENCIBLE.NON INFLUENCIBLE
06/12/2021,2243714,437.28,HOUSING BENEFIT,299992,Resources,Housing Services,108,Transfer Payments,506,Housing Benefits,5048,Revenue,NON INFLUENCIBLE.NON INFLUENCIBLE
06/12/2021,2243716,1430.00,HOUSING BENEFIT,299992,Resources,Housing Services,108,Transfer Payments,506,Housing Benefits,5048,Revenue,NON INFLUENCIBLE.NON INFLUENCIBLE
06/12/2021,2243717,4882.68,HOUSING BENEFIT,299992,Resources,Housing Services,108,Transfer Payments,506,Housing Benefits,5048,Revenue,NON INFLUENCIBLE.NON INFLUENCIBLE
06/12/2021,2243718,7636.92,HOUSING BENEFIT,299992,Resources,Housing Services,108,Transfer Payments,506,Housing Benefits,5048,Revenue,NON INFLUENCIBLE.NON INFLUENCIBLE
06/12/2021,2243719,391.24,HOUSING BENEFIT,299992,Resources,Housing Services,108,Transfer Payments,506,Housing Benefits,5048,Revenue,NON INFLUENCIBLE.NON INFLUENCIBLE
06/12/2021,2243720,391.24,HOUSING BENEFIT,299992,Resources,Housing Services,108,Transfer Payments,506,Housing Benefits,5048,Revenue,NON INFLUENCIBLE.NON INFLUENCIBLE
06/12/2021,2243721,1382.16,HOUSING BENEFIT,299992,Resources,Housing Services,108,Transfer Payments,506,Housing Benefits,5048,Revenue,NON INFLUENCIBLE.NON INFLUENCIBLE
06/12/2021,2243722,587.80,HOUSING BENEFIT,299992,Resources,Housing Services,108,Transfer Payments,506,Housing Benefits,5048,Revenue,NON INFLUENCIBLE.NON INFLUENCIBLE
06/12/2021,2243723,391.24,HOUSING BENEFIT,299992,Resources,Housing Services,108,Transfer Payments,506,Housing Benefits,5048,Revenue,NON INFLUENCIBLE.NON INFLUENCIBLE
06/12/2021,2243724,391.24,HOUSING BENEFIT,299992,Resources,Housing Services,108,Transfer Payments,506,Housing Benefits,5048,Revenue,NON INFLUENCIBLE.NON INFLUENCIBLE
06/12/2021,2243725,280.76,HOUSING BENEFIT,299992,Resources,Housing Services,108,Transfer Payments,506,Housing Benefits,5048,Revenue,NON INFLUENCIBLE.NON INFLUENCIBLE
06/12/2021,2243726,391.24,HOUSING BENEFIT,299992,Resources,Housing Services,108,Transfer Payments,506,Housing Benefits,5048,Revenue,NON INFLUENCIBLE.NON INFLUENCIBLE
06/12/2021,2243727,391.24,HOUSING BENEFIT,299992,Resources,Housing Services,108,Transfer Payments,506,Housing Benefits,5048,Revenue,NON INFLUENCIBLE.NON INFLUENCIBLE
06/12/2021,2243728,760.48,HOUSING BENEFIT,299992,Resources,Housing Services,108,Transfer Payments,506,Housing Benefits,5048,Revenue,NON INFLUENCIBLE.NON INFLUENCIBLE
06/12/2021,2243729,3592.40,HOUSING BENEFIT,299992,Resources,Housing Services,108,Transfer Payments,506,Housing Benefits,5048,Revenue,NON INFLUENCIBLE.NON INFLUENCIBLE
06/12/2021,2243731,360.00,HOUSING BENEFIT,299992,Resources,Housing Services,108,Transfer Payments,506,Housing Benefits,5048,Revenue,NON INFLUENCIBLE.NON INFLUENCIBLE
06/12/2021,2243732,391.24,HOUSING BENEFIT,299992,Resources,Housing Services,108,Transfer Payments,506,Housing Benefits,5048,Revenue,NON INFLUENCIBLE.NON INFLUENCIBLE
06/12/2021,2243733,391.24,HOUSING BENEFIT,299992,Resources,Housing Services,108,Transfer Payments,506,Housing Benefits,5048,Revenue,NON INFLUENCIBLE.NON INFLUENCIBLE
06/12/2021,2243734,391.24,HOUSING BENEFIT,299992,Resources,Housing Services,108,Transfer Payments,506,Housing Benefits,5048,Revenue,NON INFLUENCIBLE.NON INFLUENCIBLE
06/12/2021,2243735,433.84,HOUSING BENEFIT,299992,Resources,Housing Services,108,Transfer Payments,506,Housing Benefits,5048,Revenue,NON INFLUENCIBLE.NON INFLUENCIBLE
06/12/2021,2243736,391.24,HOUSING BENEFIT,299992,Resources,Housing Services,108,Transfer Payments,506,Housing Benefits,5048,Revenue,NON INFLUENCIBLE.NON INFLUENCIBLE
06/12/2021,2243737,364.60,HOUSING BENEFIT,299992,Resources,Housing Services,108,Transfer Payments,506,Housing Benefits,5048,Revenue,NON INFLUENCIBLE.NON INFLUENCIBLE
06/12/2021,2243738,370.76,HOUSING BENEFIT,299992,Resources,Housing Services,108,Transfer Payments,506,Housing Benefits,5048,Revenue,NON INFLUENCIBLE.NON INFLUENCIBLE
06/12/2021,2243739,369.24,HOUSING BENEFIT,299992,Resources,Housing Services,108,Transfer Payments,506,Housing Benefits,5048,Revenue,NON INFLUENCIBLE.NON INFLUENCIBLE
06/12/2021,2243740,391.24,HOUSING BENEFIT,299992,Resources,Housing Services,108,Transfer Payments,506,Housing Benefits,5048,Revenue,NON INFLUENCIBLE.NON INFLUENCIBLE
06/12/2021,2243741,3153.12,HOUSING BENEFIT,299992,Resources,Housing Services,108,Transfer Payments,506,Housing Benefits,5048,Revenue,NON INFLUENCIBLE.NON INFLUENCIBLE
06/12/2021,2243742,391.24,HOUSING BENEFIT,299992,Resources,Housing Services,108,Transfer Payments,506,Housing Benefits,5048,Revenue,NON INFLUENCIBLE.NON INFLUENCIBLE
06/12/2021,2243743,364.60,HOUSING BENEFIT,299992,Resources,Housing Services,108,Transfer Payments,506,Housing Benefits,5048,Revenue,NON INFLUENCIBLE.NON INFLUENCIBLE
06/12/2021,2243744,461.52,HOUSING BENEFIT,299992,Resources,Housing Services,108,Transfer Payments,506,Housing Benefits,5048,Revenue,NON INFLUENCIBLE.NON INFLUENCIBLE
06/12/2021,2243745,370.00,HOUSING BENEFIT,299992,Resources,Housing Services,108,Transfer Payments,506,Housing Benefits,5048,Revenue,NON INFLUENCIBLE.NON INFLUENCIBLE
06/12/2021,2243746,373.84,HOUSING BENEFIT,299992,Resources,Housing Services,108,Transfer Payments,506,Housing Benefits,5048,Revenue,NON INFLUENCIBLE.NON INFLUENCIBLE
06/12/2021,2243747,265.16,HOUSING BENEFIT,299992,Resources,Housing Services,108,Transfer Payments,506,Housing Benefits,5048,Revenue,NON INFLUENCIBLE.NON INFLUENCIBLE
06/12/2021,2243748,390.00,HOUSING BENEFIT,299992,Resources,Housing Services,108,Transfer Payments,506,Housing Benefits,5048,Revenue,NON INFLUENCIBLE.NON INFLUENCIBLE
06/12/2021,2243751,370.00,HOUSING BENEFIT,299992,Resources,Housing Services,108,Transfer Payments,506,Housing Benefits,5048,Revenue,NON INFLUENCIBLE.NON INFLUENCIBLE
06/12/2021,2243752,364.60,HOUSING BENEFIT,299992,Resources,Housing Services,108,Transfer Payments,506,Housing Benefits,5048,Revenue,NON INFLUENCIBLE.NON INFLUENCIBLE
06/12/2021,2243753,255.80,HOUSING BENEFIT,299992,Resources,Housing Services,108,Transfer Payments,506,Housing Benefits,5048,Revenue,NON INFLUENCIBLE.NON INFLUENCIBLE
06/12/2021,2243754,369.24,HOUSING BENEFIT,299992,Resources,Housing Services,108,Transfer Payments,506,Housing Benefits,5048,Revenue,NON INFLUENCIBLE.NON INFLUENCIBLE
06/12/2021,2243755,506.32,HOUSING BENEFIT,299992,Resources,Housing Services,108,Transfer Payments,506,Housing Benefits,5048,Revenue,NON INFLUENCIBLE.NON INFLUENCIBLE
06/12/2021,2243756,346.16,HOUSING BENEFIT,299992,Resources,Housing Services,108,Transfer Payments,506,Housing Benefits,5048,Revenue,NON INFLUENCIBLE.NON INFLUENCIBLE
06/12/2021,2243757,400.00,HOUSING BENEFIT,299992,Resources,Housing Services,108,Transfer Payments,506,Housing Benefits,5048,Revenue,NON INFLUENCIBLE.NON INFLUENCIBLE
06/12/2021,2243758,782.48,HOUSING BENEFIT,299992,Resources,Housing Services,108,Transfer Payments,506,Housing Benefits,5048,Revenue,NON INFLUENCIBLE.NON INFLUENCIBLE
06/12/2021,2243759,360.00,HOUSING BENEFIT,299992,Resources,Housing Services,108,Transfer Payments,506,Housing Benefits,5048,Revenue,NON INFLUENCIBLE.NON INFLUENCIBLE
06/12/2021,2243760,1078.92,HOUSING BENEFIT,299992,Resources,Housing Services,108,Transfer Payments,506,Housing Benefits,5048,Revenue,NON INFLUENCIBLE.NON INFLUENCIBLE
06/12/2021,2243761,438.48,HOUSING BENEFIT,299992,Resources,Housing Services,108,Transfer Payments,506,Housing Benefits,5048,Revenue,NON INFLUENCIBLE.NON INFLUENCIBLE
06/12/2021,2243762,409.24,HOUSING BENEFIT,299992,Resources,Housing Services,108,Transfer Payments,506,Housing Benefits,5048,Revenue,NON INFLUENCIBLE.NON INFLUENCIBLE
06/12/2021,2243763,391.24,HOUSING BENEFIT,299992,Resources,Housing Services,108,Transfer Payments,506,Housing Benefits,5048,Revenue,NON INFLUENCIBLE.NON INFLUENCIBLE
06/12/2021,2243764,391.24,HOUSING BENEFIT,299992,Resources,Housing Services,108,Transfer Payments,506,Housing Benefits,5048,Revenue,NON INFLUENCIBLE.NON INFLUENCIBLE
06/12/2021,2243765,2063.08,HOUSING BENEFIT,299992,Resources,Housing Services,108,Transfer Payments,506,Housing Benefits,5048,Revenue,NON INFLUENCIBLE.NON INFLUENCIBLE
06/12/2021,2243766,391.24,HOUSING BENEFIT,299992,Resources,Housing Services,108,Transfer Payments,506,Housing Benefits,5048,Revenue,NON INFLUENCIBLE.NON INFLUENCIBLE
06/12/2021,2243767,391.24,HOUSING BENEFIT,299992,Resources,Housing Services,108,Transfer Payments,506,Housing Benefits,5048,Revenue,NON INFLUENCIBLE.NON INFLUENCIBLE
06/12/2021,2243768,858.48,HOUSING BENEFIT,299992,Resources,Housing Services,108,Transfer Payments,506,Housing Benefits,5048,Revenue,NON INFLUENCIBLE.NON INFLUENCIBLE
06/12/2021,2243769,360.00,HOUSING BENEFIT,299992,Resources,Housing Services,108,Transfer Payments,506,Housing Benefits,5048,Revenue,NON INFLUENCIBLE.NON INFLUENCIBLE
06/12/2021,2243770,391.24,HOUSING BENEFIT,299992,Resources,Housing Services,108,Transfer Payments,506,Housing Benefits,5048,Revenue,NON INFLUENCIBLE.NON INFLUENCIBLE
06/12/2021,2243771,260.00,HOUSING BENEFIT,299992,Resources,Housing Services,108,Transfer Payments,506,Housing Benefits,5048,Revenue,NON INFLUENCIBLE.NON INFLUENCIBLE
06/12/2021,2243772,782.48,HOUSING BENEFIT,299992,Resources,Housing Services,108,Transfer Payments,506,Housing Benefits,5048,Revenue,NON INFLUENCIBLE.NON INFLUENCIBLE
06/12/2021,2243773,346.16,HOUSING BENEFIT,299992,Resources,Housing Services,108,Transfer Payments,506,Housing Benefits,5048,Revenue,NON INFLUENCIBLE.NON INFLUENCIBLE
06/12/2021,2243774,391.24,HOUSING BENEFIT,299992,Resources,Housing Services,108,Transfer Payments,506,Housing Benefits,5048,Revenue,NON INFLUENCIBLE.NON INFLUENCIBLE
06/12/2021,2243775,391.24,HOUSING BENEFIT,299992,Resources,Housing Services,108,Transfer Payments,506,Housing Benefits,5048,Revenue,NON INFLUENCIBLE.NON INFLUENCIBLE
06/12/2021,2243776,1603.16,HOUSING BENEFIT,299992,Resources,Housing Services,108,Transfer Payments,506,Housing Benefits,5048,Revenue,NON INFLUENCIBLE.NON INFLUENCIBLE
06/12/2021,2243777,391.24,HOUSING BENEFIT,299992,Resources,Housing Services,108,Transfer Payments,506,Housing Benefits,5048,Revenue,NON INFLUENCIBLE.NON INFLUENCIBLE
06/12/2021,2243778,880.29,HOUSING BENEFIT,299992,Resources,Housing Services,108,Transfer Payments,506,Housing Benefits,5048,Revenue,NON INFLUENCIBLE.NON INFLUENCIBLE
06/12/2021,2243779,391.24,HOUSING BENEFIT,299992,Resources,Housing Services,108,Transfer Payments,506,Housing Benefits,5048,Revenue,NON INFLUENCIBLE.NON INFLUENCIBLE
06/12/2021,2243781,437.28,HOUSING BENEFIT,299992,Resources,Housing Services,108,Transfer Payments,506,Housing Benefits,5048,Revenue,NON INFLUENCIBLE.NON INFLUENCIBLE
06/12/2021,2243782,507.68,HOUSING BENEFIT,299992,Resources,Housing Services,108,Transfer Payments,506,Housing Benefits,5048,Revenue,NON INFLUENCIBLE.NON INFLUENCIBLE
06/12/2021,2243783,350.76,HOUSING BENEFIT,299992,Resources,Housing Services,108,Transfer Payments,506,Housing Benefits,5048,Revenue,NON INFLUENCIBLE.NON INFLUENCIBLE
06/12/2021,2243784,751.24,HOUSING BENEFIT,299992,Resources,Housing Services,108,Transfer Payments,506,Housing Benefits,5048,Revenue,NON INFLUENCIBLE.NON INFLUENCIBLE
06/12/2021,2243785,369.24,HOUSING BENEFIT,299992,Resources,Housing Services,108,Transfer Payments,506,Housing Benefits,5048,Revenue,NON INFLUENCIBLE.NON INFLUENCIBLE
06/12/2021,2243786,489.20,HOUSING BENEFIT,299992,Resources,Housing Services,108,Transfer Payments,506,Housing Benefits,5048,Revenue,NON INFLUENCIBLE.NON INFLUENCIBLE
06/12/2021,2243787,323.08,HOUSING BENEFIT,299992,Resources,Housing Services,108,Transfer Payments,506,Housing Benefits,5048,Revenue,NON INFLUENCIBLE.NON INFLUENCIBLE
06/12/2021,2243788,480.00,HOUSING BENEFIT,299992,Resources,Housing Services,108,Transfer Payments,506,Housing Benefits,5048,Revenue,NON INFLUENCIBLE.NON INFLUENCIBLE
06/12/2021,2243789,1244.48,HOUSING BENEFIT,299992,Resources,Housing Services,108,Transfer Payments,506,Housing Benefits,5048,Revenue,NON INFLUENCIBLE.NON INFLUENCIBLE
06/12/2021,2243790,391.24,HOUSING BENEFIT,299992,Resources,Housing Services,108,Transfer Payments,506,Housing Benefits,5048,Revenue,NON INFLUENCIBLE.NON INFLUENCIBLE
06/12/2021,2243791,391.24,HOUSING BENEFIT,299992,Resources,Housing Services,108,Transfer Payments,506,Housing Benefits,5048,Revenue,NON INFLUENCIBLE.NON INFLUENCIBLE
06/12/2021,2243792,912.76,HOUSING BENEFIT,299992,Resources,Housing Services,108,Transfer Payments,506,Housing Benefits,5048,Revenue,NON INFLUENCIBLE.NON INFLUENCIBLE
06/12/2021,2243793,461.52,HOUSING BENEFIT,299992,Resources,Housing Services,108,Transfer Payments,506,Housing Benefits,5048,Revenue,NON INFLUENCIBLE.NON INFLUENCIBLE
06/12/2021,2243794,391.24,HOUSING BENEFIT,299992,Resources,Housing Services,108,Transfer Payments,506,Housing Benefits,5048,Revenue,NON INFLUENCIBLE.NON INFLUENCIBLE
06/12/2021,2243795,391.24,HOUSING BENEFIT,299992,Resources,Housing Services,108,Transfer Payments,506,Housing Benefits,5048,Revenue,NON INFLUENCIBLE.NON INFLUENCIBLE
06/12/2021,2243796,391.24,HOUSING BENEFIT,299992,Resources,Housing Services,108,Transfer Payments,506,Housing Benefits,5048,Revenue,NON INFLUENCIBLE.NON INFLUENCIBLE
06/12/2021,2243797,576.92,HOUSING BENEFIT,299992,Resources,Housing Services,108,Transfer Payments,506,Housing Benefits,5048,Revenue,NON INFLUENCIBLE.NON INFLUENCIBLE
06/12/2021,2243798,13651.48,HOUSING BENEFIT,299992,Resources,Housing Services,108,Transfer Payments,506,Housing Benefits,5048,Revenue,NON INFLUENCIBLE.NON INFLUENCIBLE
06/12/2021,2243799,1528.80,HOUSING BENEFIT,299992,Resources,Housing Services,108,Transfer Payments,506,Housing Benefits,5048,Revenue,NON INFLUENCIBLE.NON INFLUENCIBLE
06/12/2021,2243800,300.00,HOUSING BENEFIT,299992,Resources,Housing Services,108,Transfer Payments,506,Housing Benefits,5048,Revenue,NON INFLUENCIBLE.NON INFLUENCIBLE
06/12/2021,2243802,391.24,HOUSING BENEFIT,299992,Resources,Housing Services,108,Transfer Payments,506,Housing Benefits,5048,Revenue,NON INFLUENCIBLE.NON INFLUENCIBLE
06/12/2021,2243803,369.24,HOUSING BENEFIT,299992,Resources,Housing Services,108,Transfer Payments,506,Housing Benefits,5048,Revenue,NON INFLUENCIBLE.NON INFLUENCIBLE
06/12/2021,2243804,415.40,HOUSING BENEFIT,299992,Resources,Housing Services,108,Transfer Payments,506,Housing Benefits,5048,Revenue,NON INFLUENCIBLE.NON INFLUENCIBLE
06/12/2021,2243805,369.24,HOUSING BENEFIT,299992,Resources,Housing Services,108,Transfer Payments,506,Housing Benefits,5048,Revenue,NON INFLUENCIBLE.NON INFLUENCIBLE
06/12/2021,2243806,391.24,HOUSING BENEFIT,299992,Resources,Housing Services,108,Transfer Payments,506,Housing Benefits,5048,Revenue,NON INFLUENCIBLE.NON INFLUENCIBLE
06/12/2021,2243807,391.24,HOUSING BENEFIT,299992,Resources,Housing Services,108,Transfer Payments,506,Housing Benefits,5048,Revenue,NON INFLUENCIBLE.NON INFLUENCIBLE
06/12/2021,2243808,461.32,HOUSING BENEFIT,299992,Resources,Housing Services,108,Transfer Payments,506,Housing Benefits,5048,Revenue,NON INFLUENCIBLE.NON INFLUENCIBLE
06/12/2021,2243810,391.24,HOUSING BENEFIT,299992,Resources,Housing Services,108,Transfer Payments,506,Housing Benefits,5048,Revenue,NON INFLUENCIBLE.NON INFLUENCIBLE
06/12/2021,2243811,369.24,HOUSING BENEFIT,299992,Resources,Housing Services,108,Transfer Payments,506,Housing Benefits,5048,Revenue,NON INFLUENCIBLE.NON INFLUENCIBLE
06/12/2021,2243812,806.64,HOUSING BENEFIT,299992,Resources,Housing Services,108,Transfer Payments,506,Housing Benefits,5048,Revenue,NON INFLUENCIBLE.NON INFLUENCIBLE
06/12/2021,2243813,313.84,HOUSING BENEFIT,299992,Resources,Housing Services,108,Transfer Payments,506,Housing Benefits,5048,Revenue,NON INFLUENCIBLE.NON INFLUENCIBLE
06/12/2021,2243814,391.24,HOUSING BENEFIT,299992,Resources,Housing Services,108,Transfer Payments,506,Housing Benefits,5048,Revenue,NON INFLUENCIBLE.NON INFLUENCIBLE
06/12/2021,2243815,380.00,HOUSING BENEFIT,299992,Resources,Housing Services,108,Transfer Payments,506,Housing Benefits,5048,Revenue,NON INFLUENCIBLE.NON INFLUENCIBLE
06/12/2021,2243816,364.60,HOUSING BENEFIT,299992,Resources,Housing Services,108,Transfer Payments,506,Housing Benefits,5048,Revenue,NON INFLUENCIBLE.NON INFLUENCIBLE
06/12/2021,2243818,437.28,HOUSING BENEFIT,299992,Resources,Housing Services,108,Transfer Payments,506,Housing Benefits,5048,Revenue,NON INFLUENCIBLE.NON INFLUENCIBLE
06/12/2021,2243819,3122.44,HOUSING BENEFIT,299992,Resources,Housing Services,108,Transfer Payments,506,Housing Benefits,5048,Revenue,NON INFLUENCIBLE.NON INFLUENCIBLE
06/12/2021,2243820,389.04,HOUSING BENEFIT,299992,Resources,Housing Services,108,Transfer Payments,506,Housing Benefits,5048,Revenue,NON INFLUENCIBLE.NON INFLUENCIBLE
06/12/2021,2243821,1519.96,HOUSING BENEFIT,299992,Resources,Housing Services,108,Transfer Payments,506,Housing Benefits,5048,Revenue,NON INFLUENCIBLE.NON INFLUENCIBLE
06/12/2021,2243822,391.24,HOUSING BENEFIT,299992,Resources,Housing Services,108,Transfer Payments,506,Housing Benefits,5048,Revenue,NON INFLUENCIBLE.NON INFLUENCIBLE
06/12/2021,2243823,369.24,HOUSING BENEFIT,299992,Resources,Housing Services,108,Transfer Payments,506,Housing Benefits,5048,Revenue,NON INFLUENCIBLE.NON INFLUENCIBLE
06/12/2021,2243824,316.24,HOUSING BENEFIT,299992,Resources,Housing Services,108,Transfer Payments,506,Housing Benefits,5048,Revenue,NON INFLUENCIBLE.NON INFLUENCIBLE
06/12/2021,2243825,391.24,HOUSING BENEFIT,299992,Resources,Housing Services,108,Transfer Payments,506,Housing Benefits,5048,Revenue,NON INFLUENCIBLE.NON INFLUENCIBLE
06/12/2021,2243826,346.16,HOUSING BENEFIT,299992,Resources,Housing Services,108,Transfer Payments,506,Housing Benefits,5048,Revenue,NON INFLUENCIBLE.NON INFLUENCIBLE
06/12/2021,2243827,782.48,HOUSING BENEFIT,299992,Resources,Housing Services,108,Transfer Payments,506,Housing Benefits,5048,Revenue,NON INFLUENCIBLE.NON INFLUENCIBLE
06/12/2021,2243828,796.00,HOUSING BENEFIT,299992,Resources,Housing Services,108,Transfer Payments,506,Housing Benefits,5048,Revenue,NON INFLUENCIBLE.NON INFLUENCIBLE
06/12/2021,2243829,288.12,HOUSING BENEFIT,299992,Resources,Housing Services,108,Transfer Payments,506,Housing Benefits,5048,Revenue,NON INFLUENCIBLE.NON INFLUENCIBLE
06/12/2021,2243830,916.80,HOUSING BENEFIT,299992,Resources,Housing Services,108,Transfer Payments,506,Housing Benefits,5048,Revenue,NON INFLUENCIBLE.NON INFLUENCIBLE
06/12/2021,2243831,391.24,HOUSING BENEFIT,299992,Resources,Housing Services,108,Transfer Payments,506,Housing Benefits,5048,Revenue,NON INFLUENCIBLE.NON INFLUENCIBLE
06/12/2021,2243832,391.24,HOUSING BENEFIT,299992,Resources,Housing Services,108,Transfer Payments,506,Housing Benefits,5048,Revenue,NON INFLUENCIBLE.NON INFLUENCIBLE
06/12/2021,2243833,391.24,HOUSING BENEFIT,299992,Resources,Housing Services,108,Transfer Payments,506,Housing Benefits,5048,Revenue,NON INFLUENCIBLE.NON INFLUENCIBLE
06/12/2021,2243834,1107.56,HOUSING BENEFIT,299992,Resources,Housing Services,108,Transfer Payments,506,Housing Benefits,5048,Revenue,NON INFLUENCIBLE.NON INFLUENCIBLE
